Workbook

Sheet Instructions
A1: Instructions for using the Caculations sheet
A3: Step 0. | B3: Enable Macros
A4: Step 1. | B4: Paste your sample name and composition into the Yellow INPUT fields
A5: Step 2. | B5: Define primitive mantle composition (this should not deviate too much from McDonough and Sun (1995)
A6: Step 3. | B6: Define H2O content (wt. %) in row 42 (if necessary)
A7: Step 4. | B7: Provide initial guess for KD(Fe/Mg) in row 16; 0.3 will suffice
B8: Provide initial guess for P (Gpa) in row 46; 1 Gpa will suffice
A9: Step 5. | B9: Run program with "ctrl t"
A10: Step 6. | B10: outputs are in blue
A12: Step 7. | B12: Data can be filtered for Mg# and Si-enrichment

Sheet calculations
A1: Peridotite Protolith Thermobarometry
A2: enable macros; click ctrl+t to run
B3: Parameter constants | K3: T* | N3: Filters
B4: Lee T-MgOm | E4: T liquidus KLB-1 Hezberg O'Hara 2002 | H4: T sol hirschmann | K4: a (F^4) | N4: minimum Mg# | O4: 0.92
B5: a0 | C5: 1070 | E5: c1 C | F5: 1690 | H5: a C/Gpa^2 | I5: -5.104 | K5: b (F^3) | L5: 1.289 | M5: -0.302125 | N5: exclude Opx-rich samples Y/N | O5: Y
B6: a1 MgO | C6: 14.93 | E6: c2 C/Gpa | F6: 54 | H6: b C/Gpa | I6: 132.899 | K6: c (F^2) | L6: -1.7596 | M6: 0.571575
B7: a2 P | C7: 72.23 | E7: C3 C/Gpa^2 | F7: -2 | H7: c C | I7: 1120 | K7: d (F) | L7: 1.4737 | M7: -0.271375
B8: a3 P^2 | C8: -3.249 | L8: *these quantities are given at 3 Gpa
B9: a3 H2O | C9: -18.53
B12: Primitive Mantle KLB-1
A13: wt % | B13: MgO o | C13: 37.8 | D13: =C13 -> 37.8 | E13: =D13 -> 37.8 | F13: =E13 -> 37.8 | G13: =F13 -> 37.8 | H13: 37.8 | I13: 37.8 | J13: 37.8 | K13: 37.8 | L13: 37.8 | M13: 37.8 | N13: 37.8 | O13: 37.8 | P13: 37.8 | Q13: 37.8 | R13: 37.8 | S13: 37.8 | T13: 37.8 | U13: =T13 -> 37.8 | V13: 37.8 | W13: 37.8 | X13: 37.8 | Y13: 37.8 | Z13: 37.8 | AA13: 37.8 | AB13: 37.8 | AC13: =AB13 -> 37.8 | AD13: 37.8 | AE13: 37.8 | AF13: 37.8 | AG13: 37.8 | AH13: 37.8 | AI13: 37.8 | AJ13: 37.8 | AK13: =AJ13 -> 37.8 | AL13: 37.8 | AM13: 37.8 | AN13: 37.8 | AO13: 37.8 | AP13: 37.8 | AQ13: 37.8 | AR13: 37.8 | AS13: 37.8 | AT13: 37.8 | AU13: 37.8 | AV13: 37.8 | AW13: 37.8 | AX13: 37.8 | AY13: 37.8 | AZ13: 37.8 | BA13: =AZ13 -> 37.8 | BB13: 37.8 | BC13: 37.8 | BD13: 37.8 | BE13: 37.8 | BF13: 37.8 | BG13: 37.8 | BH13: 37.8 | BI13: 37.8 | BJ13: 37.8 | BK13: 37.8 | BL13: 37.8 | BM13: 37.8 | BN13: 37.8 | BO13: 37.8 | BP13: 37.8 | BQ13: =BP13 -> 37.8 | BR13: 37.8 | BS13: 37.8 | BT13: 37.8 | BU13: 37.8 | BV13: 37.8 | BW13: 37.8 | BX13: 37.8 | BY13: 37.8 | BZ13: 37.8 | CA13: 37.8 | CB13: 37.8 | CC13: 37.8 | CD13: 37.8 | CE13: 37.8 | CF13: 37.8 | CG13: =CF13 -> 37.8 | CH13: 37.8 | CI13: 37.8 | CJ13: 37.8 | CK13: 37.8 | CL13: 37.8 | CM13: 37.8 | CN13: 37.8 | CO13: 37.8 | CP13: 37.8 | CQ13: 37.8 | CR13: 37.8 | CS13: 37.8 | CT13: 37.8 | CU13: 37.8 | CV13: 37.8 | CW13: =CV13 -> 37.8 | CX13: 37.8 | CY13: 37.8 | CZ13: 37.8 | DA13: 37.8 | DB13: 37.8 | DC13: 37.8 | DD13: 37.8 | DE13: 37.8 | DF13: 37.8 | DG13: 37.8 | DH13: 37.8 | DI13: 37.8 | DJ13: 37.8 | DK13: 37.8 | DL13: 37.8 | DM13: =DL13 -> 37.8 | DN13: 37.8 | DO13: 37.8 | DP13: 37.8 | DQ13: 37.8 | DR13: 37.8 | DS13: 37.8 | DT13: 37.8 | DU13: 37.8 | DV13: 37.8 | DW13: 37.8 | DX13: 37.8 | DY13: 37.8 | DZ13: 37.8 | EA13: 37.8 | EB13: 37.8 | EC13: =EB13 -> 37.8 | ED13: 37.8 | EE13: 37.8 | EF13: 37.8 | EG13: 37.8 | EH13: 37.8 | EI13: 37.8 | EJ13: 37.8 | EK13: 37.8 | EL13: 37.8 | EM13: 37.8 | EN13: 37.8 | EO13: 37.8 | EP13: 37.8 | EQ13: 37.8 | ER13: 37.8 | ES13: =ER13 -> 37.8 | ET13: 37.8 | EU13: 37.8 | EV13: 37.8 | EW13: 37.8 | EX13: 37.8 | EY13: 37.8 | EZ13: 37.8 | FA13: 37.8 | FB13: 37.8 | FC13: 37.8 | FD13: 37.8 | FE13: 37.8 | FF13: 37.8 | FG13: 37.8 | FH13: 37.8 | FI13: =FH13 -> 37.8 | FJ13: 37.8 | FK13: 37.8 | FL13: 37.8 | FM13: 37.8 | FN13: 37.8 | FO13: 37.8 | FP13: 37.8 | FQ13: 37.8 | FR13: 37.8 | FS13: 37.8 | FT13: 37.8 | FU13: 37.8 | FV13: 37.8 | FW13: 37.8 | FX13: 37.8 | FY13: =FX13 -> 37.8 | FZ13: 37.8 | GA13: 37.8 | GB13: 37.8 | GC13: 37.8 | GD13: 37.8 | GE13: 37.8 | GF13: 37.8 | GG13: 37.8 | GH13: 37.8 | GI13: 37.8 | GJ13: 37.8 | GK13: 37.8 | GL13: 37.8 | GM13: 37.8 | GN13: 37.8 | GO13: =GN13 -> 37.8 | GP13: 37.8 | GQ13: 37.8 | GR13: 37.8 | GS13: 37.8 | GT13: 37.8 | GU13: 37.8 | GV13: 37.8 | GW13: 37.8 | GX13: 37.8 | GY13: 37.8 | GZ13: 37.8 | HA13: 37.8 | HB13: 37.8 | HC13: 37.8 | HD13: 37.8 | HE13: =HD13 -> 37.8 | HF13: 37.8 | HG13: 37.8 | HH13: 37.8 | HI13: 37.8 | HJ13: 37.8 | HK13: 37.8 | HL13: 37.8 | HM13: 37.8 | HN13: 37.8 | HO13: 37.8 | HP13: 37.8 | HQ13: 37.8 | HR13: 37.8 | HS13: 37.8 | HT13: 37.8 | HU13: =HT13 -> 37.8 | HV13: 37.8 | HW13: 37.8 | HX13: 37.8 | HY13: 37.8 | HZ13: 37.8 | IA13: 37.8 | IB13: 37.8 | IC13: 37.8 | ID13: 37.8 | IE13: 37.8 | IF13: 37.8 | IG13: 37.8 | IH13: 37.8 | II13: 37.8 | IJ13: 37.8 | IK13: =IJ13 -> 37.8 | IL13: 37.8 | IM13: 37.8 | IN13: 37.8 | IO13: 37.8 | IP13: 37.8 | IQ13: 37.8 | IR13: 37.8 | IS13: 37.8
A14: wt % | B14: FeO o | C14: 8.05 | D14: =C14 -> 8.05 | E14: 8.05 | F14: 8.05 | G14: 8.05 | H14: 8.05 | I14: 8.05 | J14: 8.05 | K14: 8.05 | L14: 8.05 | M14: 8.05 | N14: 8.05 | O14: 8.05 | P14: 8.05 | Q14: 8.05 | R14: 8.05 | S14: 8.05 | T14: 8.05 | U14: 8.05 | V14: 8.05 | W14: 8.05 | X14: 8.05 | Y14: 8.05 | Z14: 8.05 | AA14: 8.05 | AB14: 8.05 | AC14: =AB14 -> 8.05 | AD14: 8.05 | AE14: 8.05 | AF14: 8.05 | AG14: 8.05 | AH14: 8.05 | AI14: 8.05 | AJ14: 8.05 | AK14: 8.05 | AL14: 8.05 | AM14: 8.05 | AN14: 8.05 | AO14: 8.05 | AP14: 8.05 | AQ14: 8.05 | AR14: 8.05 | AS14: 8.05 | AT14: 8.05 | AU14: 8.05 | AV14: 8.05 | AW14: 8.05 | AX14: 8.05 | AY14: 8.05 | AZ14: 8.05 | BA14: 8.05 | BB14: 8.05 | BC14: 8.05 | BD14: 8.05 | BE14: 8.05 | BF14: 8.05 | BG14: 8.05 | BH14: 8.05 | BI14: 8.05 | BJ14: 8.05 | BK14: 8.05 | BL14: 8.05 | BM14: 8.05 | BN14: 8.05 | BO14: 8.05 | BP14: 8.05 | BQ14: 8.05 | BR14: 8.05 | BS14: 8.05 | BT14: 8.05 | BU14: 8.05 | BV14: 8.05 | BW14: 8.05 | BX14: 8.05 | BY14: 8.05 | BZ14: 8.05 | CA14: 8.05 | CB14: 8.05 | CC14: 8.05 | CD14: 8.05 | CE14: 8.05 | CF14: 8.05 | CG14: 8.05 | CH14: 8.05 | CI14: 8.05 | CJ14: 8.05 | CK14: 8.05 | CL14: 8.05 | CM14: 8.05 | CN14: 8.05 | CO14: 8.05 | CP14: 8.05 | CQ14: 8.05 | CR14: 8.05 | CS14: 8.05 | CT14: 8.05 | CU14: 8.05 | CV14: 8.05 | CW14: 8.05 | CX14: 8.05 | CY14: 8.05 | CZ14: 8.05 | DA14: 8.05 | DB14: 8.05 | DC14: 8.05 | DD14: 8.05 | DE14: 8.05 | DF14: 8.05 | DG14: 8.05 | DH14: 8.05 | DI14: 8.05 | DJ14: 8.05 | DK14: 8.05 | DL14: 8.05 | DM14: 8.05 | DN14: 8.05 | DO14: 8.05 | DP14: 8.05 | DQ14: 8.05 | DR14: 8.05 | DS14: 8.05 | DT14: 8.05 | DU14: 8.05 | DV14: 8.05 | DW14: 8.05 | DX14: 8.05 | DY14: 8.05 | DZ14: 8.05 | EA14: 8.05 | EB14: 8.05 | EC14: 8.05 | ED14: 8.05 | EE14: 8.05 | EF14: 8.05 | EG14: 8.05 | EH14: 8.05 | EI14: 8.05 | EJ14: 8.05 | EK14: 8.05 | EL14: 8.05 | EM14: 8.05 | EN14: 8.05 | EO14: 8.05 | EP14: 8.05 | EQ14: 8.05 | ER14: 8.05 | ES14: 8.05 | ET14: 8.05 | EU14: 8.05 | EV14: 8.05 | EW14: 8.05 | EX14: 8.05 | EY14: 8.05 | EZ14: 8.05 | FA14: 8.05 | FB14: 8.05 | FC14: 8.05 | FD14: 8.05 | FE14: 8.05 | FF14: 8.05 | FG14: 8.05 | FH14: 8.05 | FI14: 8.05 | FJ14: 8.05 | FK14: 8.05 | FL14: 8.05 | FM14: 8.05 | FN14: 8.05 | FO14: 8.05 | FP14: 8.05 | FQ14: 8.05 | FR14: 8.05 | FS14: 8.05 | FT14: 8.05 | FU14: 8.05 | FV14: 8.05 | FW14: 8.05 | FX14: 8.05 | FY14: 8.05 | FZ14: 8.05 | GA14: 8.05 | GB14: 8.05 | GC14: 8.05 | GD14: 8.05 | GE14: 8.05 | GF14: 8.05 | GG14: 8.05 | GH14: 8.05 | GI14: 8.05 | GJ14: 8.05 | GK14: 8.05 | GL14: 8.05 | GM14: 8.05 | GN14: 8.05 | GO14: 8.05 | GP14: 8.05 | GQ14: 8.05 | GR14: 8.05 | GS14: 8.05 | GT14: 8.05 | GU14: 8.05 | GV14: 8.05 | GW14: 8.05 | GX14: 8.05 | GY14: 8.05 | GZ14: 8.05 | HA14: 8.05 | HB14: 8.05 | HC14: 8.05 | HD14: 8.05 | HE14: 8.05 | HF14: 8.05 | HG14: 8.05 | HH14: 8.05 | HI14: 8.05 | HJ14: 8.05 | HK14: 8.05 | HL14: 8.05 | HM14: 8.05 | HN14: 8.05 | HO14: 8.05 | HP14: 8.05 | HQ14: 8.05 | HR14: 8.05 | HS14: 8.05 | HT14: 8.05 | HU14: 8.05 | HV14: 8.05 | HW14: 8.05 | HX14: 8.05 | HY14: 8.05 | HZ14: 8.05 | IA14: 8.05 | IB14: 8.05 | IC14: 8.05 | ID14: 8.05 | IE14: 8.05 | IF14: 8.05 | IG14: 8.05 | IH14: 8.05 | II14: 8.05 | IJ14: 8.05 | IK14: 8.05 | IL14: 8.05 | IM14: 8.05 | IN14: 8.05 | IO14: 8.05 | IP14: 8.05 | IQ14: 8.05 | IR14: 8.05 | IS14: 8.05
B15: Mg# r | C15: =C13/40.3/(C13/40.3+C14/71.85) -> 0.8932966489 | D15: 0.8932966489 | E15: 0.8932966489 | F15: 0.8932966489 | G15: 0.8932966489 | H15: 0.8932966489 | I15: 0.8932966489 | J15: 0.8932966489 | K15: 0.8932966489 | L15: 0.8932966489 | M15: 0.8932966489 | N15: 0.8932966489 | O15: 0.8932966489 | P15: 0.8932966489 | Q15: 0.8932966489 | R15: 0.8932966489 | S15: 0.8932966489 | T15: 0.8932966489 | U15: 0.8932966489 | V15: 0.8932966489 | W15: 0.8932966489 | X15: 0.8932966489 | Y15: 0.8932966489 | Z15: 0.8932966489 | AA15: 0.8932966489 | AB15: 0.8932966489 | AC15: 0.8932966489 | AD15: 0.8932966489 | AE15: 0.8932966489 | AF15: 0.8932966489 | AG15: 0.8932966489 | AH15: 0.8932966489 | AI15: 0.8932966489 | AJ15: 0.8932966489 | AK15: 0.8932966489 | AL15: 0.8932966489 | AM15: 0.8932966489 | AN15: 0.8932966489 | AO15: 0.8932966489 | AP15: 0.8932966489 | AQ15: 0.8932966489 | AR15: 0.8932966489 | AS15: 0.8932966489 | AT15: 0.8932966489 | AU15: 0.8932966489 | AV15: 0.8932966489 | AW15: 0.8932966489 | AX15: 0.8932966489 | AY15: 0.8932966489 | AZ15: 0.8932966489 | BA15: 0.8932966489 | BB15: 0.8932966489 | BC15: 0.8932966489 | BD15: 0.8932966489 | BE15: 0.8932966489 | BF15: 0.8932966489 | BG15: 0.8932966489 | BH15: 0.8932966489 | BI15: 0.8932966489 | BJ15: 0.8932966489 | BK15: 0.8932966489 | BL15: 0.8932966489 | BM15: 0.8932966489 | BN15: 0.8932966489 | BO15: =BO13/40.3/(BO13/40.3+BO14/71.85) -> 0.8932966489 | BP15: 0.8932966489 | BQ15: 0.8932966489 | BR15: 0.8932966489 | BS15: 0.8932966489 | BT15: 0.8932966489 | BU15: 0.8932966489 | BV15: 0.8932966489 | BW15: 0.8932966489 | BX15: 0.8932966489 | BY15: 0.8932966489 | BZ15: 0.8932966489 | CA15: 0.8932966489 | CB15: 0.8932966489 | CC15: 0.8932966489 | CD15: 0.8932966489 | CE15: 0.8932966489 | CF15: 0.8932966489 | CG15: 0.8932966489 | CH15: 0.8932966489 | CI15: 0.8932966489 | CJ15: 0.8932966489 | CK15: 0.8932966489 | CL15: 0.8932966489 | CM15: 0.8932966489 | CN15: 0.8932966489 | CO15: 0.8932966489 | CP15: 0.8932966489 | CQ15: 0.8932966489 | CR15: 0.8932966489 | CS15: 0.8932966489 | CT15: 0.8932966489 | CU15: 0.8932966489 | CV15: 0.8932966489 | CW15: 0.8932966489 | CX15: 0.8932966489 | CY15: 0.8932966489 | CZ15: 0.8932966489 | DA15: 0.8932966489 | DB15: 0.8932966489 | DC15: 0.8932966489 | DD15: 0.8932966489 | DE15: 0.8932966489 | DF15: 0.8932966489 | DG15: 0.8932966489 | DH15: 0.8932966489 | DI15: 0.8932966489 | DJ15: 0.8932966489 | DK15: 0.8932966489 | DL15: 0.8932966489 | DM15: 0.8932966489 | DN15: 0.8932966489 | DO15: 0.8932966489 | DP15: 0.8932966489 | DQ15: 0.8932966489 | DR15: 0.8932966489 | DS15: 0.8932966489 | DT15: 0.8932966489 | DU15: 0.8932966489 | DV15: 0.8932966489 | DW15: 0.8932966489 | DX15: 0.8932966489 | DY15: 0.8932966489 | DZ15: 0.8932966489 | EA15: =EA13/40.3/(EA13/40.3+EA14/71.85) -> 0.8932966489 | EB15: 0.8932966489 | EC15: 0.8932966489 | ED15: 0.8932966489 | EE15: 0.8932966489 | EF15: 0.8932966489 | EG15: 0.8932966489 | EH15: 0.8932966489 | EI15: 0.8932966489 | EJ15: 0.8932966489 | EK15: 0.8932966489 | EL15: 0.8932966489 | EM15: 0.8932966489 | EN15: 0.8932966489 | EO15: 0.8932966489 | EP15: 0.8932966489 | EQ15: 0.8932966489 | ER15: 0.8932966489 | ES15: 0.8932966489 | ET15: 0.8932966489 | EU15: 0.8932966489 | EV15: 0.8932966489 | EW15: 0.8932966489 | EX15: 0.8932966489 | EY15: 0.8932966489 | EZ15: 0.8932966489 | FA15: 0.8932966489 | FB15: 0.8932966489 | FC15: 0.8932966489 | FD15: 0.8932966489 | FE15: 0.8932966489 | FF15: 0.8932966489 | FG15: 0.8932966489 | FH15: 0.8932966489 | FI15: 0.8932966489 | FJ15: 0.8932966489 | FK15: 0.8932966489 | FL15: 0.8932966489 | FM15: 0.8932966489 | FN15: 0.8932966489 | FO15: 0.8932966489 | FP15: 0.8932966489 | FQ15: 0.8932966489 | FR15: 0.8932966489 | FS15: 0.8932966489 | FT15: 0.8932966489 | FU15: 0.8932966489 | FV15: 0.8932966489 | FW15: 0.8932966489 | FX15: 0.8932966489 | FY15: 0.8932966489 | FZ15: 0.8932966489 | GA15: 0.8932966489 | GB15: 0.8932966489 | GC15: 0.8932966489 | GD15: 0.8932966489 | GE15: 0.8932966489 | GF15: 0.8932966489 | GG15: 0.8932966489 | GH15: 0.8932966489 | GI15: 0.8932966489 | GJ15: 0.8932966489 | GK15: 0.8932966489 | GL15: 0.8932966489 | GM15: =GM13/40.3/(GM13/40.3+GM14/71.85) -> 0.8932966489 | GN15: 0.8932966489 | GO15: 0.8932966489 | GP15: 0.8932966489 | GQ15: 0.8932966489 | GR15: 0.8932966489 | GS15: 0.8932966489 | GT15: 0.8932966489 | GU15: 0.8932966489 | GV15: 0.8932966489 | GW15: 0.8932966489 | GX15: 0.8932966489 | GY15: 0.8932966489 | GZ15: 0.8932966489 | HA15: 0.8932966489 | HB15: 0.8932966489 | HC15: 0.8932966489 | HD15: 0.8932966489 | HE15: 0.8932966489 | HF15: 0.8932966489 | HG15: 0.8932966489 | HH15: 0.8932966489 | HI15: 0.8932966489 | HJ15: 0.8932966489 | HK15: 0.8932966489 | HL15: 0.8932966489 | HM15: 0.8932966489 | HN15: 0.8932966489 | HO15: 0.8932966489 | HP15: 0.8932966489 | HQ15: 0.8932966489 | HR15: 0.8932966489 | HS15: 0.8932966489 | HT15: 0.8932966489 | HU15: 0.8932966489 | HV15: 0.8932966489 | HW15: 0.8932966489 | HX15: 0.8932966489 | HY15: 0.8932966489 | HZ15: 0.8932966489 | IA15: 0.8932966489 | IB15: 0.8932966489 | IC15: 0.8932966489 | ID15: 0.8932966489 | IE15: 0.8932966489 | IF15: 0.8932966489 | IG15: 0.8932966489 | IH15: 0.8932966489 | II15: 0.8932966489 | IJ15: 0.8932966489 | IK15: 0.8932966489 | IL15: 0.8932966489 | IM15: 0.8932966489 | IN15: 0.8932966489 | IO15: 0.8932966489 | IP15: 0.8932966489 | IQ15: 0.8932966489 | IR15: 0.8932966489 | IS15: 0.8932966489
A16: guess | B16: KD Fe/Mg | C16: 0.342542012 | D16: 0.3458902912 | E16: 0.3436086464 | F16: 0.3469087837 | G16: 0.3500910257 | H16: 0.3609171917 | I16: 0.3494320301 | J16: 0.4117137558 | K16: 0.3444321054 | L16: 0.342859096 | M16: 0.3576824589 | N16: 0.3479012873 | O16: 0.3478208807 | P16: 0.3510615728 | Q16: 0.3503746103 | R16: 0.361192249 | S16: 0.3570123435 | T16: 0.3507774934 | U16: 0.3528169216 | V16: 0.3534851587 | W16: 0.3571848426 | X16: 0.352011829 | Y16: 0.3516693504 | Z16: 0.3528852217 | AA16: 0.3549266355 | AB16: 0.3579846694 | AC16: 0.3472965741 | AD16: 0.3515739793 | AE16: 0.3412722791 | AF16: 0.3427332431 | AG16: 0.351221596 | AH16: 0.3541647664 | AI16: 0.3444299767 | AJ16: 0.3362818632 | AK16: 0.3486098224 | AL16: 0.3431887491 | AM16: 0.3469011486 | AN16: 0.3798311038 | AO16: 0.3537310403 | AP16: 0.3506395812 | AQ16: 0.3497571876 | AR16: 0.3555106874 | AS16: 0.2334316862 | AT16: 0.3512189449 | AU16: 0.3274567084 | AV16: 0.3654101787 | AW16: 0.3525635148 | AX16: 0.3446180755 | AY16: 0.3429476153 | AZ16: 0.3520514529 | BA16: 0.3512209873 | BB16: 0.3461617373 | BC16: 0.3471648528 | BD16: 0.3456785128 | BE16: 0.3432132673 | BF16: 0.3278026084 | BG16: 0.3160326486 | BH16: 0.3515187179 | BI16: 0.3429769963 | BJ16: 0.3461657281 | BK16: 0.3468323446 | BL16: 0.3469656383 | BM16: 0.3450571531 | BN16: 0.344702682 | BO16: 0.3481205838 | BP16: 0.3375970404 | BQ16: 0.3493921763 | BR16: 0.3481727396 | BS16: 0.3487224554 | BT16: 0.3949722572 | BU16: 0.351045096 | BV16: 0.3416402742 | BW16: 0.3022143425 | BX16: 0.3484894202 | BY16: 0.2317392274 | BZ16: 0.4619910003 | CA16: 0.3367122534 | CB16: 0.3378033209 | CC16: 0.3321043482 | CD16: 0.350465658 | CE16: 0.3284204503 | CF16: 0.288450152 | CG16: 0.3095173755 | CH16: 0.5616124829 | CI16: 0.4052268919 | CJ16: 0.3477273122 | CK16: 0.3220676902 | CL16: 0.3531358001 | CM16: 0.3472791032 | CN16: 0.3354131204 | CO16: 0.3513898796 | CP16: 0.3503055088 | CQ16: 0.3559527564 | CR16: 0.3465956689 | CS16: 0.3537041007 | CT16: 0.3540264183 | CU16: 0.3555315204 | CV16: 0.3551158851 | CW16: 0.3554127982 | CX16: 0.353168495 | CY16: 0.3616210022 | CZ16: 0.3527682352 | DA16: 0.34964097 | DB16: 0.3539707316 | DC16: 0.3564155702 | DD16: 0.3583926183 | DE16: 0.35707941 | DF16: 0.3549683563 | DG16: 0.3530100454 | DH16: 0.3399080884 | DI16: 0.3507932565 | DJ16: 0.3340979619 | DK16: 0.3529496746 | DL16: 0.3470501522 | DM16: 0.3469107465 | DN16: 0.3538000643 | DO16: 0.3415180764 | DP16: 0.3470029088 | DQ16: 0.348579156 | DR16: 0.35177997 | DS16: 0.270770422 | DT16: 0.3400864432 | DU16: 0.3547666129 | DV16: 0.3468947169 | DW16: 0.3355913802 | DX16: 0.3448730394 | DY16: 0.34994989 | DZ16: 0.3485611115 | EA16: 0.3443185103 | EB16: 0.3273902567 | EC16: 0.3261511493 | ED16: 0.3425255829 | EE16: 0.3381153067 | EF16: 0.3519713123 | EG16: 0.3486853206 | EH16: 0.3513355405 | EI16: 0.3361700849 | EJ16: 0.3480574278 | EK16: 0.3508448592 | EL16: 0.336878604 | EM16: 0.3516223233 | EN16: 0.3543400146 | EO16: 0.3535430436 | EP16: 0.3512742066 | EQ16: 0.3550313556 | ER16: 0.3500715741 | ES16: 0.3510477686 | ET16: 0.3502753222 | EU16: 0.3545074737 | EV16: 0.3503591856 | EW16: 0.3555509006 | EX16: 0.3562703644 | EY16: 0.3560062814 | EZ16: 0.3530140449 | FA16: 0.3516119357 | FB16: 0.3574849306 | FC16: 0.3490444185 | FD16: 0.3581423445 | FE16: 0.3362615621 | FF16: 0.3560191321 | FG16: 0.3547227102 | FH16: 0.3523897204 | FI16: 0.3541437283 | FJ16: 0.354854227 | FK16: 0.3127270095 | FL16: 0.3379166221 | FM16: 0.3538636283 | FN16: 0.3553273793 | FO16: 0.3526140312 | FP16: 0.3528821641 | FQ16: 0.3557369813 | FR16: 0.3551826818 | FS16: 0.3555716542 | FT16: 0.3538565074 | FU16: 0.3552130726 | FV16: 0.4022401961 | FW16: 0.3530286302 | FX16: 0.3508635226 | FY16: 0.3539389267 | FZ16: 0.3511523972 | GA16: 0.3545718688 | GB16: 0.3539372012 | GC16: 0.3510176714 | GD16: 0.3518283239 | GE16: 0.3555185257 | GF16: 0.3520944704 | GG16: 0.3556624823 | GH16: 0.3516533264 | GI16: 0.3546102847 | GJ16: 0.3523092612 | GK16: 0.354962172 | GL16: 0.3385318361 | GM16: 0.8686043225 | GN16: 0.3516130548 | GO16: 0.3351032326 | GP16: 0.3445041527 | GQ16: 0.3442180589 | GR16: 0.3459067966 | GS16: 0.3467190166 | GT16: 0.3411651022 | GU16: 0.3521872372 | GV16: 0.3446974483 | GW16: 0.3457399495 | GX16: 0.3475676858 | GY16: 0.3532631419 | GZ16: 0.3534001096 | HA16: 0.8686043225 | HB16: 0.3457355524 | HC16: 0.3405061404 | HD16: 0.3443128339 | HE16: 0.3415519681 | HF16: 0.8686043225 | HG16: 0.3342917996 | HH16: 0.3389494227 | HI16: 0.3225430882 | HJ16: 0.3225430882 | HK16: 0.3519096761 | HL16: 0.3502862873 | HM16: 0.3386304054 | HN16: 0.3465585596 | HO16: 0.350971512 | HP16: 0.342000918 | HQ16: 0.6894997279 | HR16: 0.336247881 | HS16: 0.3791173002 | HT16: 0.2344601186 | HU16: 0.3418302055 | HV16: 0.3416636425 | HW16: 0.3478428378 | HX16: 0.346266802 | HY16: 0.3466584185 | HZ16: 0.3472344533 | IA16: 0.3527454875 | IB16: 0.3519319793 | IC16: 0.354843727 | ID16: 0.3519878754 | IE16: 0.3516544402 | IF16: 0.8686043225 | IG16: 0.344579628 | IH16: 0.3446396954 | II16: 0.3461039824 | IJ16: 0.3373322431 | IK16: 0.2624547797 | IL16: 0.3460950454 | IM16: 0.342800291 | IN16: 0.3529209535 | IO16: 0.3381647941 | IP16: 0.3444212652 | IQ16: 0.3370607323 | IR16: 0.3419170861 | IS16: 0.3598914912
B17: KD Fe/Mg (Herzberg&OHara2002) | C17: =0.381-0.774/C33+0.998/C33^2 -> 0.3469650745 | D17: 0.3471994248 | E17: 0.3470401996 | F17: 0.3472698592 | G17: 0.3474874229 | H17: 0.3482002774 | I17: 0.3474426774 | J17: 0.3510660183 | K17: 0.3470978956 | L17: 0.3469874536 | M17: 0.3479915805 | N17: 0.34733812 | O17: 0.3473326037 | P17: 0.3475530323 | Q17: 0.347506629 | R17: 0.3482178595 | S17: 0.3479478969 | T17: 0.3475338641 | U17: 0.347670824 | V17: 0.3477153737 | W17: 0.3479591567 | X17: 0.3476169371 | Y17: 0.3475939432 | Z17: 0.3476753847 | AA17: 0.3478109309 | AB17: 0.3480112301 | AC17: 0.3472965741 | AD17: 0.3515739793 | AE17: 0.3412722791 | AF17: 0.3427332431 | AG17: 0.351221596 | AH17: 0.3541647664 | AI17: 0.3444299767 | AJ17: 0.3362818632 | AK17: 0.3486098224 | AL17: 0.3431887492 | AM17: 0.3469011486 | AN17: 0.3798311039 | AO17: 0.3537310403 | AP17: 0.3506395813 | AQ17: 0.3497571876 | AR17: 0.3555106875 | AS17: 0.2334316862 | AT17: 0.351218945 | AU17: 0.3274567084 | AV17: 0.3654101787 | AW17: 0.3525635148 | AX17: 0.3446180755 | AY17: 0.3429476154 | AZ17: 0.3520514529 | BA17: 0.3512209873 | BB17: 0.3461617373 | BC17: 0.3471648529 | BD17: 0.3456785128 | BE17: 0.3432132673 | BF17: 0.3278026084 | BG17: 0.3160326478 | BH17: 0.351518718 | BI17: 0.3429769963 | BJ17: 0.3461657282 | BK17: 0.3468323447 | BL17: 0.3469656384 | BM17: 0.3450571531 | BN17: 0.344702682 | BO17: =0.381-0.774/BO33+0.998/BO33^2 -> 0.3481205838 | BP17: 0.3375970404 | BQ17: 0.3493921763 | BR17: 0.3481727396 | BS17: 0.3487224554 | BT17: 0.3949722572 | BU17: 0.351045096 | BV17: 0.3416402742 | BW17: 0.3022143423 | BX17: 0.3484894203 | BY17: 0.2317392274 | BZ17: 0.4619910005 | CA17: 0.3367122534 | CB17: 0.3378033209 | CC17: 0.3321043482 | CD17: 0.3504656581 | CE17: 0.3284204503 | CF17: 0.288450152 | CG17: 0.3095173755 | CH17: 0.5616124829 | CI17: 0.4052268919 | CJ17: 0.3477273122 | CK17: 0.3220676909 | CL17: 0.3531358001 | CM17: 0.3472791032 | CN17: 0.3354131204 | CO17: 0.3513898796 | CP17: 0.3503055088 | CQ17: 0.3559527566 | CR17: 0.3465956689 | CS17: 0.3537041008 | CT17: 0.3540264183 | CU17: 0.3555315205 | CV17: 0.3551158851 | CW17: 0.3554127982 | CX17: 0.353168495 | CY17: 0.3616210022 | CZ17: 0.3527682353 | DA17: 0.34964097 | DB17: 0.3539707316 | DC17: 0.3564155705 | DD17: 0.358392619 | DE17: 0.3570794105 | DF17: 0.3549683563 | DG17: 0.3530100454 | DH17: 0.3399080884 | DI17: 0.3507932565 | DJ17: 0.334097962 | DK17: 0.3529496747 | DL17: 0.3470501522 | DM17: 0.3469107465 | DN17: 0.3538000643 | DO17: 0.3415180764 | DP17: 0.3470029088 | DQ17: 0.348579156 | DR17: 0.35177997 | DS17: 0.270770422 | DT17: 0.3400864432 | DU17: 0.3547666129 | DV17: 0.3468947169 | DW17: 0.3355913802 | DX17: 0.3448730394 | DY17: 0.34994989 | DZ17: 0.3485611115 | EA17: =0.381-0.774/EA33+0.998/EA33^2 -> 0.3443185103 | EB17: 0.3273902567 | EC17: 0.3261511493 | ED17: 0.3425255829 | EE17: 0.3381153067 | EF17: 0.3519713123 | EG17: 0.3486853206 | EH17: 0.3513355405 | EI17: 0.3361700849 | EJ17: 0.3480574278 | EK17: 0.3508448592 | EL17: 0.336878604 | EM17: 0.3516223233 | EN17: 0.3543400146 | EO17: 0.3535430436 | EP17: 0.3512742066 | EQ17: 0.3550313556 | ER17: 0.3500715742 | ES17: 0.3510477686 | ET17: 0.3502753222 | EU17: 0.3545074738 | EV17: 0.3503591856 | EW17: 0.3555509007 | EX17: 0.3562703649 | EY17: 0.3560062816 | EZ17: 0.3530140449 | FA17: 0.3516119357 | FB17: 0.3574849311 | FC17: 0.3490444186 | FD17: 0.3581423451 | FE17: 0.3362615622 | FF17: 0.3560191322 | FG17: 0.3547227102 | FH17: 0.3523897205 | FI17: 0.3541437283 | FJ17: 0.354854227 | FK17: 0.3127270095 | FL17: 0.3379166221 | FM17: 0.3538636284 | FN17: 0.3553273793 | FO17: 0.3526140313 | FP17: 0.3528821641 | FQ17: 0.3557369814 | FR17: 0.3551826818 | FS17: 0.3555716542 | FT17: 0.3538565074 | FU17: 0.3552130726 | FV17: 0.4022401961 | FW17: 0.3530286303 | FX17: 0.3508635226 | FY17: 0.3539389267 | FZ17: 0.3511523972 | GA17: 0.3545718688 | GB17: 0.3539372012 | GC17: 0.3510176714 | GD17: 0.3518283239 | GE17: 0.3555185258 | GF17: 0.3520944704 | GG17: 0.3556624824 | GH17: 0.3516533264 | GI17: 0.3546102847 | GJ17: 0.3523092612 | GK17: 0.354962172 | GL17: 0.3385318361 | GM17: =0.381-0.774/GM33+0.998/GM33^2 -> 0.8686043225 | GN17: 0.3516130548 | GO17: 0.3351032326 | GP17: 0.3445041527 | GQ17: 0.344218059 | GR17: 0.3459067966 | GS17: 0.3467190166 | GT17: 0.3411651022 | GU17: 0.3521872373 | GV17: 0.3446974483 | GW17: 0.3457399495 | GX17: 0.3475676858 | GY17: 0.3532631419 | GZ17: 0.3534001097 | HA17: 0.8686043225 | HB17: 0.3457355524 | HC17: 0.3405061405 | HD17: 0.3443128339 | HE17: 0.3415519681 | HF17: 0.8686043225 | HG17: 0.3342917996 | HH17: 0.3389494227 | HI17: 0.3225430885 | HJ17: 0.3225430885 | HK17: 0.3519096761 | HL17: 0.3502862873 | HM17: 0.3386304054 | HN17: 0.3465585597 | HO17: 0.350971512 | HP17: 0.342000918 | HQ17: 0.6894997279 | HR17: 0.336247881 | HS17: 0.3791173002 | HT17: 0.2344601193 | HU17: 0.3418302055 | HV17: 0.3416636425 | HW17: 0.3478428379 | HX17: 0.346266802 | HY17: 0.3466584185 | HZ17: 0.3472344533 | IA17: 0.3527454875 | IB17: 0.3519319793 | IC17: 0.354843727 | ID17: 0.3519878754 | IE17: 0.3516544402 | IF17: 0.8686043225 | IG17: 0.3445796281 | IH17: 0.3446396954 | II17: 0.3461039824 | IJ17: 0.3373322432 | IK17: 0.2624547797 | IL17: 0.3460950454 | IM17: 0.342800291 | IN17: 0.3529209535 | IO17: 0.3381647942 | IP17: 0.3444212652 | IQ17: 0.3370607323 | IR17: 0.3419170861
B18: MgO melt | C18: 16.9 | D18: 17.58 | E18: 18.22 | F18: 19.71 | G18: 23.89 | I18: 22.31 | K18: 18.58 | L18: 19.89 | N18: 20.02 | O18: 22.28 | P18: 24.37 | Q18: 23.26 | T18: 23.88 | U18: 26.18 | V18: 26.48 | W18: 29.34 | X18: 23.9 | Y18: 25.29 | Z18: 26.65 | AA18: 27.31 | AB18: 30.29
A19: goal seek | B19: diff KD | C19: =C17-C16 -> 0.004423062553 | D19: 0.001309133638 | E19: 0.003431553243 | F19: 0.0003610755444 | G19: -0.002603602783 | H19: -0.0127169143 | I19: -0.001989352688 | J19: -0.06064773751 | K19: 0.002665790195 | L19: 0.004128357605 | M19: -0.009690878425 | N19: -0.000563167341 | O19: -0.0004882770556 | P19: -0.003508540509 | Q19: -0.002867981256 | R19: -0.01297438949 | S19: -0.009064446519 | T19: -0.003243629359 | U19: -0.005146097625 | V19: -0.005769784961 | W19: -0.009225685888 | X19: -0.004394891836 | Y19: -0.004075407241 | Z19: -0.005209836957 | AA19: -0.007115704603 | AB19: -0.009973439273 | AC19: 2.370592611e-11 | AD19: 1.863398325e-11 | AE19: 2.317701586e-11 | AF19: 2.716432634e-11 | AG19: 2.065048132e-11 | AH19: 1.24122379e-11 | AI19: 3.253147751e-11 | AJ19: 1.326438959e-11 | AK19: 3.493838552e-11 | AL19: 3.122901937e-11 | AM19: 3.871181153e-11 | AN19: 8.172362786e-11 | AO19: 1.557887153e-11 | AP19: 2.386635334e-11 | AQ19: 3.36718986e-11 | AR19: 4.81987783e-11 | AS19: -6.697420396e-14 | AT19: 2.857930559e-11 | AU19: 2.190470028e-13 | AV19: 6.050715484e-15 | AW19: 2.458794279e-11 | AX19: 3.66746078e-11 | AY19: 3.458122677e-11 | AZ19: 2.777900132e-11 | BA19: 3.153372008e-11 | BB19: 3.507560908e-11 | BC19: 4.126782249e-11 | BD19: 3.50054985e-11 | BE19: 2.904598784e-11 | BF19: 3.179123631e-13 | BG19: -7.646016598e-10 | BH19: 3.361849688e-11 | BI19: 3.070782517e-11 | BJ19: 3.710309837e-11 | BK19: 3.771810642e-11 | BL19: 3.53275742e-11 | BM19: 3.153877159e-11 | BN19: 3.472883092e-11 | BO19: =BO17-BO16 -> 3.168454388e-11 | BP19: 1.434663499e-11 | BQ19: 3.172168084e-11 | BR19: 3.732064657e-11 | BS19: 2.964029022e-11 | BT19: 5.456746166e-14 | BU19: 2.649491737e-11 | BV19: 2.350969419e-11 | BW19: -2.381989606e-10 | BX19: 3.180400387e-11 | BY19: -2.337297023e-12 | BZ19: 1.949663764e-10 | CA19: 1.209127243e-11 | CB19: 1.491762269e-11 | CC19: 3.19211324e-12 | CD19: 3.208033839e-11 | CE19: 5.352385202e-13 | CF19: -1.237343561e-13 | CG19: -8.378353566e-12 | CH19: 2.323696791e-13 | CI19: 1.407707284e-12 | CJ19: 3.971600826e-11 | CK19: 6.834132704e-10 | CL19: 1.825217755e-11 | CM19: 6.997846747e-12 | CN19: 1.063299448e-11 | CO19: 2.41847653e-11 | CP19: 3.086469968e-11 | CQ19: 2.676103228e-10 | CR19: 2.489253248e-11 | CS19: 1.648609027e-11 | CT19: 1.138950045e-11 | CU19: 3.857603126e-11 | CV19: 2.717437386e-12 | CW19: 1.116778892e-11 | CX19: 9.884038032e-12 | CY19: 5.334616082e-11 | CZ19: 1.134103922e-11 | DA19: 1.57116542e-11 | DB19: 6.2568839e-12 | DC19: 2.848293268e-10 | DD19: 6.331764557e-10 | DE19: 4.80379736e-10 | DF19: 4.181932578e-12 | DG19: 9.526546219e-12 | DH19: 2.337424698e-11 | DI19: 2.974054336e-11 | DJ19: 7.370215549e-12 | DK19: 1.96283545e-11 | DL19: 3.31049077e-11 | DM19: 2.948374878e-11 | DN19: 2.136130162e-11 | DO19: 2.908351338e-11 | DP19: 3.335831611e-11 | DQ19: 2.618166794e-11 | DR19: 1.833566632e-11 | DS19: -6.883382753e-15 | DT19: 2.091027351e-11 | DU19: 7.393863299e-12 | DV19: 2.996308757e-11 | DW19: 1.008593209e-11 | DX19: 3.01335068e-11 | DY19: 2.289313183e-11 | DZ19: 2.666156185e-11 | EA19: =EA17-EA16 -> 2.933636667e-11 | EB19: 1.986188991e-13 | EC19: 5.812017534e-14 | ED19: 2.88905011e-11 | EE19: 1.675509731e-11 | EF19: 1.530142679e-11 | EG19: 3.327177422e-11 | EH19: 2.785999209e-11 | EI19: 1.260558324e-11 | EJ19: 3.949124361e-11 | EK19: 2.699745982e-11 | EL19: 8.209100066e-12 | EM19: 2.669076071e-11 | EN19: 1.304106823e-11 | EO19: 1.536132332e-11 | EP19: 2.221661743e-11 | EQ19: 6.803946295e-12 | ER19: 2.212474648e-11 | ES19: 1.937688898e-11 | ET19: 2.209132877e-11 | EU19: 8.340828028e-12 | EV19: 1.870653632e-11 | EW19: 4.443223567e-11 | EX19: 4.404065446e-10 | EY19: 2.236988372e-10 | EZ19: 1.261801774e-11 | FA19: 1.858763143e-11 | FB19: 4.76409634e-10 | FC19: 1.291122764e-11 | FD19: 5.484184218e-10 | FE19: 8.509803973e-12 | FF19: 1.842024866e-10 | FG19: 1.06734066e-11 | FH19: 1.705957597e-11 | FI19: 7.893574683e-12 | FJ19: 5.961842131e-12 | FK19: -5.488387522e-13 | FL19: 1.564620655e-11 | FM19: 1.720840137e-11 | FN19: 7.571165916e-12 | FO19: 1.994987509e-11 | FP19: 1.648819969e-11 | FQ19: 9.200240569e-11 | FR19: 1.018074514e-13 | FS19: 4.361777606e-11 | FT19: 1.080030509e-11 | FU19: 6.561418076e-14 | FV19: 7.331357743e-13 | FW19: 1.139444095e-11 | FX19: 1.984384879e-11 | FY19: 9.422851388e-12 | FZ19: 2.186856252e-11 | GA19: 9.433454018e-12 | GB19: 1.374211855e-11 | GC19: 2.442285263e-11 | GD19: 2.035610569e-11 | GE19: 3.758826583e-11 | GF19: 2.501299168e-11 | GG19: 7.488465403e-11 | GH19: 2.801991972e-11 | GI19: 1.156330587e-11 | GJ19: 2.434835666e-11 | GK19: 9.453882122e-12 | GL19: 1.833394547e-11 | GM19: =GM17-GM16 -> 1.252331572e-13 | GN19: 1.790617654e-11 | GO19: 8.414935415e-12 | GP19: 3.380135061e-11 | GQ19: 3.337102816e-11 | GR19: 3.340500099e-11 | GS19: 3.431493978e-11 | GT19: 2.41713316e-11 | GU19: 2.103134333e-11 | GV19: 3.321798392e-11 | GW19: 3.820993522e-11 | GX19: 2.780869979e-11 | GY19: 1.388383852e-11 | GZ19: 1.329225618e-11 | HA19: 1.252331572e-13 | HB19: 2.656969089e-11 | HC19: 2.34390285e-11 | HD19: 2.493727447e-11 | HE19: 2.340744265e-11 | HF19: 1.252331572e-13 | HG19: 6.347755654e-12 | HH19: 1.93909333e-11 | HI19: 2.726548431e-10 | HJ19: 2.726548431e-10 | HK19: 6.874278924e-12 | HL19: 9.862610728e-12 | HM19: 1.508598801e-11 | HN19: 3.275474336e-11 | HO19: 8.474776436e-12 | HP19: 2.440458946e-11 | HQ19: 7.372769062e-11 | HR19: 1.162275831e-11 | HS19: 2.179811887e-11 | HT19: 7.62853225e-10 | HU19: 2.663286258e-11 | HV19: 2.679206856e-11 | HW19: 3.930761272e-11 | HX19: 3.193328935e-11 | HY19: 2.857658554e-11 | HZ19: 3.00757752e-11 | IA19: 2.256878018e-11 | IB19: 2.367456231e-11 | IC19: 8.934297746e-12 | ID19: 2.089017848e-11 | IE19: 1.802313854e-11 | IF19: 1.252331572e-13 | IG19: 3.592726117e-11 | IH19: 3.578143337e-11 | II19: 3.434369455e-11 | IJ19: 1.417682638e-11 | IK19: -5.58216251e-11 | IL19: 3.534383897e-11 | IM19: 2.861244575e-11 | IN19: 1.092931301e-11 | IO19: 1.627181723e-11 | IP19: 2.6908753e-11 | IQ19: 1.337335798e-11 | IR19: 2.553912637e-11
A21: sample name | B21: Observed residual peridotite composition
A22: sample name | C22: TZ - Lashaine Gibson | D22: TZ - Lashaine Gibson | E22: TZ - Lashaine Gibson | F22: TZ - Lashaine Gibson | G22: TZ - Lashaine Gibson | H22: TZ - Lashaine Gibson | I22: TZ - Lashaine Gibson | J22: TZ - Lashaine Gibson | K22: TZ - Lashaine Gibson | L22: TZ - Lashaine Gibson | M22: TZ - Lashaine Gibson | N22: TZ - Lashaine Gibson | O22: TZ - Lashaine Gibson | P22: TZ - Lashaine Gibson | Q22: TZ - Lashaine Gibson | R22: TZ - Lashaine Gibson | S22: TZ - Lashaine Gibson | T22: TZ - Lashaine Gibson | U22: TZ - Lashaine Gibson | V22: TZ - Lashaine Gibson | W22: TZ - Lashaine Gibson | X22: TZ - Lashaine Gibson | Y22: TZ - Lashaine Gibson | Z22: TZ - Lashaine Gibson | AA22: TZ - Lashaine Gibson | AB22: TZ - Lashaine Gibson | AC22: TZ - Lashaine Gibson | AD22: TZ - Lashaine Gibson | AE22: TZ - Lashaine Gibson | AF22: TZ - Lashaine Gibson | AG22: TZ - Lashaine Gibson | AH22: TZ - Lashaine Gibson | AI22: TZ - Lashaine Gibson | AJ22: TZ - Lashaine Gibson | AK22: TZ - Lashaine Gibson | AL22: TZ - Lashaine Gibson | AM22: TZ - Lashaine Gibson | AN22: TZ - Lashaine Gibson | AO22: TZ - Lashaine Gibson | AP22: TZ - Lashaine Gibson | AQ22: TZ - Lashaine Gibson | AR22: TZ - Lashaine Gibson | AS22: TZ - Lashaine Gibson | AT22: TZ - Lashaine Gibson | AU22: TZ - Lashaine Gibson | AV22: TZ - Lashaine Gibson | AW22: Tanzania-LeeRudnick | AX22: Tanzania-LeeRudnick | AY22: Tanzania-LeeRudnick | AZ22: Tanzania-LeeRudnick | BA22: Tanzania-LeeRudnick | BB22: Tanzania-LeeRudnick | BC22: Tanzania-LeeRudnick | BD22: Tanzania-LeeRudnick | BE22: Tanzania-LeeRudnick | BF22: Tanzania-LeeRudnick | BG22: Tanzania-LeeRudnick | BH22: Tanzania-LeeRudnick | BI22: Tanzania-LeeRudnick | BJ22: Tanzania-LeeRudnick | BK22: Tanzania-LeeRudnick | BL22: Tanzania-LeeRudnick | BM22: Tanzania-LeeRudnick | BN22: Tanzania-LeeRudnick | BO22: Tanzania-LeeRudnick | BP22: Tanzania-LeeRudnick | BQ22: Tanzania-LeeRudnick | BR22: Tanzania-LeeRudnick | BS22: Tanzania-LeeRudnick | BT22: Tanzania-LeeRudnick | BU22: Tanzania-LeeRudnick | BV22: Tanzania-LeeRudnick | BW22: Tanzania-LeeRudnick | BX22: Tanzania-LeeRudnick | BY22: Tanzania-LeeRudnick | BZ22: Tanzania-LeeRudnick | CA22: Tanzania-LeeRudnick | CB22: Tanzania-LeeRudnick | CC22: Tanzania-LeeRudnick | CD22: Tanzania-LeeRudnick | CE22: Tanzania-LeeRudnick | CF22: Tanzania-LeeRudnick | CG22: Tanzania-LeeRudnick | CH22: Tanzania-LeeRudnick | CI22: Tanzania-LeeRudnick | CJ22: Tanzania-LeeRudnick | CK22: Tanzania-LeeRudnick | CL22: Tanzania-LeeRudnick | CM22: Tanzania-LeeRudnick | CN22: Tanzania-LeeRudnick | CO22: Tanzania-LeeRudnick | CP22: Tanzania-LeeRudnick | CQ22: Tanzania-LeeRudnick | CR22: Tanzania-LeeRudnick | CS22: SlaveKopylova | CT22: SlaveKopylova | CU22: SlaveKopylova | CV22: SlaveKopylova | CW22: SlaveKopylova | CX22: SlaveKopylova | CY22: SlaveKopylova | CZ22: SlaveKopylova | DA22: SlaveKopylova | DB22: SlaveKopylova | DC22: SlaveKopylova | DD22: SlaveKopylova | DE22: SlaveKopylova | DF22: SlaveKopylova | DG22: Slave-Aulbach | DH22: Slave-Aulbach | DI22: Slave-Aulbach | DJ22: Slave-Aulbach | DK22: Slave-Aulbach | DL22: Slave-Aulbach | DM22: Slave-Aulbach | DN22: Slave-Aulbach | DO22: Slave-Aulbach | DP22: Slave-Aulbach | DQ22: Slave-Aulbach | DR22: Slave-Aulbach | DS22: Slave-Aulbach | DT22: Slave-Aulbach | DU22: Slave-Aulbach | DV22: Slave-Aulbach | DW22: Slave-Aulbach | DX22: Slave-Aulbach | DY22: KaapvaalFinschGibson | DZ22: KaapvaalFinschGibson | EA22: KaapvaalFinschGibson | EB22: KaapvaalFinschGibson | EC22: KaapvaalFinschGibson | ED22: KaapvaalFinschGibson | EE22: KaapvaalFinschGibson | EF22: KaapvaalFinschGibson | EG22: KaapvaalFinschGibson | EH22: KaapvaalFinschGibson | EI22: KaapvaalFinschGibson | EJ22: KaapvaalFinschGibson | EK22: KaapvaalFinschGibson | EL22: KaapvaalFinschGibson | EM22: KaapvaalSimon2007 | EN22: KaapvaalSimon2008 | EO22: KaapvaalSimon2009 | EP22: KaapvaalSimon2010 | EQ22: KaapvaalSimon2011 | ER22: KaapvaalSimon2012 | ES22: KaapvaalSimon2013 | ET22: KaapvaalSimon2014 | EU22: KaapvaalSimon2015 | EV22: KaapvaalSimon2016 | EW22: KaapvaalSimon2017 | EX22: KaapvaalSimon2018 | EY22: KaapvaalSimon2019 | EZ22: KaapvaalSimon2020 | FA22: KaapvaalSimon2021 | FB22: KaapvaalSimon2022 | FC22: KaapvaalSimon2023 | FD22: KaapvaalSimon2024 | FE22: KaapvaalSimon2025 | FF22: KaapvaalSimon2026 | FG22: KaapvaalSimon2027 | FH22: KaapvaalSimon2028 | FI22: KaapvaalSimon2029 | FJ22: KaapvaalSimon2030 | FK22: KaapvaalSimon2031 | FL22: KaapvaalSimon2032 | FM22: KaapvaalSimon2003-Lesotho | FN22: KaapvaalSimon2003-Lesotho | FO22: KaapvaalSimon2003-Lesotho | FP22: KaapvaalSimon2003-Lesotho | FQ22: KaapvaalSimon2003-Lesotho | FR22: KaapvaalSimon2003-Lesotho | FS22: KaapvaalSimon2003-Lesotho | FT22: KaapvaalSimon2003-Lesotho | FU22: KaapvaalSimon2003-Lesotho | FV22: KaapvaalSimon2003-Lesotho | FW22: KaapvaalSimon2003-Lesotho | FX22: KaapvaalSimon2003-Lesotho | FY22: KaapvaalSimon2003-Lesotho | FZ22: KaapvaalSimon2003-Lesotho | GA22: KaapvaalSimon2003-Lesotho | GB22: KaapvaalSimon2003-Lesotho | GC22: KaapvaalSimon2003-Lesotho | GD22: KaapvaalSimon2003-Lesotho | GE22: SiberiaIonvo2010 | GF22: SiberiaIonvo2011 | GG22: SiberiaIonvo2012 | GH22: SiberiaIonvo2013 | GI22: SiberiaIonvo2014 | GJ22: SiberiaIonvo2015 | GK22: SiberiaIonvo2016 | GL22: SiberiaIonvo2017 | GM22: SiberiaIonvo2018 | GN22: SiberiaIonvo2019 | GO22: SiberiaIonvo2020 | GP22: SiberiaIonvo2021 | GQ22: SiberiaIonvo2022 | GR22: SiberiaIonvo2023 | GS22: SiberiaIonvo2024 | GT22: SiberiaIonvo2025 | GU22: SiberiaIonvo2026 | GV22: SiberiaIonvo2027 | GW22: SiberiaIonvo2028 | GX22: SiberiaIonvo2029 | GY22: SiberiaIonvo2030 | GZ22: SiberiaIonvo2031 | HA22: SiberiaIonvo2032 | HB22: SiberiaIonvo2033 | HC22: SiberiaIonvo2034 | HD22: SiberiaIonvo2035 | HE22: SiberiaIonvo2036 | HF22: SiberiaIonvo2037 | HG22: SiberiaIonvo2038 | HH22: SiberiaIonvo2039 | HI22: SiberiaIonvo2040 | HJ22: SiberiaIonvo2041 | HK22: SiberiaIonvo2042 | HL22: SiberiaIonvo2043 | HM22: SiberiaIonvo2044 | HN22: SiberiaIonvo2045 | HO22: SiberiaIonvo2046 | HP22: SiberiaIonvo2047 | HQ22: SiberiaIonvo2048 | HR22: SiberiaIonvo2049 | HS22: SiberiaIonvo2050 | HT22: SiberiaIonvo2051 | HU22: SiberiaIonvo2052 | HV22: SiberiaIonvo2053 | HW22: SiberiaBoyd1998 | HX22: SiberiaBoyd1999 | HY22: SiberiaBoyd2000 | HZ22: SiberiaBoyd2001 | IA22: SiberiaBoyd2002 | IB22: SiberiaBoyd2003 | IC22: SiberiaBoyd2004 | ID22: SiberiaBoyd2005 | IE22: SiberiaBoyd2006 | IF22: SiberiaBoyd2007 | IG22: SiberiaBoyd2008 | IH22: SiberiaBoyd2009 | II22: SiberiaBoyd2010 | IJ22: SiberiaBoyd2011 | IK22: SiberiaBoyd2012 | IL22: SiberiaBoyd2013 | IM22: SiberiaBoyd2014 | IN22: SiberiaBoyd2015 | IO22: SiberiaBoyd2016 | IP22: SiberiaBoyd2017 | IQ22: SiberiaBoyd2018 | IR22: SiberiaBoyd2019
A23: sample name | C23: BD704 | D23: BD705 | E23: BD706 | F23: BD707 | G23: BD708 | H23: BD709 | I23: BD710 | J23: BD711 | K23: BD712 | L23: BD713 | M23: BD714 | N23: BD715 | O23: BD716 | P23: BD717 | Q23: BD718 | R23: BD719 | S23: BD720 | T23: BD721 | U23: BD722 | V23: BD723 | W23: BD724 | X23: BD725 | Y23: BD726 | Z23: BD727 | AA23: BD728 | AB23: BD729 | AC23: BD730 | AD23: BD740 | AE23: BD776 | AF23: BD782 | AG23: BD794 | AH23: BD797 | AI23: BD773 | AJ23: BD747 | AK23: BD1542 | AL23: BD772 | AM23: BD774 | AN23: BD825 | AO23: BD775 | AP23: BD796 | AQ23: BD822 | AR23: BD787 | AS23: BD781 | AT23: BD735 | AU23: BD771 | AV23: BD860 | AW23: LB1 ave | AX23: LB6 ave | AY23: LB7 ave | AZ23: LB8 ave | BA23: LB 9 ave | BB23: LB 11 ave | BC23: LB 14 ave | BD23: LB 16 ave | BE23: LB 17 ave | BF23: LB 18 ave | BG23: LB 19R ave | BH23: LB21 ave | BI23: LB 22 ave | BJ23: LB 23 ave | BK23: LB26 ave | BL23: LB 29 ave | BM23: LB 31 ave | BN23: LB33 ave | BO23: LB 36 ave | BP23: LB 39 ave | BQ23: LB 55 ave | BR23: LB61 ave | BS23: KAT 1 WSU | BT23: KAT 17 WSU | BU23: LB2 AVERAGE | BV23: LB4 AVERAGE | BW23: LB12 ave | BX23: LB24 ave | BY23: LB34 ave | BZ23: LB45 ave | CA23: LB50-1 | CB23: LB50-2 | CC23: LB53 ave | CD23: 89-661 | CE23: 89-662 | CF23: 89-663 | CG23: 89-664 | CH23: 89-669 | CI23: 89-671 | CJ23: 89-672 | CK23: 89-674 | CL23: 89-675 | CM23: 89-676 | CN23: 89-678 | CO23: 89-680 | CP23: 89-719 | CQ23: TZ 2-16 | CR23: BD730 | CS23: 38-4 | CT23: 61-1 | CU23: 36-1 | CV23: sp perid | CW23: 18-1 | CX23: AK38-1 | CY23: 38-5 | CZ23: 32-2 | DA23: 2-10" | DB23: coarse gt perd | DC23: 10-4" | DD23: 38-1 | DE23: def gt perid | DF23: gt perid | DG23: vr09361 | DH23: vr09371 | DI23: vr43466 | DJ23: vr43467 | DK23: vr50851 | DL23: vr50861 | DM23: vr50914 | DN23: vr51067 | DO23: vr67106 | DP23: vr67112 | DQ23: vr67125 | DR23: yk1912 | DS23: yk1917 | DT23: yk1920 | DU23: yk1938 | DV23: yk2471 | DW23: yk2472 | DX23: yk2474 | DY23: BD3692 | DZ23: BD3693 | EA23: F05JM6 | EB23: F05JM2 | EC23: F05JM1 | ED23: F05JM10 | EE23: F05JM7 | EF23: F05JM4 | EG23: F05BD3694 | EH23: F05JM8 | EI23: F05JM5 | EJ23: F05JM9 | EK23: FRB1402 | EL23: KR-4003 | EM23: K2 | EN23: K6 | EO23: K8 | EP23: K9 | EQ23: K1 | ER23: K13 | ES23: K14 | ET23: K24 | EU23: K25 | EV23: K27 | EW23: K12 | EX23: K18 | EY23: GP402 | EZ23: K15 | FA23: K17 | FB23: K3 | FC23: K19 | FD23: K21 | FE23: K5 | FF23: K7 | FG23: K10 | FH23: k11 | FI23: k16 | FJ23: k20 | FK23: K22 | FL23: K23 | FM23: LET2 | FN23: LET8 | FO23: LET28 | FP23: LET29 | FQ23: LET38 | FR23: LET64 | FS23: LQ5 | FT23: LQ6 | FU23: LQ8 | FV23: M1 | FW23: M2 | FX23: M5 | FY23: M9 | FZ23: M13 | GA23: GP404 | GB23: TP5 | GC23: TP6 | GD23: TP9 | GE23: U15 | GF23: U24 | GG23: U52 | GH23: U97 | GI23: U151 | GJ23: U504 | GK23: U1123 | GL23: U225 | GM23: Garnet granular peridotite | GN23: U29 | GO23: U64 | GP23: U260 | GQ23: u260d | GR23: U280 | GS23: U283 | GT23: U501 | GU23: U506 | GV23: U508 | GW23: U1109 | GX23: U1188 | GY23: U1147 | GZ23: u1147d | HA23: transitional garnet peridotites | HB23: U4 | HC23: U10 | HD23: U50 | HE23: U71 | HF23: porphyroclastic garnet perid | HG23: U9 | HH23: U57 | HI23: U70 | HJ23: U70 | HK23: U85 | HL23: u85d | HM23: U148 | HN23: U183 | HO23: U267 | HP23: U503 | HQ23: U507 | HR23: U532 | HS23: UBN | HT23: RV UBN | HU23: JP-1 | HV23: RV JP-1 | HW23: uv 191/89 | HX23: uv 563/89 | HY23: uv 564/89 | HZ23: uv 565/89 | IA23: uv 111/91 | IB23: uv 65/92 | IC23: uv 34/93 | ID23: uv 105/93 | IE23: uv 215/93 | IF23: 0 | IG23: UV 274/89 | IH23: UV 285/89 | II23: UV 293/89 | IJ23: UV 306/89 | IK23: UV 417/89 | IL23: UV 485/89 | IM23: Uv25/91 | IN23: Uv 100/91 | IO23: Uv 51/93 | IP23: Uv 76/93 | IQ23: Uv 178/93 | IR23: Uv 219/93
A24: INPUT | B24: MgO r (wt%) | C24: 42.69503546 | D24: 42.69503546 | E24: 42.69503546 | F24: 42.69503546 | G24: 42.69503546 | H24: 42.69503546 | I24: 42.69503546 | J24: 42.69503546 | K24: 42.69503546 | L24: 42.69503546 | M24: 42.69503546 | N24: 42.69503546 | O24: 42.69503546 | P24: 42.69503546 | Q24: 42.69503546 | R24: 42.69503546 | S24: 42.69503546 | T24: 42.69503546 | U24: 42.69503546 | V24: 42.69503546 | W24: 42.69503546 | X24: 42.69503546 | Y24: 42.69503546 | Z24: 42.69503546 | AA24: 42.69503546 | AB24: 42.69503546 | AC24: 42.69503546 | AD24: 44.15454089 | AE24: 44.51398001 | AF24: 45.19485819 | AG24: 44.62392731 | AH24: 44.80631132 | AI24: 46.6922146 | AJ24: 49.18527459 | AK24: 47.97344866 | AL24: 47.0150005 | AM24: 48.85202792 | AN24: 44.60779378 | AO24: 45.78772969 | AP24: 45.33091568 | AQ24: 48.33836858 | AR24: 48.38385866 | AS24: 46.22356495 | AT24: 47.89933022 | AU24: 45.59878727 | AV24: 39.67828418 | AW24: 48.08609237 | AX24: 48.57059428 | AY24: 49.17932573 | AZ24: 48.65869406 | BA24: 49.05140022 | BB24: 47.32614507 | BC24: 49.90647472 | BD24: 47.35803659 | BE24: 45.79072012 | BF24: 48.04132498 | BG24: 46.56167933 | BH24: 50.21657385 | BI24: 46.95679699 | BJ24: 48.18962581 | BK24: 48.44126258 | BL24: 47.48137983 | BM24: 45.94881573 | BN24: 47.59523442 | BO24: 46.4215872 | BP24: 44.91212427 | BQ24: 47.28169625 | BR24: 48.66070235 | BS24: 45.96702537 | BT24: 43.28495095 | BU24: 46.86235851 | BV24: 44.21498099 | BW24: 42.90108873 | BX24: 46.6766717 | BY24: 46.85970124 | BZ24: 39.6671022 | CA24: 44.93425438 | CB24: 44.95075011 | CC24: 44.89853837 | CD24: 48.41105881 | CE24: 49.64207514 | CF24: 47.27895436 | CG24: 47.91570513 | CH24: 45.09482906 | CI24: 46.71451571 | CJ24: 49.4170485 | CK24: 45.56650298 | CL24: 46.14986256 | CM24: 33.97011013 | CN24: 48.86252642 | CO24: 46.3314481 | CP24: 47.77921679 | CQ24: 48.68258232 | CR24: 42.96281086 | CS24: 46.19941814 | CT24: 43.99 | CU24: 43.69 | CV24: 43.78 | CW24: 40.14 | CX24: 41.78 | CY24: 37.7 | CZ24: 42.07 | DA24: 40.71 | DB24: 40.48 | DC24: 40.34 | DD24: 38.73 | DE24: 39.54 | DF24: 40.21 | DG24: 41.33466135 | DH24: 47.46772592 | DI24: 47.86069652 | DJ24: 48.80715706 | DK24: 46.50246305 | DL24: 46.58634538 | DM24: 45.03968254 | DN24: 48.66204163 | DO24: 48.15920398 | DP24: 46.67988107 | DQ24: 44.4666002 | DR24: 44.27860697 | DS24: 44.5 | DT24: 44.9304175 | DU24: 42.60178749 | DV24: 45.23809524 | DW24: 46.47467726 | DX24: 45.34653465 | DY24: 44.22036448 | DZ24: 44.65226292 | EA24: 45.18072289 | EB24: 44.50724478 | EC24: 46.76068709 | ED24: 46.44560186 | EE24: 46.18369987 | EF24: 43.08446757 | EG24: 47.37367685 | EH24: 47.75641026 | EI24: 48.53818616 | EJ24: 49.44836497 | EK24: 46.83480707 | EL24: 38.12 | EM24: 47.64900309 | EN24: 45.45550512 | EO24: 45.37496045 | EP24: 45.36283762 | EQ24: 42.60201433 | ER24: 44.01216443 | ES24: 43.85782582 | ET24: 44.20131291 | EU24: 42.8465294 | EV24: 42.80442804 | EW24: 44.04635339 | EX24: 46.56243307 | EY24: 44.56797967 | EZ24: 43.12997347 | FA24: 44.18085106 | FB24: 38.42359362 | FC24: 38.7843096 | FD24: 38.30793484 | FE24: 40.36833192 | FF24: 42.30323464 | FG24: 44.72853535 | FH24: 44.49594438 | FI24: 41.95167869 | FJ24: 41.63248133 | FK24: 44.03374403 | FL24: 45.49539676 | FM24: 46.82 | FN24: 46.85531447 | FO24: 46.15 | FP24: 44.92449245 | FQ24: 43.13431343 | FR24: 42.55574443 | FS24: 42.66426643 | FT24: 43.37 | FU24: 43.99439944 | FV24: 42.55425543 | FW24: 42.4691358 | FX24: 43.85561444 | FY24: 42.65 | FZ24: 45.0690138 | GA24: 43.6846422 | GB24: 45.16451645 | GC24: 45.98540146 | GD24: 45.25 | GE24: 44.27639324 | GF24: 47.59339618 | GG24: 43.96078549 | GH24: 48.22134387 | GI24: 45.07180779 | GJ24: 47.61762628 | GK24: 44.36990319 | GL24: 46.60991607 | GM24: 1 | GN24: 43.86978523 | GO24: 45.16887282 | GP24: 47.26487046 | GQ24: 47.23767886 | GR24: 46.62280353 | GS24: 47.0264449 | GT24: 45.38854745 | GU24: 46.02735899 | GV24: 46.88078999 | GW24: 48.74647619 | GX24: 44.5718402 | GY24: 44.17706833 | GZ24: 44.07072187 | HA24: 1 | HB24: 43.57800463 | HC24: 46.09364109 | HD24: 42.97817203 | HE24: 44.26629488 | HF24: 1 | HG24: 43.87116016 | HH24: 46.42135542 | HI24: 44.19735651 | HJ24: 44.19735651 | HK24: 38.1523111 | HL24: 38.25717322 | HM24: 42.73801251 | HN24: 46.35331281 | HO24: 38.1374061 | HP24: 44.33870984 | HQ24: 40.74935863 | HR24: 46.21169805 | HS24: 40.34519531 | HT24: 40.49681975 | HU24: 45.99961868 | HV24: 46.36253005 | HW24: 49.29630243 | HX24: 45.97884197 | HY24: 44.59015245 | HZ24: 45.3861286 | IA24: 47.49843105 | IB24: 46.81493286 | IC24: 43.81715833 | ID24: 45.6953341 | IE24: 43.97562344 | IF24: 1 | IG24: 48.23923179 | IH24: 48.13170394 | II24: 47.01547538 | IJ24: 45.66342665 | IK24: 39.32567232 | IL24: 47.44548389 | IM24: 45.96092111 | IN24: 42.04816184 | IO24: 45.42783133 | IP24: 43.93272519 | IQ24: 45.55022973 | IR24: 45.17071582
A25: INPUT | B25: FeO r (wt %) | C25: 7.279463019 | D25: 7.279463019 | E25: 7.279463019 | F25: 7.279463019 | G25: 7.279463019 | H25: 7.279463019 | I25: 7.279463019 | J25: 7.279463019 | K25: 7.279463019 | L25: 7.279463019 | M25: 7.279463019 | N25: 7.279463019 | O25: 7.279463019 | P25: 7.279463019 | Q25: 7.279463019 | R25: 7.279463019 | S25: 7.279463019 | T25: 7.279463019 | U25: 7.279463019 | V25: 7.279463019 | W25: 7.279463019 | X25: 7.279463019 | Y25: 7.279463019 | Z25: 7.279463019 | AA25: 7.279463019 | AB25: 7.279463019 | AC25: 7.279463019 | AD25: 6.704307075 | AE25: 7.677189866 | AF25: 7.58908182 | AG25: 6.735854619 | AH25: 6.20999292 | AI25: 7.480693828 | AJ25: 8.157111245 | AK25: 7.069051594 | AL25: 7.591666163 | AM25: 7.293235562 | AN25: 13.87529957 | AO25: 6.265428256 | AP25: 6.798486955 | AQ25: 6.924221551 | AR25: 5.85296326 | AS25: 9.483176234 | AT25: 6.700655571 | AU25: 8.303925215 | AV25: 16.32454527 | AW25: 6.475282624 | AX25: 7.517403144 | AY25: 7.690995043 | AZ25: 6.573623244 | BA25: 6.719639646 | BB25: 7.33200892 | BC25: 7.299657378 | BD25: 7.380578495 | BE25: 7.562396024 | BF25: 8.464305707 | BG25: 8.659921699 | BH25: 6.701804202 | BI25: 7.60681444 | BJ25: 7.352736866 | BK25: 7.288648341 | BL25: 7.251159952 | BM25: 7.414436023 | BN25: 7.478484948 | BO25: 7.109751107 | BP25: 7.884868053 | BQ25: 6.958565914 | BR25: 7.138823782 | BS25: 7.039194392 | BT25: 10.54709307 | BU25: 6.722115806 | BV25: 7.652576479 | BW25: 8.501184072 | BX25: 7.067636639 | BY25: 9.502630573 | BZ25: 8.55218807 | CA25: 7.927614707 | CB25: 7.875851039 | CC25: 8.113025248 | CD25: 6.823566435 | CE25: 8.565324685 | CF25: 9.125238134 | CG25: 8.916811299 | CH25: 9.758745967 | CI25: 11.61900356 | CJ25: 7.215527372 | CK25: 8.444523145 | CL25: 6.373956165 | CM25: 10.82594386 | CN25: 8.185493449 | CO25: 6.671335117 | CP25: 6.837544768 | CQ25: 5.744524593 | CR25: 7.325118471 | CS25: 6.262427929 | CT25: 6.28441 | CU25: 5.96447 | CV25: 6.05948 | CW25: 6.633468 | CX25: 6.675432 | CY25: 6.696374 | CZ25: 6.6994 | DA25: 7.273448 | DB25: 6.801424 | DC25: 6.32447 | DD25: 6.607496 | DE25: 6.470482 | DF25: 6.700442 | DG25: 6.772908367 | DH25: 7.845084409 | DI25: 6.766169154 | DJ25: 8.250497018 | DK25: 6.403940887 | DL25: 7.228915663 | DM25: 7.242063492 | DN25: 6.243805748 | DO25: 7.76119403 | DP25: 7.234886026 | DQ25: 7.078763709 | DR25: 6.666666667 | DS25: 8.9 | DT25: 7.753479125 | DU25: 6.256206554 | DV25: 7.242063492 | DW25: 8.043694141 | DX25: 7.425742574 | DY25: 6.925000747 | DZ25: 7.075987359 | EA25: 7.470278465 | EB25: 8.238383879 | EC25: 8.423910331 | ED25: 7.627635433 | EE25: 7.90128371 | EF25: 6.715372298 | EG25: 7.050129818 | EH25: 6.680689103 | EI25: 8.124502784 | EJ25: 7.176225027 | EK25: 6.752411576 | EL25: 8.02 | EM25: 6.633440665 | EN25: 6.147606883 | EO25: 6.314264318 | EP25: 6.705004881 | EQ25: 6.196444814 | ER25: 6.918536074 | ES25: 6.79642486 | ET25: 6.884061686 | EU25: 6.283890894 | EV25: 6.95710912 | EW25: 5.932917287 | EX25: 5.649530949 | EY25: 5.781152054 | EZ25: 6.542677984 | FA25: 6.697246809 | FB25: 7.199370277 | FC25: 7.721617415 | FD25: 7.186017867 | FE25: 7.90796359 | FF25: 5.989474239 | FG25: 6.091835017 | FH25: 6.558023807 | FI25: 6.474785064 | FJ25: 6.382177343 | FK25: 8.49048729 | FL25: 7.887148181 | FM25: 6.222466 | FN25: 5.893178682 | FO25: 6.46944 | FP25: 6.454193419 | FQ25: 5.962420242 | FR25: 6.166979302 | FS25: 6.058221822 | FT25: 6.365872 | FU25: 6.020382038 | FV25: 9.93460146 | FW25: 6.607660494 | FX25: 6.822063794 | FY25: 6.421904 | FZ25: 6.731066213 | GA25: 6.191242567 | GB25: 6.242488249 | GC25: 6.732072793 | GD25: 6.621784 | GE25: 5.926132849 | GF25: 6.55394284 | GG25: 5.910272234 | GH25: 6.634312303 | GI25: 6.101905842 | GJ25: 6.516829339 | GK25: 6.055919335 | GL25: 7.894579454 | GM25: 1 | GN25: 6.713949874 | GO25: 8.007888368 | GP25: 7.487504232 | GQ25: 7.511923688 | GR25: 7.344756301 | GS25: 7.269355032 | GT25: 7.697356644 | GU25: 6.54540375 | GV25: 7.461266512 | GW25: 7.413798293 | GX25: 7.183519925 | GY25: 6.421027364 | GZ25: 6.401894479 | HA25: 1 | HB25: 7.373198024 | HC25: 7.75695537 | HD25: 7.495265623 | HE25: 7.658218394 | HF25: 1 | HG25: 7.992842231 | HH25: 7.862965433 | HI25: 8.334244995 | HJ25: 8.334244995 | HK25: 7.861025809 | HL25: 7.85602908 | HM25: 7.803037824 | HN25: 7.277380143 | HO25: 7.890154719 | HP25: 7.630846575 | HQ25: 8.670922578 | HR25: 7.999521226 | HS25: 8.560764643 | HT25: 8.463965543 | HU25: 7.666603113 | HV25: 7.687512986 | HW25: 7.197620059 | HX25: 7.303329141 | HY25: 7.271686651 | HZ25: 7.20700952 | IA25: 6.438135816 | IB25: 6.580613154 | IC25: 6.120152292 | ID25: 6.584854974 | IE25: 6.701704577 | IF25: 1 | IG25: 7.509533904 | IH25: 7.500445752 | II25: 7.331816642 | IJ25: 7.923028809 | IK25: 8.330423896 | IL25: 7.341274549 | IM25: 7.596337839 | IN25: 6.6778277 | IO25: 7.871981073 | IP25: 7.467410762 | IQ25: 7.932444367 | IR25: 7.644587409
A26: INPUT | B26: SiO2 r (wt %) | C26: 44.95440729 | D26: 44.95440729 | E26: 44.95440729 | F26: 44.95440729 | G26: 44.95440729 | H26: 44.95440729 | I26: 44.95440729 | J26: 44.95440729 | K26: 44.95440729 | L26: 44.95440729 | M26: 44.95440729 | N26: 44.95440729 | O26: 44.95440729 | P26: 44.95440729 | Q26: 44.95440729 | R26: 44.95440729 | S26: 44.95440729 | T26: 44.95440729 | U26: 44.95440729 | V26: 44.95440729 | W26: 44.95440729 | X26: 44.95440729 | Y26: 44.95440729 | Z26: 44.95440729 | AA26: 44.95440729 | AB26: 44.95440729 | AC26: 44.95440729 | AD26: 44.8569995 | AE26: 43.30271525 | AF26: 42.13425831 | AG26: 44.92680464 | AH26: 45.51431172 | AI26: 42.35578862 | AJ26: 41.1386039 | AK26: 42.54249221 | AL26: 43.18936877 | AM26: 41.9743097 | AN26: 39.57305407 | AO26: 43.87990762 | AP26: 44.323562 | AQ26: 42.90030211 | AR26: 43.86669344 | AS26: 42.09466264 | AT26: 43.33265679 | AU26: 40.89944416 | AV26: 40.50319654 | AW26: 44.5178772 | AX26: 42.21310664 | AY26: 41.86931485 | AZ26: 43.9831135 | BA26: 43.38955577 | BB26: 43.96590201 | BC26: 42.14004632 | BD26: 43.87265369 | BE26: 45.16480674 | BF26: 42.35571991 | BG26: 42.96764438 | BH26: 41.89580435 | BI26: 44.05503565 | BJ26: 43.2336591 | BK26: 43.25550716 | BL26: 43.7813067 | BM26: 44.35870158 | BN26: 42.95588805 | BO26: 44.5805653 | BP26: 45.10791755 | BQ26: 44.0880954 | BR26: 43.10372147 | BS26: 45.54250173 | BT26: 44.8002233 | BU26: 44.36499145 | BV26: 45.20374625 | BW26: 44.47046677 | BX26: 44.15079152 | BY26: 42.0583807 | BZ26: 44.39826686 | CA26: 44.51911975 | CB26: 44.63862046 | CC26: 43.54209942 | CD26: 42.68068801 | CE26: 41.2122888 | CF26: 41.9429826 | CG26: 42.18961203 | CH26: 42.11258522 | CI26: 40.54581696 | CJ26: 41.91309039 | CK26: 43.59497217 | CL26: 45.55703829 | CM26: 46.20297433 | CN26: 42.02720078 | CO26: 44.66702638 | CP26: 43.46846076 | CQ26: 43.85355989 | CR26: 45.23635306 | CS26: 45.41655647 | CT26: 44.15160096 | CU26: 45.45797699 | CV26: 45.01860095 | CW26: 44.17856005 | CX26: 42.80462753 | CY26: 44.07294833 | CZ26: 43.67333093 | DA26: 43.61104192 | DB26: 43.66845741 | DC26: 45.85292744 | DD26: 48.24206265 | DE26: 47.04806968 | DF26: 44.65307992 | DG26: 47.50996016 | DH26: 42.60178749 | DI26: 43.58208955 | DJ26: 41.55069583 | DK26: 44.33497537 | DL26: 43.37349398 | DM26: 44.74206349 | DN26: 43.60753221 | DO26: 42.58706468 | DP26: 44.89593657 | DQ26: 45.76271186 | DR26: 43.68159204 | DS26: 44.3 | DT26: 43.24055666 | DU26: 46.27606753 | DV26: 43.75 | DW26: 43.59483615 | DX26: 44.15841584 | DY26: 46.12349419 | DZ26: 45.13923396 | EA26: 43.81433017 | EB26: 43.61849792 | EC26: 42.81821721 | ED26: 43.29657806 | EE26: 43.82525624 | EF26: 47.28783026 | EG26: 44.04833233 | EH26: 43.90024038 | EI26: 41.29872713 | EJ26: 42.36159427 | EK26: 44.87540193 | EL26: 44.9 | EM26: 44.10918008 | EN26: 46.53224955 | EO26: 46.13437401 | EP26: 45.90519579 | EQ26: 47.57553733 | ER26: 46.00461409 | ES26: 46.12346705 | ET26: 45.42044389 | EU26: 47.68626619 | EV26: 46.75803901 | EW26: 46.74675739 | EX26: 44.97751124 | EY26: 45.82803897 | EZ26: 46.62068966 | FA26: 45.91489362 | FB26: 46.88287154 | FC26: 45.99852771 | FD26: 47.34629532 | FE26: 46.52836579 | FF26: 47.60299231 | FG26: 46.36994949 | FH26: 45.85484041 | FI26: 46.77335007 | FJ26: 47.68065636 | FK26: 42.19114219 | FL26: 44.25690487 | FM26: 45.45 | FN26: 46.19538046 | FO26: 46.02 | FP26: 46.32463246 | FQ26: 48.18481848 | FR26: 47.95520448 | FS26: 48.14481448 | FT26: 47.38 | FU26: 47.63476348 | FV26: 44.98449845 | FW26: 48.15843621 | FX26: 46.44535546 | FY26: 48.01 | FZ26: 46.18923785 | GA26: 47.10887841 | GB26: 46.31463146 | GC26: 45.81541846 | GD26: 46.36 | GE26: 46.50118722 | GF26: 43.44356327 | GG26: 46.75035371 | GH26: 43.21809176 | GI26: 45.50335705 | GJ26: 43.58813639 | GK26: 46.45884385 | GL26: 41.36679891 | GM26: 1 | GN26: 45.57317608 | GO26: 44.28242747 | GP26: 42.95358146 | GQ26: 42.96502385 | GR26: 43.14423153 | GS26: 43.08763113 | GT26: 42.95204567 | GU26: 44.4808078 | GV26: 42.18369738 | GW26: 42.78734739 | GX26: 45.18213925 | GY26: 45.91734678 | GZ26: 46.03744807 | HA26: 1 | HB26: 45.32112481 | HC26: 43.68390656 | HD26: 45.13106748 | HE26: 43.84803067 | HF26: 1 | HG26: 44.58693707 | HH26: 43.24630988 | HI26: 43.67025033 | HJ26: 43.67025033 | HK26: 45.2580424 | HL26: 45.18954781 | HM26: 44.87243125 | HN26: 43.74425207 | HO26: 46.31610368 | HP26: 44.05941088 | HQ26: 44.47825309 | HR26: 43.06974146 | HS26: 45.22295509 | HT26: 45.64531477 | HU26: 44.11307236 | HV26: 43.79013188 | HW26: 42.72275641 | HX26: 45.07820167 | HY26: 44.94144041 | HZ26: 44.55946499 | IA26: 45.00374236 | IB26: 44.36673121 | IC26: 47.53603846 | ID26: 46.05395571 | IE26: 46.71516066 | IF26: 1 | IG26: 42.23133949 | IH26: 42.46000164 | II26: 43.26786502 | IJ26: 44.22179383 | IK26: 44.88071992 | IL26: 43.08434379 | IM26: 44.15115843 | IN26: 45.76020917 | IO26: 45.47495563 | IP26: 46.48881102 | IQ26: 44.280916 | IR26: 44.64324461
B27: atomic Mg# r | C27: =C24/40.3/(C24/40.3+C25/71.85) -> 0.9127157684 | D27: =D24/40.3/(D24/40.3+D25/71.85) -> 0.9127157684 | E27: 0.9127157684 | F27: 0.9127157684 | G27: 0.9127157684 | H27: 0.9127157684 | I27: 0.9127157684 | J27: 0.9127157684 | K27: 0.9127157684 | L27: 0.9127157684 | M27: 0.9127157684 | N27: 0.9127157684 | O27: 0.9127157684 | P27: 0.9127157684 | Q27: 0.9127157684 | R27: 0.9127157684 | S27: 0.9127157684 | T27: 0.9127157684 | U27: 0.9127157684 | V27: 0.9127157684 | W27: 0.9127157684 | X27: 0.9127157684 | Y27: 0.9127157684 | Z27: 0.9127157684 | AA27: 0.9127157684 | AB27: 0.9127157684 | AC27: 0.9127157684 | AD27: 0.9215195722 | AE27: 0.911797198 | AF27: 0.9139228251 | AG27: 0.9219437615 | AH27: 0.9278697861 | AI27: 0.9175474288 | AJ27: 0.9148957644 | AK27: 0.923660249 | AL27: 0.9169526392 | AM27: 0.9227333414 | AN27: 0.851451051 | AO27: 0.9287204524 | AP27: 0.9224076432 | AQ27: 0.9256304945 | AR27: 0.9364606039 | AS27: 0.8968032902 | AT27: 0.9272453444 | AU27: 0.9073233168 | AV27: 0.8125040059 | AW27: 0.9297744538 | AX27: 0.9201235349 | AY27: 0.9193577261 | AZ27: 0.9295629076 | BA27: 0.9286452804 | BB27: 0.9200511705 | BC27: 0.9241805418 | BD27: 0.9196139755 | BE27: 0.9152213745 | BF27: 0.9100653184 | BG27: 0.9055354106 | BH27: 0.9303577326 | BI27: 0.9167061783 | BJ27: 0.921166321 | BK27: 0.9221743337 | BL27: 0.9211013041 | BM27: 0.9170046762 | BN27: 0.9190070409 | BO27: 0.9208918354 | BP27: =BP24/40.3/(BP24/40.3+BP25/71.85) -> 0.9103561618 | BQ27: 0.9237468254 | BR27: 0.9239700902 | BS27: 0.9209015395 | BT27: 0.87976259 | BU27: 0.9255348771 | BV27: 0.9115130176 | BW27: 0.8999726649 | BX27: 0.921719867 | BY27: 0.8978736458 | BZ27: 0.8921183647 | CA27: 0.9099543242 | CB27: 0.9105195614 | CC27: 0.9079755843 | CD27: 0.9267343546 | CE27: 0.9117623689 | CF27: 0.9023180618 | CG27: 0.9054868745 | CH27: 0.8917587229 | CI27: 0.8775726653 | CJ27: 0.9243021552 | CK27: 0.9058414241 | CL27: 0.9281026403 | CM27: 0.8483560019 | CN27: 0.9141094436 | CO27: 0.9252718062 | CP27: 0.9256966931 | CQ27: 0.9379236401 | CR27: 0.9127157684 | CS27: 0.9293421916 | CT27: 0.9258154848 | CU27: 0.9288745311 | CV27: 0.9279610121 | CW27: 0.915171099 | CX27: 0.9177538757 | CY27: 0.9093993593 | CZ27: 0.9180051132 | DA27: 0.9089161595 | DB27: 0.9138758733 | DC27: 0.9191717485 | DD27: 0.9126666964 | DE27: 0.9159300924 | DF27: 0.9145242575 | DG27: 0.9158305985 | DH27: 0.915164677 | DI27: 0.9265313235 | DJ27: 0.9133967235 | DK27: 0.9282971146 | DL27: 0.9199337748 | DM27: 0.9172735913 | DN27: 0.9328639708 | DO27: 0.917101807 | DP27: 0.9200206616 | DQ27: 0.9180293585 | DR27: 0.9221275129 | DS27: 0.8991365286 | DT27: 0.9117508338 | DU27: 0.9238997019 | DV27: 0.9176065312 | DW27: 0.9115128449 | DX27: 0.915877628 | DY27: 0.9192556593 | DZ27: 0.9183717709 | EA27: 0.9151317025 | EB27: =EB24/40.3/(EB24/40.3+EB25/71.85) -> 0.9059431296 | EC27: 0.9082288031 | ED27: 0.9156556873 | EE27: 0.9124426176 | EF27: 0.9196050132 | EG27: 0.9229591978 | EH27: 0.9272450752 | EI27: 0.9141737262 | EJ27: 0.924727529 | EK27: 0.9251836697 | EL27: 0.8944505259 | EM27: 0.927571313 | EN27: 0.9294912253 | EO27: 0.9275989259 | EP27: 0.9234426182 | EQ27: 0.9245721814 | ER27: 0.9189742433 | ES27: 0.9200322721 | ET27: 0.9196628364 | EU27: 0.9239919732 | EV27: 0.9164534006 | EW27: 0.9297565468 | EX27: 0.9362820634 | EY27: 0.9321782948 | EZ27: 0.9215865177 | FA27: 0.9216387714 | FB27: 0.9049010155 | FC27: 0.8995487817 | FD27: 0.9048012952 | FE27: 0.9010016992 | FF27: 0.9264291756 | FG27: 0.9290305067 | FH27: 0.923645254 | FI27: 0.9203294854 | FJ27: 0.9208243495 | FK27: 0.9024051621 | FL27: 0.9113802668 | FM27: 0.9306278073 | FN27: 0.9341032623 | FO27: 0.927104309 | FP27: 0.9254273778 | FQ27: 0.9280471489 | FR27: 0.9248284102 | FS27: 0.9262302798 | FT27: 0.9239344655 | FU27: 0.9287166406 | FV27: 0.8842170497 | FW27: 0.9197368572 | FX27: 0.9197510868 | FY27: 0.9221225554 | FZ27: 0.9227057301 | GA27: 0.9263610485 | GB27: 0.928053195 | GC27: 0.9241186854 | GD27: 0.9241465164 | GE27: 0.9301703429 | GF27: 0.9282994756 | GG27: 0.9298792021 | GH27: 0.9283606557 | GI27: 0.9294246585 | GJ27: 0.928710246 | GK27: 0.9288894702 | GL27: 0.9132410336 | GM27: 0.6406598306 | GN27: =GN24/40.3/(GN24/40.3+GN25/71.85) -> 0.9209458028 | GO27: 0.9095547285 | GP27: 0.9183967905 | GQ27: 0.9181091797 | GR27: 0.9188133578 | GS27: 0.9202149891 | GT27: 0.9131416179 | GU27: 0.9261296043 | GV27: 0.918047699 | GW27: 0.9213997541 | GX27: 0.9170969937 | GY27: 0.924621115 | GZ27: 0.9246611107 | HA27: 0.6406598306 | HB27: 0.9133253051 | HC27: 0.913750574 | HD27: 0.9108980639 | HE27: 0.9115471212 | HF27: 0.6406598306 | HG27: 0.9072861383 | HH27: 0.9132377732 | HI27: 0.9043500377 | HJ27: 0.9043500377 | HK27: 0.8964045466 | HL27: 0.8967180582 | HM27: 0.9071063804 | HN27: 0.9190680121 | HO27: 0.8960241763 | HP27: 0.9119667107 | HQ27: 0.8933755362 | HR27: 0.9114993046 | HS27: 0.8936436592 | HT27: 0.8950724719 | HU27: 0.9145099703 | HV27: 0.914910563 | HW27: 0.9243048461 | HX27: 0.9181956585 | HY27: 0.9161963331 | HZ27: 0.9182182931 | IA27: 0.9293460267 | IB27: 0.9269193848 | IC27: 0.9273493249 | ID27: 0.9252180592 | IE27: 0.9212535938 | IF27: 0.6406598306 | IG27: 0.9196963414 | IH27: 0.9196209332 | II27: 0.9195673155 | IJ27: 0.9113113974 | IK27: 0.893803267 | IL27: 0.9201434746 | IM27: 0.9151617536 | IN27: 0.9182085685 | IO27: 0.9114156892 | IP27: 0.9129612737 | IQ27: 0.9110143542 | IR27: 0.9133055222
B28: atomic (Mg+Fe)/Si | C28: =(C24/40.3+C25/71.85)/(C26/60.08) -> 1.551295122 | D28: 1.551295122 | E28: 1.551295122 | F28: 1.551295122 | G28: 1.551295122 | H28: 1.551295122 | I28: 1.551295122 | J28: 1.551295122 | K28: 1.551295122 | L28: 1.551295122 | M28: 1.551295122 | N28: 1.551295122 | O28: 1.551295122 | P28: 1.551295122 | Q28: 1.551295122 | R28: 1.551295122 | S28: 1.551295122 | T28: 1.551295122 | U28: 1.551295122 | V28: 1.551295122 | W28: 1.551295122 | X28: 1.551295122 | Y28: 1.551295122 | Z28: 1.551295122 | AA28: 1.551295122 | AB28: 1.551295122 | AC28: 1.551295122 | AD28: 1.592448762 | AE28: 1.680768584 | AF28: 1.749721904 | AG28: 1.606137442 | AH28: 1.581718001 | AI28: 1.791133909 | AJ28: 1.948223654 | AK28: 1.820080664 | AL28: 1.769854488 | AM28: 1.880388985 | AN28: 1.973678307 | AO28: 1.675032638 | AP28: 1.652958013 | AQ28: 1.814758596 | AR28: 1.755904806 | AS28: 1.825425398 | AT28: 1.777232883 | AU28: 1.831887051 | AV28: 1.797475383 | AW28: 1.731937866 | AX28: 1.864252959 | AY28: 1.904702113 | AZ28: 1.774273523 | BA28: 1.814852055 | BB28: 1.744207055 | BC28: 1.910424778 | BD28: 1.749923647 | BE28: 1.651490352 | BF28: 1.858040699 | BG28: 1.784047982 | BH28: 1.920664247 | BI28: 1.733395352 | BJ28: 1.803924624 | BK28: 1.810447323 | BL28: 1.75530299 | BM28: 1.684026125 | BN28: 1.797408567 | BO28: =(BO24/40.3+BO25/71.85)/(BO26/60.08) -> 1.6857403 | BP28: 1.630513357 | BQ28: 1.730787021 | BR28: 1.82150585 | BS28: 1.633959155 | BT28: 1.637254295 | BU28: 1.701436828 | BV28: 1.599768042 | BW28: 1.598056703 | BX28: 1.709965375 | BY28: 1.849935647 | BZ28: 1.493024231 | CA28: 1.653622054 | CB28: 1.648776452 | CC28: 1.693064664 | CD28: 1.8246635 | CE28: 1.969547265 | CF28: 1.862403503 | CG28: 1.869885744 | CH28: 1.790162082 | CI28: 1.957255787 | CJ28: 1.901682593 | CK28: 1.720212091 | CL28: 1.62721073 | CM28: 1.292033463 | CN28: 1.896147578 | CO28: 1.671261397 | CP28: 1.770194268 | CQ28: 1.764518226 | CR28: 1.551295122 | CS28: 1.631817277 | CT28: 1.604382601 | CU28: 1.542551822 | CV28: 1.562352084 | CW28: 1.480090915 | CX28: 1.585536937 | CY28: 1.402295305 | CZ28: 1.564357372 | DA28: 1.531107532 | DB28: 1.512203779 | DC28: 1.426911494 | DD28: 1.311397355 | DE28: 1.367909625 | DF28: 1.467953511 | DG28: 1.416248445 | DH28: 1.81508193 | DI28: 1.766996696 | DJ28: 1.917214208 | DK28: 1.68448583 | DL28: 1.740614302 | DM28: 1.636082874 | DN28: 1.783345021 | DO28: 1.838268398 | DP28: 1.684806395 | DQ28: 1.577939983 | DR28: 1.638812956 | DS28: 1.665541739 | DT28: 1.699017635 | DU28: 1.485495794 | DV28: 1.679943342 | DW28: 1.743586178 | DX28: 1.671544898 | DY28: 1.554850661 | DZ28: 1.605815482 | EA28: =(EA24/40.3+EA25/71.85)/(EA26/60.08) -> 1.679880063 | EB28: 1.679128552 | EC28: 1.792593883 | ED28: 1.746560775 | EE28: 1.721803452 | EF28: 1.477048958 | EG28: 1.73720071 | EH28: 1.749021381 | EI28: 1.916650908 | EJ28: 1.881874818 | EK28: 1.681733996 | EL28: 1.415060815 | EM28: 1.736210598 | EN28: 1.566794446 | EO28: 1.580724804 | EP28: 1.59534029 | EQ28: 1.443877962 | ER28: 1.552004133 | ES28: 1.540802482 | ET28: 1.577538751 | EU28: 1.449702908 | EV28: 1.489178989 | EW28: 1.510824784 | EX28: 1.64838411 | EY28: 1.555312151 | EZ28: 1.496543216 | FA28: 1.556483914 | FB28: 1.350229458 | FC28: 1.397372821 | FD28: 1.333135832 | FE28: 1.435563054 | FF28: 1.430052486 | FG28: 1.547900203 | FH28: 1.56622776 | FI28: 1.45288891 | FJ28: 1.413637814 | FK28: 1.724199988 | FL28: 1.681557319 | FM28: 1.650237206 | FN28: 1.618789198 | FO28: 1.612580372 | FP28: 1.562261503 | FQ28: 1.43802852 | FR28: 1.430494394 | FS28: 1.42633214 | FT28: 1.476991771 | FU28: 1.482569396 | FV28: 1.59494645 | FW28: 1.429428164 | FX28: 1.530514601 | FY28: 1.436228572 | FZ28: 1.576517947 | GA28: 1.492349728 | GB28: 1.566502744 | GC28: 1.619218477 | GD28: 1.57455996 | GE28: 1.526056399 | GF28: 1.759373434 | GG28: 1.507574859 | GH28: 1.791768402 | GI28: 1.588810958 | GJ28: 1.753654694 | GK28: 1.532783869 | GL28: 1.839356311 | GM28: =(GM24/40.3+GM25/71.85)/(GM26/60.08) -> 2.327005358 | GN28: 1.558285454 | GO28: 1.671875274 | GP28: 1.786214504 | GQ28: 1.785270547 | GR28: 1.753368599 | GS28: 1.768174426 | GT28: 1.725238625 | GU28: 1.665698909 | GV28: 1.804720327 | GW28: 1.843336614 | GX28: 1.603627086 | GY28: 1.551247796 | GZ28: 1.543409637 | HA28: 2.327005358 | HB28: 1.569517086 | HC28: 1.721538587 | HD28: 1.558574021 | HE28: 1.651082726 | HF28: 2.327005358 | HG28: 1.616784296 | HH28: 1.752305291 | HI28: 1.668395193 | HJ28: 1.668395193 | HK28: 1.401993219 | HL28: 1.407485223 | HM28: 1.565313667 | HN28: 1.718846165 | HO28: 1.370011725 | HP28: 1.645092257 | HQ28: 1.528846481 | HR28: 1.754883127 | HS28: 1.488309946 | HT28: 1.47771741 | HU28: 1.699899939 | HV28: 1.72519071 | HW28: 1.861078655 | HX28: 1.656079151 | HY28: 1.614463749 | HZ28: 1.653720495 | IA28: 1.693082286 | IB28: 1.697109582 | IC28: 1.481844869 | ID28: 1.598768912 | IE28: 1.523350506 | IF28: 2.327005358 | IG28: 1.85159477 | IH28: 1.837668874 | II28: 1.76163819 | IJ28: 1.689235575 | IK28: 1.461501554 | IL28: 1.784204888 | IM28: 1.695796119 | IN28: 1.491909745 | IO28: 1.634022747 | IP28: 1.54316451 | IQ28: 1.683346938 | IR28: 1.651619555
B29: critcal (Mg+Fe)/Si | C29: =IF($O$5="Y",-82.814*C27^2+160.6*C27-76.05,0) -> 1.543943587 | D29: 1.543943587 | E29: 1.543943587 | F29: 1.543943587 | G29: 1.543943587 | H29: 1.543943587 | I29: 1.543943587 | J29: 1.543943587 | K29: 1.543943587 | L29: 1.543943587 | M29: 1.543943587 | N29: 1.543943587 | O29: 1.543943587 | P29: 1.543943587 | Q29: 1.543943587 | R29: 1.543943587 | S29: 1.543943587 | T29: 1.543943587 | U29: 1.543943587 | V29: 1.543943587 | W29: 1.543943587 | X29: 1.543943587 | Y29: 1.543943587 | Z29: 1.543943587 | AA29: 1.543943587 | AB29: 1.543943587 | AC29: 1.543943587 | AD29: 1.620533461 | AE29: 1.535212774 | AF29: 1.555203918 | AG29: 1.623899585 | AH29: 1.667808707 | AI29: 1.587566636 | AJ29: 1.564104578 | AK29: 1.637216352 | AL29: 1.582405223 | AM29: 1.630085873 | AN29: 0.6554649476 | AO29: 1.673634355 | AP29: 1.627546569 | AQ29: 1.651900269 | AR29: 1.72113486 | AS29: 1.372940319 | AT29: 1.663456038 | AU29: 1.4906916 | AV29: -0.2325754272 | AW29: 1.68068626 | AX29: 1.60924487 | AY29: 1.602915308 | AZ29: 1.679285647 | BA29: 1.673124379 | BB29: 1.608650919 | BC29: 1.641156483 | BD29: 1.605044073 | BE29: 1.567048315 | BF29: 1.518371496 | BG29: 1.471972369 | BH29: 1.68450966 | BI29: 1.580249337 | BJ29: 1.617707519 | BK29: 1.625716772 | BL29: 1.617185144 | BM29: 1.582859124 | BN29: 1.5999844 | BO29: =IF($O$5="Y",-82.814*BO27^2+160.6*BO27-76.05,0) -> 1.615497417 | BP29: 1.521234447 | BQ29: 1.637875097 | BR29: 1.639568152 | BS29: 1.615575765 | BT29: 1.14330882 | BU29: 1.651202492 | BV29: 1.532483395 | BW29: 1.410344633 | BX29: 1.6221266 | BY29: 1.385758495 | BZ29: 1.314602493 | CA29: 1.517275218 | CB29: 1.522836742 | CC29: 1.497388976 | CD29: 1.659846138 | CE29: 1.534878981 | CF29: 1.436953386 | CG29: 1.471456819 | CH29: 1.309973902 | CI29: 1.110310952 | CJ29: 1.642070986 | CK29: 1.47521386 | CL29: 1.669415284 | CM29: 0.5940833801 | CN29: 1.556923297 | CO29: 1.649274894 | CP29: 1.652382472 | CQ29: 1.728998304 | CR29: 1.543943587 | CS29: 1.677816422 | CT29: 1.653245953 | CU29: 1.674676717 | CV29: 1.66843919 | CW29: 1.566594936 | CX29: 1.589344425 | CY29: 1.511763282 | CZ29: 1.591498397 | DA29: 1.506922577 | DB29: 1.554770427 | DC29: 1.601363507 | DD29: 1.543480701 | DE29: 1.5733949 | DF29: 1.560724456 | DG29: 1.572508949 | DH29: 1.566536994 | DI29: 1.658399814 | DJ29: 1.550325715 | DK29: 1.670750177 | DL29: 1.607685518 | DM29: 1.585197632 | DN29: 1.70029685 | DO29: 1.583705164 | DP29: 1.608400249 | DQ29: 1.591705711 | DR29: 1.62534848 | DS29: 1.400638285 | DT29: 1.534768387 | DU29: 1.639035277 | DV29: 1.588076309 | DW29: 1.532481732 | DX29: 1.572927931 | DY29: 1.60206437 | DZ29: 1.594623159 | EA29: =IF($O$5="Y",-82.814*EA27^2+160.6*EA27-76.05,0) -> 1.566239371 | EB29: 1.476287756 | EC29: 1.499969997 | ED29: 1.570947466 | EE29: 1.541361947 | EF29: 1.604969804 | EG29: 1.631836444 | EH29: 1.663454148 | EI29: 1.557514219 | EJ29: 1.645250424 | EK29: 1.648626529 | EL29: 1.344097531 | EM29: 1.665736258 | EN29: 1.678809369 | EO29: 1.665928608 | EP29: 1.635554953 | EQ29: 1.644092759 | ER29: 1.599709247 | ES29: 1.608495663 | ET29: 1.605448746 | EU29: 1.63973365 | EV29: 1.578027744 | EW29: 1.680567988 | EX29: 1.720150979 | EY29: 1.696081047 | EZ29: 1.621066683 | FA29: 1.621482369 | FB29: 1.465203045 | FC29: 1.405438427 | FD29: 1.464132915 | FE29: 1.422131304 | FF29: 1.657669566 | FG29: 1.675727907 | FH29: 1.637102131 | FI29: 1.610930518 | FJ29: 1.614952123 | FK29: 1.437924 | FL29: 1.531203821 | FM29: 1.686260917 | FN29: 1.707718937 | FO29: 1.662464011 | FP29: 1.650416198 | FQ29: 1.669033236 | FR29: 1.64600006 | FS29: 1.656242715 | FT29: 1.639298557 | FU29: 1.673608518 | FV29: 1.207977731 | FW29: 1.606061042 | FX29: 1.606178645 | FY29: 1.625309463 | FZ29: 1.629871283 | GA29: 1.65718157 | GB29: 1.669074887 | GC29: 1.640690399 | GD29: 1.640900182 | GE29: 1.683287462 | GF29: 1.670766345 | GG29: 1.681377037 | GH29: 1.671184972 | GI29: 1.678366318 | GJ29: 1.673565168 | GK29: 1.674777573 | GL29: 1.548873312 | GM29: =IF($O$5="Y",-82.814*GM27^2+160.6*GM27-76.05,0) -> -7.150624972 | GN29: 1.615932937 | GO29: 1.513311557 | GP29: 1.594835572 | GQ29: 1.592387545 | GR29: 1.598356931 | GS29: 1.609994264 | GT29: 1.547943781 | GU29: 1.655517986 | GV29: 1.591862469 | GW29: 1.619577255 | GX29: 1.583663275 | GY29: 1.644457848 | GZ29: 1.644755958 | HA29: -7.150624972 | HB29: 1.549659964 | HC29: 1.553611792 | HD29: 1.526531351 | HE29: 1.532811646 | HF29: -7.150624972 | HG29: 1.490307734 | HH29: 1.548842854 | HI29: 1.45926974 | HJ29: 1.45926974 | HK29: 1.368116603 | HL29: 1.371911457 | HM29: 1.488448516 | HN29: 1.600495439 | HO29: 1.363490613 | HP29: 1.536834471 | HQ29: 1.330613965 | HR29: 1.532351351 | HS29: 1.33399494 | HT29: 1.351811181 | HU29: 1.560594009 | HV29: 1.564238749 | HW29: 1.642091194 | HX29: 1.593125058 | HY29: 1.575757595 | HZ29: 1.593317887 | IA29: 1.677842019 | IB29: 1.661158283 | IC29: 1.664185316 | ID29: 1.648879664 | IE29: 1.618407607 | IF29: -7.150624972 | IG29: 1.60572601 | IH29: 1.605101722 | II29: 1.60465726 | IJ29: 1.530538845 | IK29: 1.336001908 | IL29: 1.609408378 | IM29: 1.566510615 | IN29: 1.593235052 | IO29: 1.53154554 | IP29: 1.546253394 | IQ29: 1.527661709 | IR29: 1.549475402
B31: Calculated melt composition and melting degree F
B32: (FeOr/MgOr)/KD | C32: =C25/C24/C$16 -> 0.4977463926 | D32: 0.4929281195 | E32: 0.4962012819 | F32: 0.4914809275 | G32: 0.4870134858 | H32: 0.4724049025 | I32: 0.487931947 | J32: 0.4141203649 | K32: 0.4950149771 | L32: 0.4972860652 | M32: 0.4766771379 | N32: 0.4900788154 | O32: 0.4901921081 | P32: 0.4856670852 | Q32: 0.4866193091 | R32: 0.472045154 | S32: 0.4775718653 | T32: 0.4860604058 | U32: 0.4832507749 | V32: 0.4823372258 | W32: 0.4773412263 | X32: 0.4843560265 | Y32: 0.484827724 | Z32: 0.4831572429 | AA32: 0.4803782916 | AB32: 0.4762747273 | AC32: 0.4909321413 | AD32: 0.4318787143 | AE32: 0.5053646292 | AF32: 0.489941217 | AG32: 0.429777528 | AH32: 0.3913330783 | AI32: 0.4651536841 | AJ32: 0.493171351 | AK32: 0.4226886557 | AL32: 0.4705086535 | AM32: 0.4303600077 | AN32: 0.8189192846 | AO32: 0.3868374215 | AP32: 0.4277173207 | AQ32: 0.4095550812 | AR32: 0.3402691969 | AS32: 0.8788820148 | AT32: 0.3982996458 | AU32: 0.5561298995 | AV32: 1.12592009 | AW32: 0.38194592 | AX32: 0.4491137704 | AY32: 0.4560076978 | AZ32: 0.3837410148 | BA32: 0.3900444612 | BB32: 0.4475512683 | BC32: 0.4213178238 | BD32: 0.4508419608 | BE32: 0.4811914206 | BF32: 0.5374820423 | BG32: 0.5885093659 | BH32: 0.379661187 | BI32: 0.4723232937 | BJ32: 0.4407693644 | BK32: 0.4338223786 | BL32: 0.4401469404 | BM32: 0.4676411985 | BN32: 0.4558327151 | BO32: =BO25/BO24/BO$16 -> 0.4399514051 | BP32: 0.5200345552 | BQ32: 0.4212244005 | BR32: 0.4213602121 | BS32: 0.4391335759 | BT32: 0.6169205778 | BU32: 0.4086193583 | BV32: 0.5066046529 | BW32: 0.6556861872 | BX32: 0.4344949515 | BY32: 0.8750739906 | BZ32: 0.4666736204 | CA32: 0.5239695799 | CB32: 0.5186765761 | CC32: 0.5440966633 | CD32: 0.4021808381 | CE32: 0.5253681137 | CF32: 0.6691224041 | CG32: 0.6012383277 | CH32: 0.3853279532 | CI32: 0.6137885396 | CJ32: 0.4199063786 | CK32: 0.5754164481 | CL32: 0.3911081922 | CM32: 0.917677671 | CN32: 0.4994464149 | CO32: 0.4097770516 | CP32: 0.4085208149 | CQ32: 0.331503506 | CR32: 0.4919249318 | CS32: 0.3832358601 | CT32: 0.4035291176 | CU32: 0.3839827404 | CV32: 0.3897530294 | CW32: 0.4649756474 | CX32: 0.4524066562 | CY32: 0.4911845591 | CZ32: 0.451412857 | DA32: 0.5109953164 | DB32: 0.4746702272 | DC32: 0.4398773245 | DD32: 0.4760256512 | DE32: 0.4582844905 | DF32: 0.4694396188 | DG32: 0.464166456 | DH32: 0.4862254597 | DI32: 0.4030070099 | DJ32: 0.5059676775 | DK32: 0.3901742211 | DL32: 0.4471181263 | DM32: 0.4634994827 | DN32: 0.3626612464 | DO32: 0.4718843187 | DP32: 0.446651542 | DQ32: 0.4566906035 | DR32: 0.4279999164 | DS32: 0.738633114 | DT32: 0.5074191434 | DU32: 0.4139429741 | DV32: 0.4614879141 | DW32: 0.5157370937 | DX32: 0.4748282406 | DY32: 0.4474985634 | DZ32: 0.4546368597 | EA32: =EA25/EA24/EA$16 -> 0.4802012045 | EB32: 0.5653866688 | EC32: 0.5523494656 | ED32: 0.4794599309 | EE32: 0.5059925261 | EF32: 0.4428351615 | EG32: 0.4268019121 | EH32: 0.3981690535 | EI32: 0.4979138251 | EJ32: 0.4169588595 | EK32: 0.4109368171 | EL32: 0.6245224396 | EM32: 0.3959210485 | EN32: 0.3816799979 | EO32: 0.3936082584 | EP32: 0.4207776108 | EQ32: 0.4096809231 | ER32: 0.4490395929 | ES32: 0.4414354477 | ET32: 0.4446313111 | EU32: 0.4137019718 | EV32: 0.4639023885 | EW32: 0.3788406314 | EX32: 0.3405626592 | EY32: 0.3643625931 | EZ32: 0.4297188159 | FA32: 0.4311204436 | FB32: 0.5241297256 | FC32: 0.5703894932 | FD32: 0.5237739324 | FE32: 0.5825680071 | FF32: 0.3976873603 | FG32: 0.3839498141 | FH32: 0.4182436241 | FI32: 0.4358092636 | FJ32: 0.4320028272 | FK32: 0.6165688941 | FL32: 0.5130302676 | FM32: 0.3755737208 | FN32: 0.353966433 | FO32: 0.3975533288 | FP32: 0.4071262349 | FQ32: 0.3885712616 | FR32: 0.4080022112 | FS32: 0.3993500619 | FT32: 0.4148024312 | FU32: 0.3852456267 | FV32: 0.5803927592 | FW32: 0.4407216337 | FX32: 0.4433557618 | FY32: 0.4254185706 | FZ32: 0.4253144815 | GA32: 0.3997097668 | GB32: 0.3905117955 | GC32: 0.4170612496 | GD32: 0.4159351536 | GE32: 0.3764756664 | GF32: 0.3911080442 | GG32: 0.378010607 | GH32: 0.3912387586 | GI32: 0.3817765043 | GJ32: 0.3884584259 | GK32: 0.384511672 | GL32: 0.5003237999 | GM32: =GM25/GM24/GM$16 -> 1.151272189 | GN32: 0.4352588346 | GO32: 0.5290541678 | GP32: 0.4598372482 | GQ32: 0.4619861616 | GR32: 0.4554281912 | GS32: 0.445836961 | GT32: 0.4970850757 | GU32: 0.4037818291 | GV32: 0.4617209316 | GW32: 0.4398939359 | GX32: 0.4637002645 | GY32: 0.4114426435 | GZ32: 0.4110471746 | HA32: 1.151272189 | HB32: 0.4893780843 | HC32: 0.4942257041 | HD32: 0.5065074966 | HE32: 0.506521381 | HF32: 1.151272189 | HG32: 0.5449998694 | HH32: 0.4997279621 | HI32: 0.5846315229 | HJ32: 0.5846315229 | HK32: 0.5855003555 | HL32: 0.5862286897 | HM32: 0.5391671696 | HN32: 0.4530202897 | HO32: 0.5894710778 | HP32: 0.5032252197 | HQ32: 0.3086103107 | HR32: 0.5148165643 | HS32: 0.5596894649 | HT32: 0.891423312 | HU32: 0.4875715018 | HV32: 0.4853108132 | HW32: 0.4197507752 | HX32: 0.4587245557 | HY32: 0.4704293914 | HZ32: 0.4573083656 | IA32: 0.38425489 | IB32: 0.3994139457 | IC32: 0.3936233818 | ID32: 0.4093988831 | IE32: 0.4333683284 | IF32: 1.151272189 | IG32: 0.4517758394 | IH32: 0.4521583339 | II32: 0.4505719663 | IJ32: 0.5143572697 | IK32: 0.8071169328 | IL32: 0.4470758426 | IM32: 0.4821413344 | IN32: 0.4499981728 | IO32: 0.512428935 | IP32: 0.4935054348 | IQ32: 0.5166641205 | IR32: 0.4949670334
A33: OUTPUT | B33: MgO m (wt%) | C33: =(C25*(C24-C13)-C24*(C25-C14))/((C14-C25)+C32*(C24-C13)) -> 21.36914159 | D33: 21.52746239 | E33: 21.41965723 | F33: 21.57547397 | G33: 21.72504469 | H33: 22.22895648 | I33: 21.69412535 | J33: 24.49585278 | K33: 21.45860449 | L33: 21.38416653 | M33: 22.07918677 | N33: 21.62219469 | O33: 21.61841208 | P33: 21.77052995 | Q33: 21.73834142 | R33: 22.24166081 | S33: 22.04807597 | T33: 21.75722277 | U33: 21.85263923 | V33: 21.88384437 | W33: 22.05608719 | X33: 21.81500465 | Y33: 21.79898247 | Z33: 21.85583002 | AA33: 21.95105927 | AB33: 22.09320774 | AC33: 21.59373638 | AD33: 24.94355858 | AE33: 18.09427842 | AF33: 18.84230997 | AG33: 24.63135849 | AH33: 27.48981651 | AI33: 19.78558305 | AJ33: 15.9052568 | AK33: 22.52844877 | AL33: 19.08727824 | AM33: 21.32633094 | AN33: 660.8712808 | AO33: 27.02992587 | AP33: 24.1315287 | AQ33: 23.40913014 | AR33: 29.01630002 | AS33: 2.283971272 | AT33: 24.62903763 | AU33: 13.02451208 | AV33: 48.32302454 | AW33: 25.86148726 | AX33: 19.8955391 | AY33: 18.95687197 | AZ33: 25.37867056 | BA33: 24.63082557 | BB33: 20.84251779 | BC33: 21.50396926 | BD33: 20.53722452 | BE33: 19.10063041 | BF33: 13.11964449 | BG33: 10.44263331 | BH33: 24.89410705 | BI33: 18.97267339 | BJ33: 20.84507422 | BK33: 21.28043168 | BL33: 21.3695199 | BM33: 20.15666251 | BN33: 19.94536666 | BO33: =(BO25*(BO24-BO13)-BO24*(BO25-BO14))/((BO14-BO25)+BO32*(BO24-BO13)) -> 22.17154158 | BP33: 16.43369785 | BQ33: 23.12205192 | BR33: 22.2090856 | BS33: 22.61214195 | BT33: -56.65620131 | BU33: 24.47773684 | BV33: 18.27749885 | BW33: 8.297481541 | BX33: 22.43962125 | BY33: 2.783070992 | BZ33: -10.70743934 | CA33: 16.0747648 | CB33: 16.51947493 | CC33: 14.41354264 | CD33: 23.98584965 | CE33: 13.29263645 | CF33: 6.77031738 | CG33: 9.331671771 | CH33: -5.32340778 | CI33: -33.1891547 | CJ33: 21.89222092 | CK33: 11.68436704 | CL33: 26.42202109 | CM33: 21.58178992 | CN33: 15.57276486 | CO33: 24.77952836 | CP33: 23.85316244 | CQ33: 29.55337563 | CR33: 21.12393999 | CS33: 27.001842 | CT33: 27.34152051 | CU33: 29.04119263 | CV33: 28.55212093 | CW33: 28.89987689 | CX33: 26.45473858 | CY33: 38.60618747 | CZ33: 26.05940107 | DA33: 23.31700364 | DB33: 27.28225705 | DC33: 30.13630201 | DD33: 32.89459622 | DE33: 31.01171972 | DF33: 28.38227259 | DG33: 26.29688948 | DH33: 17.44349872 | DI33: 24.26163893 | DJ33: 15.09262774 | DK33: 26.23721537 | DL33: 21.42636628 | DM33: 21.33274838 | DN33: 27.10213517 | DO33: 18.21628182 | DP33: 21.39455439 | DQ33: 22.50576206 | DR33: 25.12953534 | DS33: 5.319795378 | DT33: 17.52613367 | DU33: 28.15309211 | DV33: 21.32203253 | DW33: 15.63996236 | DX33: 20.04639992 | DY33: 23.56340061 | DZ33: 22.49243288 | EA33: =(EA25*(EA24-EA13)-EA24*(EA25-EA14))/((EA14-EA25)+EA32*(EA24-EA13)) -> 19.72095276 | EB33: 13.00637441 | EC33: 12.67609267 | ED33: 18.73254464 | EE33: 16.65076153 | EF33: 25.3046437 | EG33: 22.58448434 | EH33: 24.73150087 | EI33: 15.8617607 | EJ33: 22.12623758 | EK33: 24.30562509 | EL33: 16.14115948 | EM33: 24.98697206 | EN33: 27.67986953 | EO33: 26.83508971 | EP33: 24.67750124 | EQ33: 28.45456747 | ER33: 23.66180296 | ES33: 24.48004957 | ET33: 23.82830656 | EU33: 27.86381847 | EV33: 23.8974809 | EW33: 29.06438589 | EX33: 29.95106803 | EY33: 29.61969024 | EZ33: 26.30085197 | FA33: 24.97763182 | FB33: 31.57075435 | FC33: 22.85462031 | FD33: 32.51909899 | FE33: 15.89734109 | FF33: 29.63565373 | FG33: 28.10368373 | FH33: 25.69568734 | FI33: 27.46716744 | FJ33: 28.25218833 | FK33: 9.853297914 | FL33: 16.56693516 | FM33: 27.16895646 | FN33: 28.79900884 | FO33: 25.9100596 | FP33: 26.17078636 | FQ33: 29.28888473 | FR33: 28.62966011 | FS33: 29.08926182 | FT33: 27.16145507 | FU33: 28.6650712 | FV33: -37.68709157 | FW33: 26.31531163 | FX33: 24.3215707 | FY33: 27.24851843 | FZ33: 24.57091359 | GA33: 27.93517349 | GB33: 27.24669028 | GC33: 24.45402885 | GD33: 25.1735706 | GE33: 29.02566096 | GF33: 25.41857506 | GG33: 29.19860982 | GH33: 25.0148882 | GI33: 27.97790687 | GJ33: 25.61960731 | GK33: 28.37519455 | GL33: 16.82902249 | GM33: =(GM25*(GM24-GM13)-GM24*(GM25-GM14))/((GM14-GM25)+GM32*(GM24-GM13)) -> 0.842374905 | GN33: 24.97863778 | GO33: 15.45717858 | GP33: 19.82880919 | GQ33: 19.66304292 | GR33: 20.680408 | GS33: 21.20523006 | GT33: 18.0415485 | GU33: 25.50503313 | GV33: 19.94227766 | GW33: 20.57557726 | GX33: 21.78071315 | GY33: 26.5498846 | GZ33: 26.68872685 | HA33: 0.842374905 | HB33: 20.57282789 | HC33: 17.72343731 | HD33: 19.71767194 | HE33: 18.2332227 | HF33: 0.842374905 | HG33: 15.16171237 | HH33: 17.01125153 | HI33: 11.7928278 | HJ33: 11.7928278 | HK33: 25.24798613 | HL33: 23.83732967 | HM33: 16.87171549 | HN33: 21.09959722 | HO33: 24.41422249 | HP33: 18.4603911 | HQ33: 0.9384112475 | HR33: 15.8920106 | HS33: 1.293475329 | HT33: 3.045915663 | HU33: 18.3734012 | HV33: 18.28924863 | HW33: 21.97358855 | HX33: 20.91001451 | HY33: 21.16522137 | HZ33: 21.55131464 | IA33: 26.03726845 | IB33: 25.26846015 | IC33: 28.24027735 | ID33: 25.3199098 | IE33: 25.01589218 | IF33: 0.842374905 | IG33: 19.87297223 | IH33: 19.90824987 | II33: 20.80558653 | IJ33: 16.32476551 | IK33: 1.76833681 | IL33: 20.79988268 | IM33: 18.8780035 | IN33: 26.20891542 | IO33: 16.67176057 | IP33: 19.78051784 | IQ33: 16.21442271 | IR33: 18.4175786
A34: OUTPUT | B34: FeO m (wt%) | C34: =C25/C24*C33/C$16 -> 10.63641314 | D34: 10.61149156 | E34: 10.62846137 | F34: 10.60393396 | G34: 10.58038974 | H34: 10.50106802 | I34: 10.58525682 | J34: 10.14423149 | K34: 10.62233061 | L34: 10.63404803 | M34: 10.52464356 | N34: 10.59657956 | O34: 10.59717499 | P34: 10.57322982 | Q34: 10.57829668 | R34: 10.4990682 | S34: 10.52954077 | T34: 10.57532453 | U34: 10.56030484 | V34: 10.55539278 | W34: 10.52827971 | X34: 10.56622897 | Y34: 10.56875106 | Z34: 10.55980257 | AA34: 10.54481235 | AB34: 10.52243649 | AC34: 10.60105924 | AD34: 10.77259201 | AE34: 9.144208307 | AF34: 9.231624279 | AG34: 10.58600436 | AH34: 10.75767452 | AI34: 9.203336847 | AJ34: 7.844016983 | AK34: 9.522519726 | AL34: 8.980729581 | AM34: 9.177999948 | AN34: 541.2002365 | AO34: 10.45618683 | AP34: 10.3214728 | AQ34: 9.587328195 | AR34: 9.873353105 | AS34: 2.007341273 | AT34: 9.809736963 | AU34: 7.243320592 | AV34: 54.40786412 | AW34: 9.877689543 | AX34: 8.935360578 | AY34: 8.644479544 | AZ34: 9.738836795 | BA34: 9.607117089 | BB34: 9.328095271 | BC34: 9.060005531 | BD34: 9.259042571 | BE34: 9.191059482 | BF34: 7.051573316 | BG34: 6.145587507 | BH34: 9.451326232 | BI34: 8.961235587 | BJ34: 9.187870113 | BK34: 9.231927488 | BL34: 9.405728804 | BM34: 9.426085816 | BN34: 9.091750638 | BO34: =BO25/BO24*BO33/BO$16 -> 9.75440087 | BP34: 8.546090752 | BQ34: 9.739572459 | BR34: 9.358025021 | BS34: 9.929750752 | BT34: -34.95237645 | BU34: 10.00207712 | BV34: 9.25946596 | BW34: 5.440544035 | BX34: 9.749902149 | BY34: 2.435393039 | BZ34: -4.996879484 | CA34: 8.422687758 | CB34: 8.568264697 | CC34: 7.842360455 | CD34: 9.646649115 | CE34: 6.983527338 | CF34: 4.530171042 | CG34: 5.61055873 | CH34: -2.051257824 | CI34: -20.37112279 | CJ34: 9.192683205 | CK34: 6.72337698 | CL34: 10.3338689 | CM34: 19.80512671 | CN34: 7.777761577 | CO34: 10.15408207 | CP34: 9.744513359 | CQ34: 9.797047633 | CR34: 10.39139274 | CS34: 10.34807414 | CT34: 11.03309965 | CU34: 11.15131673 | CV34: 11.12827563 | CW34: 13.43773897 | CX34: 11.96829982 | CY34: 18.96276317 | CZ34: 11.76354869 | DA34: 11.91487965 | DB34: 12.95007516 | DC34: 13.2562759 | DD34: 15.65867159 | DE34: 14.21219017 | DF34: 13.32376322 | DG34: 12.20613399 | DH34: 8.481473184 | DI34: 9.77761056 | DJ34: 7.636381806 | DK34: 10.23708507 | DL34: 9.580116745 | DM34: 9.887717841 | DN34: 9.828894119 | DO34: 8.595977735 | DP34: 9.555910706 | DQ34: 10.27817006 | DR34: 10.75543903 | DS34: 3.929377026 | DT34: 8.893095735 | DU34: 11.65377468 | DV34: 9.839860316 | DW34: 8.066108734 | DX34: 9.518596805 | DY34: 10.54458792 | DZ34: 10.22588905 | EA34: =EA25/EA24*EA33/EA$16 -> 9.47002527 | EB34: 7.3536307 | EC34: 7.001633014 | ED34: 8.981504556 | EE34: 8.425160888 | EF34: 11.20578598 | EG34: 9.639101099 | EH34: 9.847318292 | EI34: 7.897789944 | EJ34: 9.225730788 | EK34: 9.988076212 | EL34: 10.0805163 | EM34: 9.892868174 | EN34: 10.56485255 | EO34: 10.56251293 | EP34: 10.38374001 | EQ34: 11.65729347 | ER34: 10.62508637 | ES34: 10.80636164 | ET34: 10.59481119 | EU34: 11.52731664 | EV34: 11.08609847 | EW34: 11.0107703 | EX34: 10.20021537 | EY34: 10.79230714 | EZ34: 11.30197097 | FA34: 10.76836771 | FB34: 16.54717082 | FC34: 13.0360353 | FD34: 17.03265636 | FE34: 9.261282315 | FF34: 11.7857249 | FG34: 10.79040414 | FH34: 10.7470574 | FI34: 11.97044601 | FJ34: 12.20502523 | FK34: 6.075236998 | FL34: 8.499339176 | FM34: 10.20394607 | FN34: 10.19388243 | FO34: 10.30063044 | FP34: 10.65481372 | FQ34: 11.38081889 | FR34: 11.68096463 | FS34: 11.61679851 | FT34: 11.2666376 | FU34: 11.04309332 | FV34: -21.87331506 | FW34: 11.59772713 | FX34: 10.78310851 | FY34: 11.59202576 | FZ34: 10.45036537 | GA34: 11.16596168 | GB34: 10.64015394 | GC34: 10.19882783 | GD34: 10.47057295 | GE34: 10.92745505 | GF34: 9.941409179 | GG34: 11.03738422 | GH34: 9.786793805 | GI34: 10.68130748 | GJ34: 9.95215233 | GK34: 10.9105935 | GL34: 8.419960479 | GM34: =GM25/GM24*GM33/GM$16 -> 0.9698028011 | GN34: 10.87217277 | GO34: 8.17768475 | GP34: 9.118025054 | GQ34: 9.084053724 | GR34: 9.418440807 | GS34: 9.454075329 | GT34: 8.9681845 | GU34: 10.29846893 | GV34: 9.207767018 | GW34: 9.051071666 | GX34: 10.09972245 | GY34: 10.92375471 | GZ34: 10.97032576 | HA34: 0.9698028011 | HB34: 10.0678911 | HC34: 8.759378284 | HD34: 9.987148654 | HE34: 9.235517145 | HF34: 0.9698028011 | HG34: 8.263131261 | HH34: 8.500998061 | HI34: 6.894458877 | HJ34: 6.894458877 | HK34: 14.78270485 | HL34: 13.97412654 | HM34: 9.096675089 | HN34: 9.558545647 | HO34: 14.39147805 | HP34: 9.289734368 | HQ34: 0.2896033866 | HR34: 8.181470298 | HS34: 0.7239445147 | HT34: 2.715200229 | HU34: 8.958346815 | HV34: 8.875970124 | HW34: 9.223430827 | HX34: 9.591937113 | HY34: 9.956742207 | HZ34: 9.855596477 | IA34: 10.00494772 | IB34: 10.09257537 | IC34: 11.11603347 | ID34: 10.36594279 | IE34: 10.84109538 | IF34: 0.9698028011 | IG34: 8.978128709 | IH34: 9.001681092 | II34: 9.374414035 | IJ34: 8.396761815 | IK34: 1.427254582 | IL34: 9.299125077 | IM34: 9.1018658 | IN34: 11.79396405 | IO34: 8.543092513 | IP34: 9.761793055 | IQ34: 8.377410449 | IR34: 9.11609424
A35: OUTPUT | B35: Mg# (atomic) | C35: =C33/40.3/(C33/40.3+C34/71.85) -> 0.7817499873 | D35: 0.7834050862 | E35: 0.7822799776 | F35: 0.7839035727 | G35: 0.7854463967 | H35: 0.7905341207 | I35: 0.7851287118 | J35: 0.8115063289 | K35: 0.7826873815 | L35: 0.7819078096 | M35: 0.7890394251 | N35: 0.7843871369 | O35: 0.7843480421 | P35: 0.7859125656 | Q35: 0.7855828166 | R35: 0.7906602418 | S35: 0.7887271089 | T35: 0.7857763277 | U35: 0.7867505623 | V35: 0.7870678545 | W35: 0.7888075928 | X35: 0.7863670301 | Y35: 0.7862034607 | Z35: 0.7867830359 | AA35: 0.7877490915 | AB35: 0.7891799724 | AC35: 0.7840927686 | AD35: 0.8049995147 | AE35: 0.7791473108 | AF35: 0.7844346244 | AG35: 0.8057639598 | AH35: 0.8200114938 | AI35: 0.7930840557 | AJ35: 0.7833213671 | AK35: 0.8083537509 | AL35: 0.7911993635 | AM35: 0.805551899 | AN35: 0.6852486703 | AO35: 0.8217105597 | AP35: 0.8065149071 | AQ35: 0.8131961209 | AR35: 0.8397336127 | AS35: 0.6698117509 | AT35: 0.8173924204 | AU35: 0.7622368861 | AV35: 0.6129260624 | AW35: 0.8235672455 | AX35: 0.7987834483 | AY35: 0.7963238524 | AZ35: 0.8228849007 | BA35: 0.8204977885 | BB35: 0.7993430269 | BC35: 0.8088564816 | BD35: 0.7981654435 | BE35: 0.7874661754 | BF35: 0.768362695 | BG35: 0.7518291309 | BH35: 0.824437348 | BI35: 0.7905627277 | BJ35: 0.8017809434 | BK35: 0.804293669 | BL35: 0.8020054337 | BM35: 0.7922074545 | BN35: 0.7963860948 | BO35: =BO33/40.3/(BO33/40.3+BO34/71.85) -> 0.8020759836 | BP35: 0.7741840171 | BQ35: 0.8088907658 | BR35: 0.808840927 | BS35: 0.8023711941 | BT35: 0.7429282284 | BU35: 0.8135433383 | BV35: 0.7787253111 | BW35: 0.7311179751 | BX35: 0.8040497109 | BY35: 0.6707713841 | BZ35: 0.7925481991 | CA35: 0.7728634129 | CB35: 0.7746408064 | CC35: 0.7661785598 | CD35: 0.8159405343 | CE35: 0.7723951459 | CF35: 0.7271116715 | CG35: 0.7478150639 | CH35: 0.8222826206 | CI35: 0.7438991099 | CJ35: 0.8093747603 | CK35: 0.7560031793 | CL35: 0.8200963192 | CM35: 0.6601893674 | CN35: 0.7811676896 | CO35: 0.8131137981 | CP35: 0.813579922 | CQ35: 0.8432149352 | CR35: 0.7837505676 | CS35: 0.8230768039 | CT35: 0.8154373729 | CU35: 0.8227931033 | CV35: 0.8206078482 | CW35: 0.7931468702 | CX35: 0.7976067292 | CY35: 0.7840057354 | CZ35: 0.7979614998 | DA35: 0.7772347666 | DB35: 0.7897408636 | DC35: 0.8021027154 | DD35: 0.7892669906 | DE35: 0.7955148686 | DF35: 0.7915748964 | DG35: 0.7934324932 | DH35: 0.7857191706 | DI35: 0.8156321435 | DJ35: 0.7789420268 | DK35: 0.8204487939 | DL35: 0.7994982868 | DM35: 0.7936680717 | DN35: 0.830969684 | DO35: 0.7907166407 | DP35: 0.7996656016 | DQ35: 0.7960810315 | DR35: 0.8064118179 | DS35: 0.7070673259 | DT35: 0.7784483757 | DU35: 0.8115718571 | DV35: 0.7943794163 | DW35: 0.7756314214 | DX35: 0.7896855909 | DY35: 0.7993619158 | DZ35: 0.7968117289 | EA35: =EA33/40.3/(EA33/40.3+EA34/71.85) -> 0.7878107332 | EB35: 0.7592321781 | EC35: 0.7634708497 | ED35: 0.7880688658 | EE35: 0.7789335704 | EF35: 0.80103677 | EG35: 0.8068490236 | EH35: 0.8174413626 | EI35: 0.7816925992 | EJ35: 0.8104592258 | EK35: 0.8126839436 | EL35: 0.7405822802 | EM35: 0.8182847684 | EN35: 0.823668423 | EO35: 0.8191542987 | EP35: 0.8090547679 | EQ35: 0.8131494475 | ER35: 0.7988099957 | ES35: 0.8015408456 | ET35: 0.8003908551 | EU35: 0.8116609003 | EV35: 0.7935257465 | EW35: 0.8247502919 | EX35: 0.8396175605 | EY35: 0.8303112728 | EZ35: 0.8057853411 | FA35: 0.8052752184 | FB35: 0.772809763 | FC35: 0.7576181225 | FD35: 0.7729289662 | FE35: 0.7537175214 | FF35: 0.8176219377 | FG35: 0.8228056061 | FH35: 0.8099861719 | FI35: 0.8035734059 | FJ35: 0.8049544059 | FK35: 0.7430371183 | FL35: 0.7765458739 | FM35: 0.8259985871 | FN35: 0.8343508964 | FO35: 0.817672197 | FP35: 0.8140980041 | FQ35: 0.8210544475 | FR35: 0.8137725046 | FS35: 0.8169989684 | FT35: 0.811254472 | FU35: 0.8223138437 | FV35: 0.7544112727 | FW35: 0.8017981541 | FX35: 0.8008494492 | FY35: 0.8073544573 | FZ35: 0.8073925141 | GA35: 0.8168643216 | GB35: 0.8203213605 | GC35: 0.8104215052 | GD35: 0.8108365529 | GE35: 0.8256535738 | GF35: 0.820096375 | GG35: 0.8250670887 | GH35: 0.8200470683 | GI35: 0.8236317016 | GJ35: 0.8210971144 | GK35: 0.8225923082 | GL35: 0.7808675038 | GM35: =GM33/40.3/(GM33/40.3+GM34/71.85) -> 0.6076301643 | GN35: 0.8037728119 | GO35: 0.7711636695 | GP35: 0.7949640891 | GQ35: 0.7942031038 | GR35: 0.7965300238 | GS35: 0.7999578742 | GT35: 0.7819767385 | GU35: 0.8153431331 | GV35: 0.7942969497 | GW35: 0.8020967211 | GX35: 0.7935971398 | GY35: 0.8124966069 | GZ35: 0.8126430645 | HA35: 0.6076301643 | HB35: 0.7846290306 | HC35: 0.7829586708 | HD35: 0.7787583584 | HE35: 0.7787536355 | HF35: 0.6076301643 | HG35: 0.7658812861 | HH35: 0.7810713368 | HI35: 0.7530605831 | HJ35: 0.7530605831 | HK35: 0.7527843251 | HL35: 0.7525528967 | HM35: 0.7678050879 | HN35: 0.7973878292 | HO35: 0.7515243515 | HP35: 0.779876462 | HQ35: 0.852444669 | HR35: 0.7759421639 | HS35: 0.7610786563 | HT35: 0.6666706288 | HU35: 0.7852533549 | HV35: 0.7860360115 | HW35: 0.8094319381 | HX35: 0.7953586954 | HY35: 0.7912271947 | HZ35: 0.7958615013 | IA35: 0.8226897766 | IB35: 0.8169750518 | IC35: 0.8191486068 | ID35: 0.8132540605 | IE35: 0.8044584474 | IF35: 0.6076301643 | IG35: 0.7978318842 | IH35: 0.7976953467 | II35: 0.7982619311 | IJ35: 0.7760973008 | IK35: 0.6883712805 | IL35: 0.7995134467 | IM35: 0.7871359245 | IN35: 0.7984670645 | IO35: 0.7767493161 | IP35: 0.7832064063 | IQ35: 0.775318737 | IR35: 0.7827038553
B36: F melt degree | C36: =(C13-C24)/(C33-C24) -> 0.2295348317 | D36: 0.2312516152 | E36: 0.2300798325 | F36: 0.2317773247 | G36: 0.2334305015 | H36: 0.2391779815 | I36: 0.233086825 | J36: 0.2689700712 | K36: 0.2305017951 | L36: 0.2296966622 | M36: 0.2374404049 | N36: 0.2322911996 | O36: 0.2322495103 | P36: 0.2339379278 | Q36: 0.2335786098 | R36: 0.2393265437 | S36: 0.2370826302 | T36: 0.233789247 | U36: 0.2348595337 | V36: 0.2352116916 | W36: 0.2371746562 | X36: 0.2344362183 | Y36: 0.2342564628 | Z36: 0.2348954942 | AA36: 0.2359738276 | AB36: 0.2376019995 | AC36: 0.2319779195 | AD36: 0.3307764689 | AE36: 0.2541277763 | AF36: 0.2806126425 | AG36: 0.3413231871 | AH36: 0.4046033216 | AI36: 0.3304841256 | AJ36: 0.3421054238 | AK36: 0.399821132 | AL36: 0.3299588995 | AM36: 0.4015167328 | AN36: -0.01104688809 | AO36: 0.4258350161 | AP36: 0.355242144 | AQ36: 0.4227312682 | AR36: 0.5464735571 | AS36: 0.1917078482 | AT36: 0.4340009985 | AU36: 0.2394155272 | AV36: -0.2172747942 | AW36: 0.4628245279 | AX36: 0.3756084936 | AY36: 0.3765189226 | AZ36: 0.4664382775 | BA36: 0.4607344578 | BB36: 0.3596994086 | BC36: 0.4262467175 | BD36: 0.3563664129 | BE36: 0.299389032 | BF36: 0.2932655255 | BG36: 0.2425778169 | BH36: 0.4903382419 | BI36: 0.3272139991 | BJ36: 0.3799523198 | BK36: 0.3917870781 | BL36: 0.3707656161 | BM36: 0.3159416609 | BN36: 0.3542597202 | BO36: =(BO13-BO24)/(BO33-BO24) -> 0.3555287003 | BP36: 0.249737263 | BQ36: 0.3924600926 | BR36: 0.4105874681 | BS36: 0.3496924058 | BT36: 0.05488180623 | BU36: 0.4048475174 | BV36: 0.2473247386 | BW36: 0.1474149416 | BX36: 0.3662438924 | BY36: 0.2055443257 | BZ36: 0.03706440077 | CA36: 0.2472065337 | CB36: 0.2515100032 | CC36: 0.2328535136 | CD36: 0.4344306222 | CE36: 0.3257842643 | CF36: 0.2339983536 | CG36: 0.2621733461 | CH36: 0.1446863182 | CI36: 0.111565785 | CJ36: 0.4220570852 | CK36: 0.2292211741 | CL36: 0.4232527198 | CM36: -0.3091532836 | CN36: 0.3323101729 | CO36: 0.3958555991 | CP36: 0.4170857696 | CQ36: 0.5688987784 | CR36: 0.2364046609 | CS36: 0.4375249293 | CT36: 0.3718057258 | CU36: 0.4020805142 | CV36: 0.3927007807 | CW36: 0.2081827732 | CX36: 0.2597019321 | CY36: 0.110352442 | CZ36: 0.2666983302 | DA36: 0.1673087224 | DB36: 0.2030650249 | DC36: 0.2489293591 | DD36: 0.1593720049 | DE36: 0.2040270655 | DF36: 0.2037585003 | DG36: 0.2350521994 | DH36: 0.3219974941 | DI36: 0.4263177239 | DJ36: 0.3264811131 | DK36: 0.4294279146 | DL36: 0.3492191049 | DM36: 0.3053824882 | DN36: 0.503807456 | DO36: 0.3459650305 | DP36: 0.3511871205 | DQ36: 0.3035676578 | DR36: 0.3383248594 | DS36: 0.171004722 | DT36: 0.2601935355 | DU36: 0.3323336371 | DV36: 0.3110083515 | DW36: 0.2813282785 | DX36: 0.2982804137 | DY36: 0.3108087191 | DZ36: 0.3092200126 | EA36: =(EA13-EA24)/(EA33-EA24) -> 0.2898974678 | EB36: 0.2129225226 | EC36: 0.2628955175 | ED36: 0.311968535 | EE36: 0.2838762528 | EF36: 0.2972170934 | EG36: 0.386203659 | EH36: 0.4324190853 | EI36: 0.3286218125 | EJ36: 0.42633448 | EK36: 0.4010268585 | EL36: 0.01455945775 | EM36: 0.4346037244 | EN36: 0.4306740585 | EO36: 0.4085767671 | EP36: 0.3656134704 | EQ36: 0.3394262144 | ER36: 0.3052606431 | ES36: 0.3126171827 | ET36: 0.3142056111 | EU36: 0.3368235177 | EV36: 0.2646872606 | EW36: 0.4169247725 | EX36: 0.5274962681 | EY36: 0.4527594748 | EZ36: 0.3167113312 | FA36: 0.3322802798 | FB36: 0.09099784698 | FC36: 0.06179088515 | FD36: 0.08774386653 | FE36: 0.1049541451 | FF36: 0.355492866 | FG36: 0.4167577257 | FH36: 0.3561623847 | FI36: 0.2866288424 | FJ36: 0.2864273099 | FK36: 0.1823774919 | FL36: 0.266014725 | FM36: 0.4590087026 | FN36: 0.5015042753 | FO36: 0.4125506219 | FP36: 0.3798978408 | FQ36: 0.3852761476 | FR36: 0.3414990401 | FS36: 0.3583252136 | FT36: 0.3436458993 | FU36: 0.4040881206 | FV36: 0.05924944687 | FW36: 0.2890421334 | FX36: 0.3100031166 | FY36: 0.3149047692 | FZ36: 0.3546189026 | GA36: 0.37364068 | GB36: 0.4110161792 | GC36: 0.3801616186 | GD36: 0.3710819215 | GE36: 0.4246611324 | GF36: 0.4416448786 | GG36: 0.4173358746 | GH36: 0.4490708973 | GI36: 0.4254036469 | GJ36: 0.4462959277 | GK36: 0.4107547898 | GL36: 0.2958244367 | GM36: =(GM13-GM24)/(GM33-GM24) -> -233.4653628 | GN36: 0.3213031526 | GO36: 0.2480125421 | GP36: 0.3449791998 | GQ36: 0.3422594183 | GR36: 0.3400920905 | GS36: 0.3573203258 | GT36: 0.2774910498 | GU36: 0.4008979803 | GV36: 0.3370932248 | GW36: 0.3885739045 | GX36: 0.2971261661 | GY36: 0.3617746561 | GZ36: 0.3607596171 | HA36: -233.4653628 | HB36: 0.2511610623 | HC36: 0.2923363242 | HD36: 0.2226165393 | HE36: 0.2483876983 | HF36: -233.4653628 | HG36: 0.2114690676 | HH36: 0.2931426373 | HI36: 0.1974216805 | HJ36: 0.1974216805 | HK36: 0.02730178467 | HL36: 0.03170445078 | HM36: 0.1909052736 | HN36: 0.338695222 | HO36: 0.02458657618 | HP36: 0.2526713542 | HQ36: 0.07408411063 | HR36: 0.2774335345 | HS36: 0.06517498613 | HT36: 0.07200946995 | HU36: 0.2968056949 | HV36: 0.3050063839 | HW36: 0.4207599025 | HX36: 0.3262554654 | HY36: 0.2898686201 | HZ36: 0.3182793294 | IA36: 0.4519061353 | IB36: 0.4183948334 | IC36: 0.3862877515 | ID36: 0.3874929907 | IE36: 0.3257231528 | IF36: -233.4653628 | IG36: 0.3680158028 | IH36: 0.3660680196 | II36: 0.3516029936 | IJ36: 0.2680226821 | IK36: 0.04062248559 | IL36: 0.3619916028 | IM36: 0.3013309434 | IN36: 0.2682047949 | IO36: 0.2652598609 | IP36: 0.2539198633 | IQ36: 0.2641900979 | IR36: 0.2755084667
B38: Calculated T with assumed P, H2O
B39: P Gpa | C39: =C22 -> TZ - Lashaine Gibson | D39: =D22 -> TZ - Lashaine Gibson | E39: TZ - Lashaine Gibson | F39: TZ - Lashaine Gibson | G39: TZ - Lashaine Gibson | H39: TZ - Lashaine Gibson | I39: TZ - Lashaine Gibson | J39: TZ - Lashaine Gibson | K39: TZ - Lashaine Gibson | L39: TZ - Lashaine Gibson | M39: TZ - Lashaine Gibson | N39: TZ - Lashaine Gibson | O39: TZ - Lashaine Gibson | P39: TZ - Lashaine Gibson | Q39: TZ - Lashaine Gibson | R39: TZ - Lashaine Gibson | S39: TZ - Lashaine Gibson | T39: TZ - Lashaine Gibson | U39: TZ - Lashaine Gibson | V39: TZ - Lashaine Gibson | W39: TZ - Lashaine Gibson | X39: TZ - Lashaine Gibson | Y39: TZ - Lashaine Gibson | Z39: TZ - Lashaine Gibson | AA39: TZ - Lashaine Gibson | AB39: TZ - Lashaine Gibson | AC39: TZ - Lashaine Gibson | AD39: =AD46 -> 4.865381374 | AE39: 0.9565563928 | AF39: 0.9892526929 | AG39: 4.539217631 | AH39: 6.068328714 | AI39: 0.7617908933 | AJ39: -2.039806476e+14 | AK39: 2.096288221 | AL39: 0.05106321163 | AM39: 0.8635411921 | AN39: 349.0841396 | AO39: 5.512727936 | AP39: 4.021367522 | AQ39: 2.55316701 | AR39: 5.826241874 | AS39: -9.033222099 | AT39: 3.469069392 | AU39: -3.462794601 | AV39: 26.84166414 | AW39: 4.149366965 | AX39: -0.2283859595 | AY39: -1.800285101 | AZ39: 3.689509211 | BA39: 3.108529537 | BB39: 1.192942573 | BC39: 0.5564241145 | BD39: 0.9567331194 | BE39: 0.8066914255 | BF39: -2.672168893e+14 | BG39: -6.008477225 | BH39: 2.923576008 | BI39: -0.0009463702982 | BJ39: 0.7856655547 | BK39: 1.008741551 | BL39: 1.495701163 | BM39: 1.399319078 | BN39: 0.381130321 | BO39: 2.462374635 | BP39: -0.2610162165 | BQ39: 2.737927975 | BR39: 1.611567862 | BS39: 2.907514766 | BT39: -17.68204585 | BU39: 3.712490938 | BV39: 1.230230411 | BW39: -2.253942122 | BX39: 2.531006355 | BY39: -7.294259121 | BZ39: -4.497920634 | CA39: -0.4923022483 | CB39: -0.2399037164 | CC39: -1.459126136 | CD39: 2.902417778 | CE39: -3.94875 | CF39: -6.33 | CG39: -3.377699721e+14 | CH39: -12.39092226 | CI39: -16.79823969 | CJ39: 1.076500167 | CK39: -4.775825271 | CL39: 5.061107379 | CM39: 6.295827875 | CN39: -4.417868932 | CO39: 4.063281928 | CP39: =CP46 -> 3.027444089 | CQ39: 6.023457466 | CR39: 3.287753905 | CS39: 5.371493783 | CT39: 6.236082585 | CU39: 7.270841244 | CV39: 6.970794402 | CW39: 8.191244145 | CX39: 6.413775835 | CY39: 17.08902172 | CZ39: 6.118047783 | DA39: 5.166136932 | DB39: 7.210939298 | DC39: 8.879665038 | DD39: 11.07427034 | DE39: 9.609295863 | DF39: 7.88051729 | DG39: 6.457701921 | DH39: -1.896636465 | DI39: 3.255409729 | DJ39: -2.255309473e+14 | DK39: 4.848196057 | DL39: 1.92113191 | DM39: 2.526267619 | DN39: 4.694678275 | DO39: -1.746310158 | DP39: 1.860153249 | DQ39: 3.416492759 | DR39: 4.927392149 | DS39: -6.065962788 | DT39: 0.3705806375 | DU39: 7.104046824 | DV39: 2.435409956 | DW39: -2.530003797 | DX39: 1.631131084 | DY39: 4.08737926 | DZ39: 3.338397515 | EA39: 1.520695458 | EB39: -1.850087319 | EC39: -5.421469483 | ED39: 0.1532629352 | EE39: -1.223928148 | EF39: 5.404276923 | EG39: 2.358856985 | EH39: 3.576884231 | EI39: -3.912291407 | EJ39: 1.246461998 | EK39: 3.618780345 | EL39: 3.39374034 | EM39: 3.764843666 | EN39: 5.974897991 | EO39: 5.530656549 | EP39: 4.321334579 | EQ39: 7.272621412 | ER39: 4.213836778 | ES39: 4.709995665 | ET39: 4.238913061 | EU39: 6.870466184 | EV39: 4.75371786 | EW39: 7.17331154 | EX39: 6.871049235 | EY39: 7.317226826 | EZ39: 5.927529391 | FA39: 4.875528074 | FB39: =FB46 -> 10.09531484 | FC39: 5.56575316 | FD39: 10.76975183 | FE39: 2.270313242 | FF39: 8.032872937 | FG39: 6.431493948 | FH39: 5.170595436 | FI39: 6.913092069 | FJ39: 7.439219302 | FK39: -2.892737511 | FL39: -0.6508414765 | FM39: 5.277077022 | FN39: 6.163452763 | FO39: 4.771198022 | FP39: 5.299921786 | FQ39: 7.58130454 | FR39: 7.384739051 | FS39: 7.611829295 | FT39: 6.325374907 | FU39: 6.967676985 | FV39: -13.14616557 | FW39: 6.13564144 | FX39: 4.624846491 | FY39: 6.589201141 | FZ39: 4.358093257 | GA39: 6.657433996 | GB39: 5.823945599 | GC39: 3.987454792 | GD39: 4.638634062 | GE39: 7.080397761 | GF39: 4.038887555 | GG39: 7.274505144 | GH39: 3.603044532 | GI39: 6.256858093 | GJ39: 4.149754948 | GK39: 6.691614232 | GL39: -1.521148097 | GM39: 7.256915757 | GN39: 4.976963991 | GO39: -1.080339136 | GP39: 0.4755607478 | GQ39: 0.3635284054 | GR39: 1.4132236 | GS39: 1.582349833 | GT39: 0.380106438 | GU39: 4.57884914 | GV39: 0.771108996 | GW39: 0.288966922 | GX39: 2.973588539 | GY39: 5.741853489 | GZ39: 5.851178177 | HA39: 7.256915757 | HB39: 2.747071126 | HC39: -0.3302367592 | HD39: 2.591247349 | HE39: 1.177168785 | HF39: 7.256915757 | HG39: -0.1509370212 | HH39: -1.164038686 | HI39: -2.140329762 | HJ39: -2.140329762 | HK39: 6.736498689 | HL39: 6.115564532 | HM39: 1.389399586 | HN39: =HN46 -> 1.812257052 | HO39: 6.384159141 | HP39: 1.258564017 | HQ39: -2.593924756 | HR39: -1.895710385 | HS39: -2.179828826 | HT39: -1.824872551 | HU39: 0.193975462 | HV39: -0.1149262668 | HW39: 1.187828939 | HX39: 1.860600002 | HY39: 2.623590407 | HZ39: 2.507248902 | IA39: 4.429434271 | IB39: 4.19380271 | IC39: 6.786245796 | ID39: 4.578751424 | IE39: 4.963002657 | IF39: 7.256915757 | IG39: -0.05060233452 | IH39: 0.04376347245 | II39: 1.313049243 | IJ39: -0.9660752306 | IK39: -1.328678565 | IL39: 1.105857616 | IM39: 0.5597584714 | IN39: 6.204101173 | IO39: -0.5249601248 | IP39: 2.172619892 | IQ39: -0.9378663515 | IR39: 0.7481356462 | IS39: 1
B40: T sol | C40: =$I$5*C39^2+$I$6*C39+$I$7 ->  | D40: =$I$5*D39^2+$I$6*D39+$I$7 ->  | AD40: 1645.782758 | AE40: 1242.455227 | AF40: 1246.475813 | AG40: 1618.092133 | AH40: 1738.521991 | AI40: 1218.279267 | AJ40: -2.123677658e+29 | AK40: 1376.165467 | AL40: 1126.772941 | AM40: 1230.957691 | AN40: -574459.1622 | AO40: 1697.524606 | AP40: 1571.896913 | AQ40: 1426.042093 | AR40: 1721.045957 | AS40: -496.9879978 | AT40: 1519.612059 | AU40: 598.5962696 | AV40: 1009.92626 | AW40: 1583.569896 | AX40: 1089.381509 | AY40: 864.2017113 | AZ40: 1540.853996 | BA40: 1483.80074 | BB40: 1271.277311 | BC40: 1192.36797 | BD40: 1242.476988 | BE40: 1223.88705 | BF40: -3.644504356e+29 | BG40: 137.2158054 | BH40: 1464.914926 | BI40: 1119.874224 | BJ40: 1221.263619 | BK40: 1248.86712 | BL40: 1307.358918 | BM40: 1295.973995 | BN40: 1169.91043 | BO40: 1416.3001 | BP40: =$I$5*BP39^2+$I$6*BP39+$I$7 -> 1084.963473 | BQ40: 1445.607032 | BR40: 1320.919899 | BS40: 1463.258416 | BT40: -2825.716031 | BU40: 1543.039999 | BV40: 1275.771656 | BW40: 794.523724 | BX40: 1423.672024 | BY40: -120.96427 | BZ40: 418.9703414 | CA40: 1053.33651 | CB40: 1087.823281 | CC40: 915.2169291 | CD40: 1462.732176 | CE40: 515.6303078 | CF40: 74.2376644 | CG40: -5.823079797e+29 | CH40: -1310.383584 | CI40: -2552.720349 | CJ40: 1257.151012 | CK40: 368.8829775 | CL40: 1661.87813 | CM40: 1754.399691 | CN40: 433.2519805 | CO40: 1575.737738 | CP40: 1475.564 | CQ40: 1735.327942 | CR40: 1501.768408 | CS40: 1686.600719 | CT40: 1750.281082 | CU40: 1816.463895 | CV40: 1798.398167 | CW40: 1866.147718 | CX40: 1762.423594 | CY40: 1900.568976 | CZ40: 1742.037116 | DA40: 1670.353925 | DB40: 1812.930639 | DC40: 1897.656109 | DD40: 1965.807632 | DE40: 1925.769765 | DF40: 1850.341438 | DG40: 1765.375558 | DH40: 849.5786492 | DI40: 1498.550075 | DJ40: -2.596109185e+29 | DK40: 1644.350862 | DL40: 1356.478933 | DM40: 1423.164569 | DN40: 1631.425867 | DO40: 872.3519722 | DP40: 1349.551798 | DQ40: 1514.472425 | DR40: 1650.924486 | DS40: 126.0333146 | DT40: 1168.548864 | DU40: 1806.534694 | DV40: 1413.390592 | DW40: 751.0947337 | DX40: 1323.196046 | DY40: 1577.937777 | DZ40: 1506.786132 | EA40: 1310.295831 | EB40: =$I$5*EB39^2+$I$6*EB39+$I$7 -> 856.6551564 | EC40: 249.473668 | ED40: 1140.2486 | EE40: 949.6953805 | EF40: 1689.154508 | EG40: 1405.090026 | EH40: 1530.063247 | EI40: 521.9384376 | EJ40: 1277.723634 | EK40: 1534.092494 | EL40: 1512.239513 | EM40: 1547.999618 | EN40: 1731.8482 | EO40: 1698.896747 | EP40: 1598.989293 | EQ40: 1816.568336 | ER40: 1589.385924 | ES40: 1632.726276 | ET40: 1591.636675 | EU40: 1792.152414 | EV40: 1636.425008 | EW40: 1810.692473 | EX40: 1792.189007 | EY40: 1819.174738 | EZ40: 1728.430602 | FA40: 1646.626775 | FB40: 1941.481139 | FC40: 1701.573317 | FD40: 1959.28877 | FE40: 1395.414699 | FF40: 1858.214729 | FG40: 1763.616674 | FH40: 1670.711231 | FI40: 1794.818566 | FJ40: 1826.199321 | FK40: 692.8481613 | FL40: 1031.341792 | FM40: 1679.184405 | FN40: 1745.225191 | FO40: 1637.898303 | FP40: 1680.987177 | FQ40: 1834.189377 | FR40: 1823.081006 | FS40: 1835.879021 | FT40: 1756.423083 | FU40: 1798.205644 | FV40: -1509.194057 | FW40: 1743.274938 | FX40: 1625.466971 | FY40: 1774.094957 | FZ40: 1602.246082 | GA40: 1778.549755 | GB40: 1720.877327 | GC40: 1568.776197 | GD40: 1626.647438 | GE40: 1805.103888 | GF40: 1573.504542 | GG40: 1816.678817 | GH40: 1532.581245 | GI40: 1751.717397 | GJ40: 1583.605024 | GK40: 1780.763454 | GL40: 906.0308366 | GM40: 1815.645782 | GN40: =$I$5*GN39^2+$I$6*GN39+$I$7 -> 1655.006587 | GO40: 970.4669642 | GP40: 1182.047237 | GQ40: 1167.638053 | GR40: 1297.62229 | GS40: 1317.513157 | GT40: 1169.778335 | GU40: 1621.514725 | GV40: 1219.44473 | GW40: 1157.977221 | GX40: 1470.056207 | GY40: 1714.813416 | GZ40: 1722.873725 | HA40: 1815.645782 | HB40: 1446.566181 | HC40: 1075.555241 | HD40: 1430.103053 | HE40: 1269.371807 | HF40: 1815.645782 | HG40: 1099.824342 | HH40: 958.3845739 | HI40: 812.1708322 | HJ40: 812.1708322 | HK40: 1783.652303 | HL40: 1741.86215 | HM40: 1294.796895 | HN40: 1344.084207 | HO40: 1760.422147 | HP40: 1279.177248 | HQ40: 740.9280073 | HR40: 849.7196495 | HS40: 806.0504883 | HT40: 860.4791271 | HU40: 1145.587099 | HV40: 1104.659 | HW40: 1270.659853 | HX40: 1349.602687 | HY40: 1433.540553 | HZ40: 1421.125612 | IA40: 1608.527477 | IB40: 1587.58313 | IC40: 1786.830094 | ID40: 1621.506306 | IE40: 1653.859448 | IF40: 1815.645782 | IG40: 1113.261931 | IH40: 1125.806346 | II40: 1285.703134 | IJ40: 986.8459978 | IK40: 934.4094135 | IL40: 1260.725582 | IM40: 1192.792107 | IN40: 1748.061434 | IO40: 1048.826748 | IP40: 1384.646716 | IQ40: 990.8690556 | IR40: 1216.569735 | IS40: 1247.795
B41: T liq | C41: =$C$5+$C$6*$C$13+$C$7*C$39+$C$8*C$39^2+$C$9*C$42 ->  | D41: =$C$5+$C$6*$C$13+$C$7*D$39+$C$8*D$39^2+$C$9*D$42 ->  | AD41: 1908.870377 | AE41: 1700.473233 | AF41: 1702.628183 | AG41: 1895.27768 | AH41: 1953.026214 | AI41: 1687.492679 | AJ41: -1.351847318e+29 | AK41: 1771.491414 | AL41: 1638.033824 | AM41: 1694.30479 | AN41: -369073.5826 | AO41: 1933.800679 | AP41: 1872.276508 | AQ41: 1797.590121 | AR41: 1944.895839 | AS41: 716.768887 | AT41: 1845.824979 | AU41: 1345.277761 | AV41: 1232.304341 | AW41: 1878.123943 | AX41: 1617.688214 | AY41: 1493.789312 | AZ41: 1856.620309 | BA41: 1827.488145 | BB41: 1715.896551 | BC41: 1673.538598 | BD41: 1700.484899 | BE41: 1690.507031 | BF41: -2.319944094e+29 | BG41: 1083.066946 | BH41: 1817.753728 | BI41: 1634.285641 | BJ41: 1689.097112 | BK41: 1703.909351 | BL41: 1735.120086 | BM41: 1729.06497 | BN41: 1661.411092 | BO41: 1792.511694 | BP41: =$C$5+$C$6*$C$13+$C$7*BP$39+$C$8*BP$39^2+$C$9*BP$42 -> 1615.279446 | BQ41: 1807.759223 | BR41: 1742.319403 | BS41: 1816.897908 | BT41: -658.6354391 | BU41: 1857.727589 | BV41: 1718.296289 | BW41: 1455.046012 | BX41: 1796.355517 | BY41: 934.6226675 | BZ41: 1243.737731 | CA41: 1598.007576 | CB41: 1616.838762 | CC41: 1522.044039 | CD41: 1816.625966 | CE41: 1298.475344 | CF41: 1046.954244 | CG41: -3.70673712e+29 | CH41: 240.5226185 | CI41: -495.788456 | CJ41: 1708.344495 | CK41: 1215.291301 | CL41: 1916.695275 | CM41: 1960.319577 | CN41: 1251.838755 | CO41: 1874.203019 | CP41: 1823.247844 | CQ41: 1951.547985 | CR41: 1836.708965 | CS41: 1928.593776 | CT41: 1958.436774 | CU41: 1987.768048 | CV41: 1979.979154 | CW41: 2008.011099 | CX41: 1963.968474 | CY41: 1919.873418 | CZ41: 1954.648869 | DA41: 1920.791604 | DB41: 1986.259795 | DC41: 2019.553588 | DD41: 2035.79293 | DE41: 2028.425436 | DF41: 2001.79257 | DG41: 1965.304291 | DH41: 1485.672548 | DI41: 1835.060342 | DJ41: -1.652578124e+29 | DK41: 1908.17144 | DL41: 1761.126118 | DM41: 1796.091101 | DN41: 1901.842638 | DO41: 1498.30987 | DP41: 1757.470776 | DQ41: 1843.20357 | DR41: 1911.376436 | DS41: 1076.659614 | DT41: 1660.674854 | DU41: 1983.510455 | DV41: 1790.993122 | DW41: 1430.815239 | DX41: 1743.526346 | DY41: 1875.305436 | DZ41: 1839.276679 | EA41: 1736.680473 | EB41: =$C$5+$C$6*$C$13+$C$7*EB$39+$C$8*EB$39^2+$C$9*EB$42 -> 1489.601441 | EC41: 1147.265575 | ED41: 1645.347864 | EE41: 1541.082668 | EF41: 1929.813949 | EG41: 1786.656134 | EH41: 1851.144315 | EI41: 1302.03992 | EJ41: 1719.338084 | EK41: 1853.190994 | EL41: 1842.063593 | EM41: 1860.237177 | EN41: 1949.933512 | EO41: 1934.452385 | EP41: 1885.81239 | EQ41: 1987.812513 | ER41: 1881.028821 | ES41: 1902.480979 | ET41: 1882.151411 | EU41: 1977.244233 | EV41: 1904.29468 | EW41: 1985.300454 | EX41: 1977.260315 | EY41: 1988.919958 | EZ41: 1948.343868 | FA41: 1909.282148 | FB41: 2032.415516 | FC41: 1935.722102 | FD41: 2035.40961 | FE41: 1781.592333 | FF41: 2004.920035 | FG41: 1964.5088 | FH41: 1920.963908 | FI41: 1978.414195 | FJ41: 1991.882705 | FK41: 1398.224164 | FL41: 1585.967461 | FM41: 1925.04061 | FN41: 1956.116694 | FO41: 1905.016323 | FP41: 1925.905634 | FQ41: 1995.211523 | FR41: 1990.571531 | FS41: 1995.909548 | FT41: 1961.242145 | FU41: 1979.895159 | FV41: 123.3088583 | FW41: 1955.219216 | FX41: 1898.913135 | FY41: 1969.228308 | FZ41: 1887.430894 | GA41: 1971.22014 | GB41: 1944.816896 | GC41: 1870.709423 | GD41: 1899.494046 | GE41: 1982.892157 | GF41: 1873.083169 | GG41: 1987.859543 | GH41: 1852.423616 | GI41: 1959.09412 | GJ41: 1878.141505 | GK41: 1972.206545 | GL41: 1516.963639 | GM41: 1987.419502 | GN41: =$C$5+$C$6*$C$13+$C$7*GN$39+$C$8*GN$39^2+$C$9*GN$42 -> 1913.361825 | GO41: 1552.52909 | GP41: 1667.968965 | GQ41: 1660.182292 | GR41: 1729.942235 | GS41: 1740.512182 | GT41: 1661.33967 | GU41: 1896.966196 | GV41: 1688.119318 | GW41: 1654.954783 | GX41: 1820.407899 | GY41: 1941.972182 | GZ41: 1945.750906 | HA41: 1987.419502 | HB41: 1808.256695 | HC41: 1610.146675 | HD41: 1799.704181 | HE41: 1714.878676 | HF41: 1987.419502 | HG41: 1623.3778 | HH41: 1545.873136 | HI41: 1464.874275 | HJ41: 1464.874275 | HK41: 1973.490333 | HL41: 1954.568205 | HM41: 1728.438361 | HN41: 1754.582715 | HO41: 1963.060736 | HP41: 1720.113717 | HQ41: 1425.134095 | HR41: 1485.75085 | HS41: 1461.466841 | HT41: 1491.723766 | HU41: 1648.242599 | HV41: 1626.009963 | HW41: 1715.566748 | HX41: 1757.497645 | HY41: 1801.492332 | HZ41: 1795.028409 | IA41: 1890.547021 | IB41: 1880.129019 | IC41: 1974.897908 | ID41: 1896.962045 | IE41: 1912.804278 | IF41: 1987.419502 | IG41: 1630.690674 | IH41: 1637.508813 | II41: 1723.593951 | IJ41: 1561.54209 | IK41: 1532.647806 | IL41: 1710.256825 | IM41: 1673.767347 | IN41: 1957.419387 | IO41: 1595.540761 | IP41: 1775.946154 | IQ41: 1563.754115 | IR41: 1686.57335 | IS41: 1703.335
B42: H2O wt % | C42: 0 | D42: =C42 -> 0 | E42: =D42 -> 0 | F42: 0 | G42: 0 | H42: 0 | I42: 0 | J42: 0 | K42: 0 | L42: 0 | M42: 0 | N42: 0 | O42: 0 | P42: 0 | Q42: 0 | R42: 0 | S42: 0 | T42: 0 | U42: 0 | V42: 0 | W42: 0 | X42: 0 | Y42: 0 | Z42: 0 | AA42: 0 | AB42: 0 | AC42: =AB42 -> 0 | AD42: 0 | AE42: 0 | AF42: 0 | AG42: 0 | AH42: 0 | AI42: 0 | AJ42: 0 | AK42: 0 | AL42: 0 | AM42: 0 | AN42: 0 | AO42: 0 | AP42: 0 | AQ42: 0 | AR42: 0 | AS42: 0 | AT42: 0 | AU42: 0 | AV42: 0 | AW42: 0 | AX42: 0 | AY42: 0 | AZ42: 0 | BA42: 0 | BB42: 0 | BC42: 0 | BD42: 0 | BE42: 0 | BF42: 0 | BG42: 0 | BH42: 0 | BI42: 0 | BJ42: 0 | BK42: 0 | BL42: 0 | BM42: 0 | BN42: 0 | BO42: 0 | BP42: 0 | BQ42: =BP42 -> 0 | BR42: 0 | BS42: 0 | BT42: 0 | BU42: 0 | BV42: 0 | BW42: 0 | BX42: 0 | BY42: 0 | BZ42: 0 | CA42: 0 | CB42: 0 | CC42: 0 | CD42: 0 | CE42: 0 | CF42: 0 | CG42: 0 | CH42: 0 | CI42: 0 | CJ42: 0 | CK42: 0 | CL42: 0 | CM42: 0 | CN42: 0 | CO42: 0 | CP42: 0 | CQ42: 0 | CR42: 0 | CS42: 0 | CT42: 0 | CU42: 0 | CV42: 0 | CW42: 0 | CX42: 0 | CY42: 0 | CZ42: 0 | DA42: 0 | DB42: 0 | DC42: 0 | DD42: 0 | DE42: 0 | DF42: 0 | DG42: 0 | DH42: 0 | DI42: 0 | DJ42: 0 | DK42: 0 | DL42: 0 | DM42: 0 | DN42: 0 | DO42: 0 | DP42: 0 | DQ42: 0 | DR42: 0 | DS42: 0 | DT42: 0 | DU42: 0 | DV42: 0 | DW42: 0 | DX42: 0 | DY42: 0 | DZ42: 0 | EA42: 0 | EB42: 0 | EC42: =EB42 -> 0 | ED42: 0 | EE42: 0 | EF42: 0 | EG42: 0 | EH42: 0 | EI42: 0 | EJ42: 0 | EK42: 0 | EL42: 0 | EM42: 0 | EN42: 0 | EO42: 0 | EP42: 0 | EQ42: 0 | ER42: 0 | ES42: 0 | ET42: 0 | EU42: 0 | EV42: 0 | EW42: 0 | EX42: 0 | EY42: 0 | EZ42: 0 | FA42: 0 | FB42: 0 | FC42: 0 | FD42: 0 | FE42: 0 | FF42: 0 | FG42: 0 | FH42: 0 | FI42: 0 | FJ42: 0 | FK42: 0 | FL42: 0 | FM42: 0 | FN42: 0 | FO42: 0 | FP42: 0 | FQ42: 0 | FR42: 0 | FS42: 0 | FT42: 0 | FU42: 0 | FV42: 0 | FW42: 0 | FX42: 0 | FY42: 0 | FZ42: 0 | GA42: 0 | GB42: 0 | GC42: 0 | GD42: 0 | GE42: 0 | GF42: 0 | GG42: 0 | GH42: 0 | GI42: 0 | GJ42: 0 | GK42: 0 | GL42: 0 | GM42: 0 | GN42: 0 | GO42: =GN42 -> 0 | GP42: 0 | GQ42: 0 | GR42: 0 | GS42: 0 | GT42: 0 | GU42: 0 | GV42: 0 | GW42: 0 | GX42: 0 | GY42: 0 | GZ42: 0 | HA42: 0 | HB42: 0 | HC42: 0 | HD42: 0 | HE42: 0 | HF42: 0 | HG42: 0 | HH42: 0 | HI42: 0 | HJ42: 0 | HK42: 0 | HL42: 0 | HM42: 0 | HN42: 0 | HO42: 0 | HP42: 0 | HQ42: 0 | HR42: 0 | HS42: 0 | HT42: 0 | HU42: 0 | HV42: 0 | HW42: 0 | HX42: 0 | HY42: 0 | HZ42: 0 | IA42: 0 | IB42: 0 | IC42: 0 | ID42: 0 | IE42: 0 | IF42: 0 | IG42: 0 | IH42: 0 | II42: 0 | IJ42: 0 | IK42: 0 | IL42: 0 | IM42: 0 | IN42: 0 | IO42: 0 | IP42: 0 | IQ42: 0 | IR42: 0 | IS42: 0
B43: T | C43: =$C$5+$C$6*C$33+$C$7*C$39+$C$8*C$39^2+$C$9*C$42 ->  | D43: =$C$5+$C$6*D$33+$C$7*D$39+$C$8*D$39^2+$C$9*D$42 ->  | AD43: 1716.923706 | AE43: 1406.26681 | AF43: 1419.589871 | AG43: 1698.669862 | AH43: 1799.095175 | AI43: 1418.537434 | AJ43: -1.351847318e+29 | AK43: 1543.487154 | AL43: 1358.652888 | AM43: 1448.352911 | AN43: -359771.1284 | AO43: 1773.003472 | AP43: 1668.206232 | AQ43: 1582.734434 | AR43: 1813.755198 | AS43: 186.5145781 | AT43: 1649.18251 | AU43: 975.3797262 | AV43: 1389.413097 | AW43: 1699.881948 | AX43: 1350.374613 | AY43: 1212.461411 | AZ43: 1671.16986 | BA43: 1630.872371 | BB43: 1462.721342 | BC43: 1430.238859 | BD43: 1442.751661 | BE43: 1411.325444 | BF43: -2.319944094e+29 | BG43: 674.6214618 | BH43: 1625.068746 | BI43: 1353.193655 | BJ43: 1435.96007 | BK43: 1457.272196 | BL43: 1489.813018 | BM43: 1465.649941 | BN43: 1394.841417 | BO43: 1559.17881 | BP43: =$C$5+$C$6*BP$33+$C$7*BP$39+$C$8*BP$39^2+$C$9*BP$42 -> 1296.280555 | BQ43: 1588.617458 | BR43: 1509.547051 | BS43: 1590.143188 | BT43: -2068.866525 | BU43: 1658.8262 | BV43: 1426.825347 | BW43: 1014.573411 | BX43: 1567.025063 | BY43: 411.8199174 | BZ43: 519.5216619 | CA43: 1273.649814 | CB43: 1299.120523 | CC43: 1172.88423 | CD43: 1610.380701 | CE43: 932.580406 | CF43: 583.6810824 | CG43: -3.70673712e+29 | CH43: -403.3098596 | CI43: -1555.656536 | CJ43: 1470.841353 | CK43: 825.3849013 | CL43: 1746.82205 | CM43: 1718.1817 | CN43: 919.9861348 | CO43: 1679.807377 | CP43: 1615.02156 | CQ43: 1828.425883 | CR43: 1587.735389 | CS43: 1767.377277 | CT43: 1802.291675 | CU43: 1856.999054 | CV43: 1841.90832 | CW43: 1875.132261 | CX43: 1794.583721 | CY43: 1931.909797 | CZ43: 1779.361727 | DA43: 1704.560469 | DB43: 1829.229893 | DC43: 1905.134577 | DD43: 1962.555251 | DE43: 1927.076411 | DF43: 1861.1859 | DG43: 1793.562851 | DH43: 1181.749984 | DI43: 1632.932611 | DJ43: -1.652578124e+29 | DK43: 1735.539065 | DL43: 1516.667767 | DM43: 1550.235034 | DN43: 1742.123516 | DO43: 1205.924957 | DP43: 1512.537473 | DQ43: 1614.860598 | DR43: 1722.206398 | DS43: 591.7301589 | DT43: 1357.98603 | DU43: 1839.482121 | DV43: 1544.977068 | DW43: 1099.965877 | DX43: 1478.465097 | DY43: 1662.753007 | DZ43: 1610.734702 | EA43: 1466.760298 | EB43: =$C$5+$C$6*EB$33+$C$7*EB$39+$C$8*EB$39^2+$C$9*EB$42 -> 1119.432611 | EC43: 772.1656383 | ED43: 1360.670756 | EE43: 1225.324537 | EF43: 1743.258279 | EG43: 1559.488485 | EH43: 1656.031622 | EI43: 974.5020069 | EJ43: 1485.328811 | EK43: 1651.719976 | EL43: 1518.697104 | EM43: 1668.938669 | EN43: 1798.839964 | EO43: 1770.746274 | EP43: 1689.893483 | EQ43: 1848.285206 | ER43: 1669.945539 | ES43: 1703.614119 | ET43: 1673.554028 | EU43: 1828.897042 | EV43: 1696.73007 | EW43: 1854.877735 | EX43: 1860.075761 | EY43: 1866.787933 | EZ43: 1776.661588 | FA43: 1717.844191 | FB43: 1939.412878 | FC43: 1712.587583 | FD43: 1956.565758 | FE43: 1454.585635 | FF43: 1883.026345 | FG43: 1819.742798 | FH43: 1740.24652 | FI43: 1824.145004 | FJ43: 1849.333876 | FK43: 980.9799019 | FL43: 1268.957803 | FM43: 1766.31913 | FN43: 1821.731896 | FO43: 1727.499513 | FP43: 1752.281475 | FQ43: 1868.140572 | FR43: 1853.658356 | FS43: 1865.858227 | FT43: 1802.408669 | FU43: 1843.510672 | FV43: -1003.713419 | FW43: 1783.752818 | FX43: 1697.680185 | FY43: 1811.694688 | FZ43: 1689.920634 | GA43: 1823.93828 | GB43: 1787.255982 | GC43: 1671.454074 | GD43: 1710.981455 | GE43: 1851.891275 | GF43: 1688.228495 | GG43: 1859.440788 | GH43: 1661.541897 | GI43: 1812.45027 | GJ43: 1696.288243 | GK43: 1831.4942 | GL43: 1203.866945 | GM43: 1435.64216 | GN43: =$C$5+$C$6*GN$33+$C$7*GN$39+$C$8*GN$39^2+$C$9*GN$42 -> 1721.938887 | GO43: 1218.950766 | GP43: 1399.659087 | GQ43: 1389.397523 | GR43: 1474.346726 | GS43: 1492.752266 | GT43: 1366.345989 | GU43: 1713.402341 | GV43: 1421.503523 | GW43: 1397.794152 | GX43: 1581.239946 | GY43: 1774.007959 | GZ43: 1779.859598 | HA43: 1435.64216 | HB43: 1551.055015 | HC43: 1310.403594 | HD43: 1529.735023 | HE43: 1422.746691 | HF43: 1435.64216 | HG43: 1285.388166 | HH43: 1235.497121 | HI43: 1076.587194 | HJ43: 1076.587194 | HK43: 1786.088766 | HL43: 1746.105537 | HM43: 1415.979073 | HN43: 1505.245702 | HO43: 1763.211078 | HP43: 1431.373356 | HQ43: 874.7905749 | HR43: 1158.664568 | HS43: 916.4244277 | HT43: 972.8452872 | HU43: 1358.203479 | HV43: 1334.714445 | HW43: 1479.278425 | HX43: 1505.330161 | HY43: 1553.135087 | HZ43: 1552.435537 | IA43: 1714.929439 | IB43: 1693.033129 | IC43: 1832.171249 | ID43: 1710.634299 | IE43: 1721.937549 | IF43: 1435.64216 | IG43: 1363.040149 | IH43: 1370.384984 | II43: 1469.867358 | IJ43: 1240.916839 | IK43: 994.6950743 | IL43: 1456.445074 | IM43: 1391.261939 | IN43: 1784.364494 | IO43: 1280.096146 | IP43: 1506.915285 | IQ43: 1241.481446 | IR43: 1397.193798
B45: Full P-T inversion with assumed H2O
A46: guess | B46: P Gpa | C46: 3.022297754 | D46: 3.292399816 | E46: 1.782276832 | F46: 1.133269969 | G46: 1.647777234 | H46: 411.9206758 | I46: 2.88793249 | J46: -0.556850652 | K46: 4.043845826 | L46: 3.413315643 | M46: 10.11407024 | N46: 4.756811591 | O46: 4.973858048 | P46: 4.150194467 | Q46: 5.798658562 | R46: 308.9019591 | S46: 9.640508159 | T46: 5.555972994 | U46: 5.311555346 | V46: 4.532736183 | W46: 5.518699432 | X46: 6.289685039 | Y46: 5.855614127 | Z46: 5.660051765 | AA46: 5.838894796 | AB46: 6.388998088 | AC46: 3.628319035 | AD46: 4.865381374 | AE46: 0.9565563928 | AF46: 0.9892526929 | AG46: 4.539217631 | AH46: 6.068328714 | AI46: 0.7617908933 | AJ46: -2.039806476e+14 | AK46: 2.096288221 | AL46: 0.05106321163 | AM46: 0.8635411921 | AN46: 349.0841396 | AO46: 5.512727936 | AP46: 4.021367522 | AQ46: 2.55316701 | AR46: 5.826241874 | AS46: -9.033222099 | AT46: 3.469069392 | AU46: -3.462794601 | AV46: 26.84166414 | AW46: 4.149366965 | AX46: -0.2283859595 | AY46: -1.800285101 | AZ46: 3.689509211 | BA46: 3.108529537 | BB46: 1.192942573 | BC46: 0.5564241145 | BD46: 0.9567331194 | BE46: 0.8066914255 | BF46: -2.672168893e+14 | BG46: -6.008477225 | BH46: 2.923576008 | BI46: -0.0009463702982 | BJ46: 0.7856655547 | BK46: 1.008741551 | BL46: 1.495701163 | BM46: 1.399319078 | BN46: 0.381130321 | BO46: 2.462374635 | BP46: -0.2610162165 | BQ46: 2.737927975 | BR46: 1.611567862 | BS46: 2.907514766 | BT46: -17.68204585 | BU46: 3.712490938 | BV46: 1.230230411 | BW46: -2.253942122 | BX46: 2.531006355 | BY46: -7.294259121 | BZ46: -4.497920634 | CA46: -0.4923022483 | CB46: -0.2399037164 | CC46: -1.459126136 | CD46: 2.902417778 | CE46: -3.94875 | CF46: -6.33 | CG46: -3.377699721e+14 | CH46: -12.39092226 | CI46: -16.79823969 | CJ46: 1.076500167 | CK46: -4.775825271 | CL46: 5.061107379 | CM46: 6.295827875 | CN46: -4.417868932 | CO46: 4.063281928 | CP46: 3.027444089 | CQ46: 6.023457466 | CR46: 3.287753905 | CS46: 5.371493783 | CT46: 6.236082585 | CU46: 7.270841244 | CV46: 6.970794402 | CW46: 8.191244145 | CX46: 6.413775835 | CY46: 17.08902172 | CZ46: 6.118047783 | DA46: 5.166136932 | DB46: 7.210939298 | DC46: 8.879665038 | DD46: 11.07427034 | DE46: 9.609295863 | DF46: 7.88051729 | DG46: 6.457701921 | DH46: -1.896636465 | DI46: 3.255409729 | DJ46: -2.255309473e+14 | DK46: 4.848196057 | DL46: 1.92113191 | DM46: 2.526267619 | DN46: 4.694678275 | DO46: -1.746310158 | DP46: 1.860153249 | DQ46: 3.416492759 | DR46: 4.927392149 | DS46: -6.065962788 | DT46: 0.3705806375 | DU46: 7.104046824 | DV46: 2.435409956 | DW46: -2.530003797 | DX46: 1.631131084 | DY46: 4.08737926 | DZ46: 3.338397515 | EA46: 1.520695458 | EB46: -1.850087319 | EC46: -5.421469483 | ED46: 0.1532629352 | EE46: -1.223928148 | EF46: 5.404276923 | EG46: 2.358856985 | EH46: 3.576884231 | EI46: -3.912291407 | EJ46: 1.246461998 | EK46: 3.618780345 | EL46: 3.39374034 | EM46: 3.764843666 | EN46: 5.974897991 | EO46: 5.530656549 | EP46: 4.321334579 | EQ46: 7.272621412 | ER46: 4.213836778 | ES46: 4.709995665 | ET46: 4.238913061 | EU46: 6.870466184 | EV46: 4.75371786 | EW46: 7.17331154 | EX46: 6.871049235 | EY46: 7.317226826 | EZ46: 5.927529391 | FA46: 4.875528074 | FB46: 10.09531484 | FC46: 5.56575316 | FD46: 10.76975183 | FE46: 2.270313242 | FF46: 8.032872937 | FG46: 6.431493948 | FH46: 5.170595436 | FI46: 6.913092069 | FJ46: 7.439219302 | FK46: -2.892737511 | FL46: -0.6508414765 | FM46: 5.277077022 | FN46: 6.163452763 | FO46: 4.771198022 | FP46: 5.299921786 | FQ46: 7.58130454 | FR46: 7.384739051 | FS46: 7.611829295 | FT46: 6.325374907 | FU46: 6.967676985 | FV46: -13.14616557 | FW46: 6.13564144 | FX46: 4.624846491 | FY46: 6.589201141 | FZ46: 4.358093257 | GA46: 6.657433996 | GB46: 5.823945599 | GC46: 3.987454792 | GD46: 4.638634062 | GE46: 7.080397761 | GF46: 4.038887555 | GG46: 7.274505144 | GH46: 3.603044532 | GI46: 6.256858093 | GJ46: 4.149754948 | GK46: 6.691614232 | GL46: -1.521148097 | GM46: 7.256915757 | GN46: 4.976963991 | GO46: -1.080339136 | GP46: 0.4755607478 | GQ46: 0.3635284054 | GR46: 1.4132236 | GS46: 1.582349833 | GT46: 0.380106438 | GU46: 4.57884914 | GV46: 0.771108996 | GW46: 0.288966922 | GX46: 2.973588539 | GY46: 5.741853489 | GZ46: 5.851178177 | HA46: 7.256915757 | HB46: 2.747071126 | HC46: -0.3302367592 | HD46: 2.591247349 | HE46: 1.177168785 | HF46: 7.256915757 | HG46: -0.1509370212 | HH46: -1.164038686 | HI46: -2.140329762 | HJ46: -2.140329762 | HK46: 6.736498689 | HL46: 6.115564532 | HM46: 1.389399586 | HN46: 1.812257052 | HO46: 6.384159141 | HP46: 1.258564017 | HQ46: -2.593924756 | HR46: -1.895710385 | HS46: -2.179828826 | HT46: -1.824872551 | HU46: 0.193975462 | HV46: -0.1149262668 | HW46: 1.187828939 | HX46: 1.860600002 | HY46: 2.623590407 | HZ46: 2.507248902 | IA46: 4.429434271 | IB46: 4.19380271 | IC46: 6.786245796 | ID46: 4.578751424 | IE46: 4.963002657 | IF46: 7.256915757 | IG46: -0.05060233452 | IH46: 0.04376347245 | II46: 1.313049243 | IJ46: -0.9660752306 | IK46: -1.328678565 | IL46: 1.105857616 | IM46: 0.5597584714 | IN46: 6.204101173 | IO46: -0.5249601248 | IP46: 2.172619892 | IQ46: -0.9378663515 | IR46: 0.7481356462 | IS46: 1
B47: T(P)Lee | C47: =$C$5+$C$6*C$33+$C$7*C$46+$C$8*C$46^2+$C$9*C$42 -> 1577.664563 | D47: =$C$5+$C$6*D$33+$C$7*D$46+$C$8*D$46^2+$C$9*D$42 -> 1593.996228 | E47: =$C$5+$C$6*E$33+$C$7*E$46+$C$8*E$46^2+$C$9*E$42 -> 1508.208855 | F47: 1469.805223 | G47: 1504.55228 | H47: -520131.0028 | I47: 1575.391495 | J47: 1394.494301 | K47: 1629.334062 | L47: 1597.956194 | M47: 1797.826992 | N47: 1662.887912 | O47: 1671.646791 | P47: 1638.841412 | Q47: 1704.144736 | R47: -286306.8891 | S47: 1793.551576 | T47: 1695.850418 | U47: 1688.250743 | V47: 1657.37236 | W47: 1698.961357 | X47: 1721.471082 | Y47: 1707.0074 | Z47: 1701.047513 | AA47: 1708.705528 | AB47: 1728.707029 | AC47: 1611.695861 | AD47: 1716.923706 | AE47: 1406.26681 | AF47: 1419.589871 | AG47: 1698.669862 | AH47: 1799.095175 | AI47: 1418.537434 | AJ47: -1.351847318e+29 | AK47: 1543.487154 | AL47: 1358.652888 | AM47: 1448.352911 | AN47: -359771.1284 | AO47: 1773.003472 | AP47: 1668.206232 | AQ47: 1582.734434 | AR47: 1813.755198 | AS47: 186.5145781 | AT47: 1649.18251 | AU47: 975.3797262 | AV47: 1389.413097 | AW47: 1699.881948 | AX47: 1350.374613 | AY47: 1212.461411 | AZ47: 1671.16986 | BA47: 1630.872371 | BB47: 1462.721342 | BC47: 1430.238859 | BD47: 1442.751661 | BE47: 1411.325444 | BF47: -2.319944094e+29 | BG47: 674.6214618 | BH47: 1625.068746 | BI47: 1353.193655 | BJ47: 1435.96007 | BK47: 1457.272196 | BL47: 1489.813018 | BM47: 1465.649941 | BN47: 1394.841417 | BO47: 1559.17881 | BP47: =$C$5+$C$6*BP$33+$C$7*BP$46+$C$8*BP$46^2+$C$9*BP$42 -> 1296.280555 | BQ47: 1588.617458 | BR47: 1509.547051 | BS47: 1590.143188 | BT47: -2068.866525 | BU47: 1658.8262 | BV47: 1426.825347 | BW47: 1014.573411 | BX47: 1567.025063 | BY47: 411.8199174 | BZ47: 519.5216619 | CA47: 1273.649814 | CB47: 1299.120523 | CC47: 1172.88423 | CD47: 1610.380701 | CE47: 932.580406 | CF47: 583.6810824 | CG47: -3.70673712e+29 | CH47: -403.3098596 | CI47: -1555.656536 | CJ47: 1470.841353 | CK47: 825.3849013 | CL47: 1746.82205 | CM47: 1718.1817 | CN47: 919.9861348 | CO47: 1679.807377 | CP47: 1615.02156 | CQ47: 1828.425883 | CR47: 1587.735389 | CS47: 1767.377277 | CT47: 1802.291675 | CU47: 1856.999054 | CV47: 1841.90832 | CW47: 1875.132261 | CX47: 1794.583721 | CY47: 1931.909797 | CZ47: 1779.361727 | DA47: 1704.560469 | DB47: 1829.229893 | DC47: 1905.134577 | DD47: 1962.555251 | DE47: 1927.076411 | DF47: 1861.1859 | DG47: 1793.562851 | DH47: 1181.749984 | DI47: 1632.932611 | DJ47: -1.652578124e+29 | DK47: 1735.539065 | DL47: 1516.667767 | DM47: 1550.235034 | DN47: 1742.123516 | DO47: 1205.924957 | DP47: 1512.537473 | DQ47: 1614.860598 | DR47: 1722.206398 | DS47: 591.7301589 | DT47: 1357.98603 | DU47: 1839.482121 | DV47: 1544.977068 | DW47: 1099.965877 | DX47: 1478.465097 | DY47: 1662.753007 | DZ47: 1610.734702 | EA47: 1466.760298 | EB47: =$C$5+$C$6*EB$33+$C$7*EB$46+$C$8*EB$46^2+$C$9*EB$42 -> 1119.432611 | EC47: 772.1656383 | ED47: 1360.670756 | EE47: 1225.324537 | EF47: 1743.258279 | EG47: 1559.488485 | EH47: 1656.031622 | EI47: 974.5020069 | EJ47: 1485.328811 | EK47: 1651.719976 | EL47: 1518.697104 | EM47: 1668.938669 | EN47: 1798.839964 | EO47: 1770.746274 | EP47: 1689.893483 | EQ47: 1848.285206 | ER47: 1669.945539 | ES47: 1703.614119 | ET47: 1673.554028 | EU47: 1828.897042 | EV47: 1696.73007 | EW47: 1854.877735 | EX47: 1860.075761 | EY47: 1866.787933 | EZ47: 1776.661588 | FA47: 1717.844191 | FB47: 1939.412878 | FC47: 1712.587583 | FD47: 1956.565758 | FE47: 1454.585635 | FF47: 1883.026345 | FG47: 1819.742798 | FH47: 1740.24652 | FI47: 1824.145004 | FJ47: 1849.333876 | FK47: 980.9799019 | FL47: 1268.957803 | FM47: 1766.31913 | FN47: 1821.731896 | FO47: 1727.499513 | FP47: 1752.281475 | FQ47: 1868.140572 | FR47: 1853.658356 | FS47: 1865.858227 | FT47: 1802.408669 | FU47: 1843.510672 | FV47: -1003.713419 | FW47: 1783.752818 | FX47: 1697.680185 | FY47: 1811.694688 | FZ47: 1689.920634 | GA47: 1823.93828 | GB47: 1787.255982 | GC47: 1671.454074 | GD47: 1710.981455 | GE47: 1851.891275 | GF47: 1688.228495 | GG47: 1859.440788 | GH47: 1661.541897 | GI47: 1812.45027 | GJ47: 1696.288243 | GK47: 1831.4942 | GL47: 1203.866945 | GM47: 1435.64216 | GN47: =$C$5+$C$6*GN$33+$C$7*GN$46+$C$8*GN$46^2+$C$9*GN$42 -> 1721.938887 | GO47: 1218.950766 | GP47: 1399.659087 | GQ47: 1389.397523 | GR47: 1474.346726 | GS47: 1492.752266 | GT47: 1366.345989 | GU47: 1713.402341 | GV47: 1421.503523 | GW47: 1397.794152 | GX47: 1581.239946 | GY47: 1774.007959 | GZ47: 1779.859598 | HA47: 1435.64216 | HB47: 1551.055015 | HC47: 1310.403594 | HD47: 1529.735023 | HE47: 1422.746691 | HF47: 1435.64216 | HG47: 1285.388166 | HH47: 1235.497121 | HI47: 1076.587194 | HJ47: 1076.587194 | HK47: 1786.088766 | HL47: 1746.105537 | HM47: 1415.979073 | HN47: 1505.245702 | HO47: 1763.211078 | HP47: 1431.373356 | HQ47: 874.7905749 | HR47: 1158.664568 | HS47: 916.4244277 | HT47: 972.8452872 | HU47: 1358.203479 | HV47: 1334.714445 | HW47: 1479.278425 | HX47: 1505.330161 | HY47: 1553.135087 | HZ47: 1552.435537 | IA47: 1714.929439 | IB47: 1693.033129 | IC47: 1832.171249 | ID47: 1710.634299 | IE47: 1721.937549 | IF47: 1435.64216 | IG47: 1363.040149 | IH47: 1370.384984 | II47: 1469.867358 | IJ47: 1240.916839 | IK47: 994.6950743 | IL47: 1456.445074 | IM47: 1391.261939 | IN47: 1784.364494 | IO47: 1280.096146 | IP47: 1506.915285 | IQ47: 1241.481446 | IR47: 1397.193798
B48: T(F,P) | C48: =(($L$4+$M$4*(C46-3))*C36^4+($L$5+$M$5*(C46-3))*C36^3+($L$6+$M$6*(C46-3))*C36^2+($L$7+$M$7*(C46-3))*C36)*(($C$5+$C$6*$C$13+$C$7*C$46+$C$8*C$46^2+$C$9*C$42)-($I$5*C46^2+$I$6*C46+$I$7))+($I$5*C46^2+$I$6*C46+$I$7) -> 1565.624063 | D48: =(($L$4+$M$4*(D46-3))*D36^4+($L$5+$M$5*(D46-3))*D36^3+($L$6+$M$6*(D46-3))*D36^2+($L$7+$M$7*(D46-3))*D36)*(($C$5+$C$6*$C$13+$C$7*D$46+$C$8*D$46^2+$C$9*D$42)-($I$5*D46^2+$I$6*D46+$I$7))+($I$5*D46^2+$I$6*D46+$I$7) -> 1586.622542 | E48: 1466.464749 | F48: 1411.984031 | G48: 1456.518928 | H48: -5045907.793 | I48: 1556.365659 | J48: 1279.05236 | K48: 1641.172398 | L48: 1595.222563 | M48: 1942.948092 | N48: 1690.319474 | O48: 1704.505083 | P48: 1649.460211 | Q48: 1755.848677 | R48: -2167618.795 | S48: 1929.604768 | T48: 1741.3225 | U48: 1726.454279 | V48: 1675.983483 | W48: 1739.632483 | X48: 1784.206507 | Y48: 1759.315647 | Z48: 1747.798635 | AA48: 1758.604579 | AB48: 1790.1487 | AC48: 1611.695861 | AD48: 1716.923706 | AE48: 1406.26681 | AF48: 1419.589871 | AG48: 1698.669862 | AH48: 1799.095175 | AI48: 1418.537434 | AJ48: 5.989057653e+41 | AK48: 1543.487154 | AL48: 1358.652888 | AM48: 1448.352911 | AN48: -359771.1284 | AO48: 1773.003472 | AP48: 1668.206232 | AQ48: 1582.734434 | AR48: 1813.755198 | AS48: 262.577623 | AT48: 1649.18251 | AU48: 975.3797262 | AV48: 1389.413097 | AW48: 1699.881948 | AX48: 1350.374613 | AY48: 1212.461411 | AZ48: 1671.16986 | BA48: 1630.872371 | BB48: 1462.721342 | BC48: 1430.238859 | BD48: 1442.751661 | BE48: 1411.325444 | BF48: 1.34665661e+42 | BG48: 705.8895739 | BH48: 1625.068746 | BI48: 1353.193655 | BJ48: 1435.96007 | BK48: 1457.272196 | BL48: 1489.813018 | BM48: 1465.649941 | BN48: 1394.841417 | BO48: 1559.17881 | BP48: =(($L$4+$M$4*(BP46-3))*BP36^4+($L$5+$M$5*(BP46-3))*BP36^3+($L$6+$M$6*(BP46-3))*BP36^2+($L$7+$M$7*(BP46-3))*BP36)*(($C$5+$C$6*$C$13+$C$7*BP$46+$C$8*BP$46^2+$C$9*BP$42)-($I$5*BP46^2+$I$6*BP46+$I$7))+($I$5*BP46^2+$I$6*BP46+$I$7) -> 1296.280555 | BQ48: 1588.617458 | BR48: 1509.547051 | BS48: 1590.143188 | BT48: -2068.866525 | BU48: 1658.8262 | BV48: 1426.825347 | BW48: 1014.573411 | BX48: 1567.025063 | BY48: 504.3593869 | BZ48: 519.5216619 | CA48: 1273.649814 | CB48: 1299.120523 | CC48: 1172.88423 | CD48: 1610.380701 | CE48: 987.9279973 | CF48: 659.420946 | CG48: 2.666670178e+42 | CH48: -357.3035124 | CI48: -1295.580589 | CJ48: 1470.841353 | CK48: 825.3849013 | CL48: 1746.82205 | CM48: 1718.1817 | CN48: 945.4395658 | CO48: 1679.807377 | CP48: 1615.02156 | CQ48: 1828.425883 | CR48: 1587.735389 | CS48: 1767.377277 | CT48: 1802.291675 | CU48: 1856.999054 | CV48: 1841.90832 | CW48: 1875.132261 | CX48: 1794.583721 | CY48: 1896.965879 | CZ48: 1779.361727 | DA48: 1704.560469 | DB48: 1829.229893 | DC48: 1905.134577 | DD48: 1962.555251 | DE48: 1927.076411 | DF48: 1861.1859 | DG48: 1793.562851 | DH48: 1181.749984 | DI48: 1632.932611 | DJ48: 8.126340842e+41 | DK48: 1735.539065 | DL48: 1516.667767 | DM48: 1550.235034 | DN48: 1742.123516 | DO48: 1205.924957 | DP48: 1512.537473 | DQ48: 1614.860598 | DR48: 1722.206398 | DS48: 591.7301589 | DT48: 1357.98603 | DU48: 1839.482121 | DV48: 1544.977068 | DW48: 1099.965877 | DX48: 1478.465097 | DY48: 1662.753007 | DZ48: 1610.734702 | EA48: 1466.760298 | EB48: =(($L$4+$M$4*(EB46-3))*EB36^4+($L$5+$M$5*(EB46-3))*EB36^3+($L$6+$M$6*(EB46-3))*EB36^2+($L$7+$M$7*(EB46-3))*EB36)*(($C$5+$C$6*$C$13+$C$7*EB$46+$C$8*EB$46^2+$C$9*EB$42)-($I$5*EB46^2+$I$6*EB46+$I$7))+($I$5*EB46^2+$I$6*EB46+$I$7) -> 1119.432611 | EC48: 791.382195 | ED48: 1360.670756 | EE48: 1225.324537 | EF48: 1743.258279 | EG48: 1559.488485 | EH48: 1656.031622 | EI48: 993.0382353 | EJ48: 1485.328811 | EK48: 1651.719976 | EL48: 1518.697104 | EM48: 1668.938669 | EN48: 1798.839964 | EO48: 1770.746274 | EP48: 1689.893483 | EQ48: 1848.285206 | ER48: 1669.945539 | ES48: 1703.614119 | ET48: 1673.554028 | EU48: 1828.897042 | EV48: 1696.73007 | EW48: 1854.877735 | EX48: 1860.075761 | EY48: 1866.787933 | EZ48: 1776.661588 | FA48: 1717.844191 | FB48: 1939.412878 | FC48: 1712.587583 | FD48: 1956.565758 | FE48: 1454.585635 | FF48: 1883.026345 | FG48: 1819.742798 | FH48: 1740.24652 | FI48: 1824.145004 | FJ48: 1849.333876 | FK48: 980.9799019 | FL48: 1268.957803 | FM48: 1766.31913 | FN48: 1821.731896 | FO48: 1727.499513 | FP48: 1752.281475 | FQ48: 1868.140572 | FR48: 1853.658356 | FS48: 1865.858227 | FT48: 1802.408669 | FU48: 1843.510672 | FV48: -1003.713419 | FW48: 1783.752818 | FX48: 1697.680185 | FY48: 1811.694688 | FZ48: 1689.920634 | GA48: 1823.93828 | GB48: 1787.255982 | GC48: 1671.454074 | GD48: 1710.981455 | GE48: 1851.891275 | GF48: 1688.228495 | GG48: 1859.440788 | GH48: 1661.541897 | GI48: 1812.45027 | GJ48: 1696.288243 | GK48: 1831.4942 | GL48: 1203.866945 | GM48: 1435.64216 | GN48: =(($L$4+$M$4*(GN46-3))*GN36^4+($L$5+$M$5*(GN46-3))*GN36^3+($L$6+$M$6*(GN46-3))*GN36^2+($L$7+$M$7*(GN46-3))*GN36)*(($C$5+$C$6*$C$13+$C$7*GN$46+$C$8*GN$46^2+$C$9*GN$42)-($I$5*GN46^2+$I$6*GN46+$I$7))+($I$5*GN46^2+$I$6*GN46+$I$7) -> 1721.938887 | GO48: 1218.950766 | GP48: 1399.659087 | GQ48: 1389.397523 | GR48: 1474.346726 | GS48: 1492.752266 | GT48: 1366.345989 | GU48: 1713.402341 | GV48: 1421.503523 | GW48: 1397.794152 | GX48: 1581.239946 | GY48: 1774.007959 | GZ48: 1779.859598 | HA48: 1435.64216 | HB48: 1551.055015 | HC48: 1310.403594 | HD48: 1529.735023 | HE48: 1422.746691 | HF48: 1435.64216 | HG48: 1285.388166 | HH48: 1235.497121 | HI48: 1076.587194 | HJ48: 1076.587194 | HK48: 1786.088766 | HL48: 1746.105537 | HM48: 1415.979073 | HN48: 1505.245702 | HO48: 1763.211078 | HP48: 1431.373356 | HQ48: 874.7905749 | HR48: 1158.664568 | HS48: 916.4244277 | HT48: 972.8452872 | HU48: 1358.203479 | HV48: 1334.714445 | HW48: 1479.278425 | HX48: 1505.330161 | HY48: 1553.135087 | HZ48: 1552.435537 | IA48: 1714.929439 | IB48: 1693.033129 | IC48: 1832.171249 | ID48: 1710.634299 | IE48: 1721.937549 | IF48: 1435.64216 | IG48: 1363.040149 | IH48: 1370.384984 | II48: 1469.867358 | IJ48: 1240.916839 | IK48: 994.6950743 | IL48: 1456.445074 | IM48: 1391.261939 | IN48: 1784.364494 | IO48: 1280.096146 | IP48: 1506.915285 | IQ48: 1241.481446 | IR48: 1397.193798
A49: goal seek | B49: T(P)Lee - T(F,P) | C49: =C47-C48 -> 12.04049974 | D49: 7.373686172 | E49: 41.74410567 | F49: 57.82119159 | G49: 48.0333523 | H49: 4525776.791 | I49: 19.02583592 | J49: 115.4419406 | K49: -11.8383361 | L49: 2.733631171 | M49: -145.1211003 | N49: -27.43156198 | O49: -32.85829231 | P49: -10.6187998 | Q49: -51.70394121 | R49: 1881311.906 | S49: -136.0531918 | T49: -45.47208215 | U49: -38.20353587 | V49: -18.61112225 | W49: -40.67112669 | X49: -62.7354253 | Y49: -52.30824675 | Z49: -46.75112186 | AA49: -49.89905056 | AB49: -61.44167076 | AC49: 0 | AD49: -2.68300937e-11 | AE49: 0 | AF49: 0 | AG49: -4.774847184e-12 | AH49: 0 | AI49: -7.730704965e-12 | AJ49: -5.989057653e+41 | AK49: -3.929017112e-10 | AL49: -5.00222086e-12 | AM49: -7.50333129e-12 | AN49: 0 | AO49: 0 | AP49: 0 | AQ49: 0 | AR49: 1.057287591e-10 | AS49: -76.06304488 | AT49: 0 | AU49: -5.761648936e-10 | AV49: 0 | AW49: 0 | AX49: -5.368292477e-10 | AY49: 0 | AZ49: 0 | BA49: 1.407443051e-10 | BB49: 0 | BC49: 0 | BD49: 0 | BE49: 0 | BF49: -1.34665661e+42 | BG49: -31.26811209 | BH49: -1.136868377e-11 | BI49: -9.322320693e-12 | BJ49: -1.614353096e-11 | BK49: 0 | BL49: 0 | BM49: 0 | BN49: 0 | BO49: =BO47-BO48 -> 0 | BP49: -1.818989404e-12 | BQ49: 0 | BR49: -6.66204869e-10 | BS49: -7.526068657e-11 | BT49: -9.185896488e-11 | BU49: 0 | BV49: 0 | BW49: -4.423554856e-10 | BX49: 0 | BY49: -92.53946951 | BZ49: -1.136868377e-12 | CA49: -1.500666258e-11 | CB49: 0 | CC49: 0 | CD49: -1.084572432e-10 | CE49: -55.34759132 | CF49: -75.73986366 | CG49: -2.666670178e+42 | CH49: -46.00634722 | CI49: -260.0759468 | CJ49: 0 | CK49: 0 | CL49: -1.259650162e-10 | CM49: 0 | CN49: -25.45343098 | CO49: 0 | CP49: 0 | CQ49: 0 | CR49: 0 | CS49: 0 | CT49: 0 | CU49: -1.841726771e-11 | CV49: 0 | CW49: 3.208242561e-10 | CX49: 0 | CY49: 34.94391745 | CZ49: 0 | DA49: 2.091837814e-11 | DB49: 0 | DC49: 0 | DD49: 0 | DE49: 1.341504685e-11 | DF49: 7.50333129e-12 | DG49: 0 | DH49: 0 | DI49: 0 | DJ49: -8.126340842e+41 | DK49: -5.138645065e-11 | DL49: 0 | DM49: 0 | DN49: -2.728484105e-12 | DO49: 0 | DP49: -3.865352483e-12 | DQ49: 0 | DR49: -4.274625098e-11 | DS49: 0 | DT49: 0 | DU49: -8.867573342e-12 | DV49: 0 | DW49: 0 | DX49: -1.243734005e-10 | DY49: 0 | DZ49: 0 | EA49: =EA47-EA48 -> -4.4974513e-10 | EB49: 0 | EC49: -19.21655662 | ED49: 0 | EE49: 0 | EF49: 0 | EG49: -4.320099833e-12 | EH49: 0 | EI49: -18.53622846 | EJ49: 0 | EK49: 0 | EL49: 0 | EM49: -2.728484105e-12 | EN49: 0 | EO49: 0 | EP49: 0 | EQ49: -2.910383046e-11 | ER49: 0 | ES49: -6.593836588e-12 | ET49: 0 | EU49: 0 | EV49: 0 | EW49: -7.048583939e-12 | EX49: 0 | EY49: -3.365130397e-11 | EZ49: 0 | FA49: -2.933120413e-11 | FB49: 0 | FC49: 8.503775462e-11 | FD49: 2.273736754e-12 | FE49: 0 | FF49: 0 | FG49: 0 | FH49: 6.66204869e-11 | FI49: -2.728484105e-12 | FJ49: -2.68300937e-11 | FK49: -2.546585165e-11 | FL49: -3.36285666e-10 | FM49: 0 | FN49: 0 | FO49: -4.001776688e-11 | FP49: 0 | FQ49: 5.36601874e-11 | FR49: -6.20730134e-11 | FS49: 3.306013241e-10 | FT49: 0 | FU49: 0 | FV49: 0 | FW49: 0 | FX49: -3.410605132e-12 | FY49: 0 | FZ49: 0 | GA49: 0 | GB49: 0 | GC49: 8.067218005e-10 | GD49: -1.637090463e-11 | GE49: -2.50111043e-12 | GF49: 0 | GG49: -1.932676241e-11 | GH49: 0 | GI49: 0 | GJ49: 0 | GK49: 0 | GL49: -4.138200893e-11 | GM49: =GM47-GM48 -> -4.053513294e-07 | GN49: -2.978595148e-11 | GO49: 0 | GP49: 0 | GQ49: 0 | GR49: 0 | GS49: -8.526512829e-10 | GT49: 0 | GU49: -1.20508048e-11 | GV49: -8.640199667e-12 | GW49: 0 | GX49: 0 | GY49: 0 | GZ49: 0 | HA49: -4.053513294e-07 | HB49: 0 | HC49: -9.07220965e-11 | HD49: -1.771240932e-10 | HE49: 0 | HF49: -4.053513294e-07 | HG49: 0 | HH49: 0 | HI49: 0 | HJ49: 0 | HK49: 7.048583939e-12 | HL49: 0 | HM49: -2.50111043e-12 | HN49: -1.023181539e-11 | HO49: 0 | HP49: 0 | HQ49: 5.684341886e-12 | HR49: -2.580691216e-10 | HS49: 4.547473509e-12 | HT49: 0 | HU49: 0 | HV49: -1.568878361e-11 | HW49: 0 | HX49: -2.046363079e-12 | HY49: -2.746673999e-10 | HZ49: 0 | IA49: -1.818989404e-12 | IB49: 0 | IC49: 0 | ID49: -1.159605745e-11 | IE49: -3.319655661e-11 | IF49: -4.053513294e-07 | IG49: -5.502442946e-11 | IH49: -1.500666258e-11 | II49: 0 | IJ49: 0 | IK49: 0 | IL49: 0 | IM49: -6.787104212e-10 | IN49: 0 | IO49: -9.890754882e-11 | IP49: -4.547473509e-12 | IQ49: 0 | IR49: 0
A51: OUTPUT | B51: T (Celsius) | C51: =IF(C$27<$O$4,NA(),IF(C$28>C$29,C47,NA())) ->  | D51: =IF(D$27<$O$4,NA(),IF(D$28>D$29,D47,NA())) ->  | AK51: 1543.487154 | AM51: 1448.352911 | AO51: 1773.003472 | AP51: 1668.206232 | AQ51: 1582.734434 | AR51: 1813.755198 | AT51: 1649.18251 | AW51: 1699.881948 | AX51: 1350.374613 | AZ51: 1671.16986 | BA51: 1630.872371 | BB51: 1462.721342 | BC51: 1430.238859 | BH51: 1625.068746 | BJ51: 1435.96007 | BK51: 1457.272196 | BL51: 1489.813018 | BO51: 1559.17881 | BP51: =IF(BP$27<$O$4,NA(),IF(BP$28>BP$29,BP47,NA())) ->  | BQ51: 1588.617458 | BR51: 1509.547051 | BS51: 1590.143188 | BU51: 1658.8262 | BX51: 1567.025063 | CD51: 1610.380701 | CJ51: 1470.841353 | CO51: 1679.807377 | CP51: 1615.02156 | CQ51: 1828.425883 | DI51: 1632.932611 | DK51: 1735.539065 | DN51: 1742.123516 | DP51: 1512.537473 | DR51: 1722.206398 | EB51: =IF(EB$27<$O$4,NA(),IF(EB$28>EB$29,EB47,NA())) ->  | EG51: 1559.488485 | EH51: 1656.031622 | EJ51: 1485.328811 | EK51: 1651.719976 | EM51: 1668.938669 | GF51: 1688.228495 | GH51: 1661.541897 | GJ51: 1696.288243 | GN51: =IF(GN$27<$O$4,NA(),IF(GN$28>GN$29,GN47,NA())) ->  | GS51: 1492.752266 | GU51: 1713.402341 | GW51: 1397.794152 | HW51: 1479.278425 | IA51: 1714.929439 | IB51: 1693.033129 | IL51: 1456.445074
A52: OUTPUT | B52: P (Gpa) | C52: =IF(C$27<$O$4,NA(),IF(C$28>C$29,C46,NA())) ->  | AK52: 2.096288221 | AM52: 0.8635411921 | AO52: 5.512727936 | AP52: 4.021367522 | AQ52: 2.55316701 | AR52: 5.826241874 | AT52: 3.469069392 | AW52: 4.149366965 | AX52: -0.2283859595 | AZ52: 3.689509211 | BA52: 3.108529537 | BB52: 1.192942573 | BC52: 0.5564241145 | BH52: 2.923576008 | BJ52: 0.7856655547 | BK52: 1.008741551 | BL52: 1.495701163 | BO52: =IF(BO$27<$O$4,NA(),IF(BO$28>BO$29,BO46,NA())) -> 2.462374635 | BQ52: 2.737927975 | BR52: 1.611567862 | BS52: 2.907514766 | BU52: 3.712490938 | BX52: 2.531006355 | CD52: 2.902417778 | CJ52: 1.076500167 | CO52: 4.063281928 | CP52: 3.027444089 | CQ52: 6.023457466 | DI52: 3.255409729 | DK52: 4.848196057 | DN52: 4.694678275 | DP52: 1.860153249 | DR52: 4.927392149 | EA52: =IF(EA$27<$O$4,NA(),IF(EA$28>EA$29,EA46,NA())) ->  | EG52: 2.358856985 | EH52: 3.576884231 | EJ52: 1.246461998 | EK52: 3.618780345 | EM52: 3.764843666 | GF52: 4.038887555 | GH52: 3.603044532 | GJ52: 4.149754948 | GM52: =IF(GM$27<$O$4,NA(),IF(GM$28>GM$29,GM46,NA())) ->  | GS52: 1.582349833 | GU52: 4.57884914 | GW52: 0.288966922 | HW52: 1.187828939 | IA52: 4.429434271 | IB52: 4.19380271 | IL52: 1.105857616
A53: OUTPUT | B53: Sample Name | C53: =IF(C$27<$O$4,NA(),IF(C$28>C$29,C22,NA())) ->  | D53: =IF(D$27<$O$4,NA(),IF(D$28>D$29,D22,NA())) ->  | F53: =IF(F$27<$O$4,NA(),IF(F$28>F$29,F22,NA())) ->  | AC53: =IF(AC$27<$O$4,NA(),IF(AC$28>AC$29,AC22,NA())) ->  | AD53: =IF(AD$27<$O$4,NA(),IF(AD$28>AD$29,AD22,NA())) ->  | AK53: TZ - Lashaine Gibson | AM53: TZ - Lashaine Gibson | AO53: TZ - Lashaine Gibson | AP53: TZ - Lashaine Gibson | AQ53: TZ - Lashaine Gibson | AR53: TZ - Lashaine Gibson | AT53: TZ - Lashaine Gibson | AW53: Tanzania-LeeRudnick | AX53: Tanzania-LeeRudnick | AZ53: Tanzania-LeeRudnick | BA53: Tanzania-LeeRudnick | BB53: Tanzania-LeeRudnick | BC53: Tanzania-LeeRudnick | BH53: Tanzania-LeeRudnick | BJ53: Tanzania-LeeRudnick | BK53: Tanzania-LeeRudnick | BL53: Tanzania-LeeRudnick | BO53: Tanzania-LeeRudnick | BQ53: Tanzania-LeeRudnick | BR53: Tanzania-LeeRudnick | BS53: Tanzania-LeeRudnick | BU53: Tanzania-LeeRudnick | BX53: Tanzania-LeeRudnick | CD53: Tanzania-LeeRudnick | CJ53: Tanzania-LeeRudnick | CO53: Tanzania-LeeRudnick | CP53: =IF(CP$27<$O$4,NA(),IF(CP$28>CP$29,CP22,NA())) -> Tanzania-LeeRudnick | CQ53: Tanzania-LeeRudnick | DI53: Slave-Aulbach | DK53: Slave-Aulbach | DN53: Slave-Aulbach | DP53: Slave-Aulbach | DR53: Slave-Aulbach | EG53: KaapvaalFinschGibson | EH53: KaapvaalFinschGibson | EJ53: KaapvaalFinschGibson | EK53: KaapvaalFinschGibson | EM53: KaapvaalSimon2007 | FB53: =IF(FB$27<$O$4,NA(),IF(FB$28>FB$29,FB22,NA())) ->  | GF53: SiberiaIonvo2011 | GH53: SiberiaIonvo2013 | GJ53: SiberiaIonvo2015 | GS53: SiberiaIonvo2024 | GU53: SiberiaIonvo2026 | GW53: SiberiaIonvo2028 | HN53: =IF(HN$27<$O$4,NA(),IF(HN$28>HN$29,HN22,NA())) ->  | HW53: SiberiaBoyd1998 | IA53: SiberiaBoyd2002 | IB53: SiberiaBoyd2003 | IL53: SiberiaBoyd2013
A54: OUTPUT | B54: MgO m (wt %) | C54: =IF(C$27<$O$4,NA(),IF(C$28>C$29,C18,NA())) ->  | D54: =IF(D$27<$O$4,NA(),IF(D$28>D$29,D18,NA())) ->  | AC54: =IF(AC$27<$O$4,NA(),IF(AC$28>AC$29,AC23,NA())) ->  | AK54: BD1542 | AM54: BD774 | AO54: BD775 | AP54: BD796 | AQ54: BD822 | AR54: BD787 | AT54: BD735 | AW54: LB1 ave | AX54: LB6 ave | AZ54: LB8 ave | BA54: LB 9 ave | BB54: LB 11 ave | BC54: LB 14 ave | BH54: LB21 ave | BJ54: LB 23 ave | BK54: LB26 ave | BL54: LB 29 ave | BO54: LB 36 ave | BQ54: LB 55 ave | BR54: LB61 ave | BS54: KAT 1 WSU | BU54: LB2 AVERAGE | BX54: LB24 ave | CD54: 89-661 | CJ54: 89-672 | CO54: 89-680 | CP54: 89-719 | CQ54: TZ 2-16 | DI54: vr43466 | DK54: vr50851 | DN54: vr51067 | DP54: vr67112 | DR54: yk1912 | EG54: F05BD3694 | EH54: F05JM8 | EJ54: F05JM9 | EK54: FRB1402 | EM54: K2 | GF54: U24 | GH54: U97 | GJ54: U504 | GS54: U283 | GU54: U506 | GW54: U1109 | HW54: uv 191/89 | IA54: uv 111/91 | IB54: uv 65/92 | IL54: UV 485/89
A55: OUTPUT | B55: F melt degree | C55: =IF(C$27<$O$4,NA(),IF(C$28>C$29,C36,NA())) ->  | D55: =IF(D$27<$O$4,NA(),IF(D$28>D$29,D36,NA())) -> 

Sheet calculations F contours
A1: Peridotite Protolith Thermobarometry
A2: enable macros; click ctrl+t to run
B3: Parameter constants | K3: T* | N3: Filters
B4: Lee T-MgOm | E4: T liquidus KLB-1 Hezberg O'Hara 2002 | H4: T sol hirschmann | K4: a (F^4) | L4: =[1]calculations!L4 -> 0 | M4: =[1]calculations!M4 -> 0 | N4: minimum Mg# | O4: 0.9
B5: a0 | C5: 1070 | E5: c1 C | F5: 1690 | H5: a C/Gpa^2 | I5: -5.104 | K5: b (F^3) | L5: =[1]calculations!L5 -> 1.289 | M5: =[1]calculations!M5 -> -0.302125 | N5: exclude Opx-rich samples Y/N | O5: N
B6: a1 MgO | C6: 14.93 | E6: c2 C/Gpa | F6: 54 | H6: b C/Gpa | I6: 132.899 | K6: c (F^2) | L6: =[1]calculations!L6 -> -1.7596 | M6: =[1]calculations!M6 -> 0.571575
A7: 37.3 | B7: a2 P | C7: 72.23 | E7: C3 C/Gpa^2 | F7: -2 | H7: c C | I7: 1120 | K7: d (F) | L7: =[1]calculations!L7 -> 1.4737 | M7: =[1]calculations!M7 -> -0.271375
A8: 8.02 | B8: a3 P^2 | C8: -3.249
A9: 39.22 | B9: a3 H2O | C9: -18.53
A10: 8.1
B12: Primitive Mantle KLB-1
A13: wt % | B13: MgO o | C13: =[1]calculations!C13 -> 37.3 | D13: =C13 -> 37.3 | E13: =D13 -> 37.3 | F13: 37.3 | G13: 37.3 | H13: 37.3 | I13: 37.3 | J13: 37.3 | K13: 37.3 | L13: 37.3 | M13: 37.3 | N13: 37.3 | O13: 37.3 | P13: 37.3 | Q13: 37.3 | R13: 37.3 | S13: 37.3 | T13: 37.3 | U13: =T13 -> 37.3 | V13: 37.3 | W13: 37.3 | X13: 37.3 | Y13: 37.3 | Z13: 37.3 | AA13: 37.3 | AB13: 37.3 | AC13: 37.3 | AD13: 37.3 | AE13: 37.3 | AF13: 37.3 | AG13: 37.3 | AH13: 37.3 | AI13: 37.3 | AJ13: 37.3 | AK13: =AJ13 -> 37.3 | AL13: 37.3 | AM13: 37.3 | AN13: 37.3 | AO13: 37.3 | AP13: 37.3 | AQ13: 37.3 | AR13: 37.3 | AS13: 37.3 | AT13: 37.3 | AU13: 37.3 | AV13: 37.3 | AW13: 37.3 | AX13: 37.3 | AY13: 37.3 | AZ13: 37.3 | BA13: =AZ13 -> 37.3 | BB13: 37.3 | BC13: 37.3 | BD13: 37.3 | BE13: 37.3 | BF13: 37.3 | BG13: 37.3 | BH13: 37.3 | BI13: 37.3 | BJ13: 37.3 | BK13: 37.3 | BL13: 37.3 | BM13: 37.3 | BN13: 37.3 | BO13: 37.3 | BP13: 37.3 | BQ13: =BP13 -> 37.3 | BR13: 37.3 | BS13: 37.3 | BT13: 37.3 | BU13: 37.3 | BV13: 37.3 | BW13: 37.3 | BX13: 37.3 | BY13: 37.3 | BZ13: 37.3 | CA13: 37.3 | CB13: 37.3 | CC13: 37.3 | CD13: 37.3 | CE13: 37.3 | CF13: 37.3 | CG13: =CF13 -> 37.3 | CH13: 37.3 | CI13: 37.3 | CJ13: 37.3 | CK13: 37.3 | CL13: 37.3 | CM13: 37.3 | CN13: 37.3 | CO13: 37.3 | CP13: 37.3 | CQ13: 37.3 | CR13: 37.3 | CS13: 37.3 | CT13: 37.3 | CU13: 37.3 | CV13: 37.3 | CW13: =CV13 -> 37.3 | CX13: 37.3 | CY13: 37.3 | CZ13: 37.3 | DA13: 37.3 | DB13: 37.3 | DC13: 37.3 | DD13: 37.3 | DE13: 37.3 | DF13: 37.3 | DG13: 37.3 | DH13: 37.3 | DI13: 37.3 | DJ13: 37.3 | DK13: 37.3 | DL13: 37.3 | DM13: =DL13 -> 37.3 | DN13: 37.3 | DO13: 37.3 | DP13: 37.3 | DQ13: 37.3 | DR13: 37.3 | DS13: 37.3 | DT13: 37.3 | DU13: 37.3 | DV13: 37.3 | DW13: 37.3 | DX13: 37.3 | DY13: 37.3 | DZ13: 37.3 | EA13: 37.3 | EB13: 37.3 | EC13: =EB13 -> 37.3 | ED13: 37.3 | EE13: 37.3 | EF13: 37.3 | EG13: 37.3 | EH13: 37.3 | EI13: 37.3 | EJ13: 37.3 | EK13: 37.3 | EL13: 37.3 | EM13: 37.3 | EN13: 37.3 | EO13: 37.3 | EP13: 37.3 | EQ13: 37.3 | ER13: 37.3 | ES13: =ER13 -> 37.3 | ET13: 37.3 | EU13: 37.3 | EV13: 37.3 | EW13: 37.3 | EX13: 37.3 | EY13: 37.3 | EZ13: 37.3 | FA13: 37.3 | FB13: 37.3 | FC13: 37.3 | FD13: 37.3 | FE13: 37.3 | FF13: 37.3 | FG13: 37.3 | FH13: 37.3 | FI13: =FH13 -> 37.3 | FJ13: 37.3 | FK13: 37.3 | FL13: 37.3 | FM13: 37.3 | FN13: 37.3 | FO13: 37.3 | FP13: 37.3 | FQ13: 37.3 | FR13: 37.3 | FS13: 37.3 | FT13: 37.3 | FU13: 37.3 | FV13: 37.3 | FW13: 37.3 | FX13: 37.3 | FY13: =FX13 -> 37.3 | FZ13: 37.3 | GA13: 37.3 | GB13: 37.3 | GC13: 37.3 | GD13: 37.3 | GE13: 37.3 | GF13: 37.3 | GG13: 37.3 | GH13: 37.3 | GI13: 37.3 | GJ13: 37.3 | GK13: 37.3 | GL13: 37.3 | GM13: 37.3 | GN13: 37.3 | GO13: =GN13 -> 37.3 | GP13: 37.3 | GQ13: 37.3 | GR13: 37.3 | GS13: 37.3 | GT13: 37.3 | GU13: 37.3 | GV13: 37.3 | GW13: 37.3 | GX13: 37.3 | GY13: 37.3 | GZ13: 37.3 | HA13: 37.3 | HB13: 37.3 | HC13: 37.3 | HD13: 37.3 | HE13: =HD13 -> 37.3 | HF13: 37.3 | HG13: 37.3 | HH13: 37.3 | HI13: 37.3 | HJ13: 37.3 | HK13: 37.3 | HL13: 37.3 | HM13: 37.3 | HN13: 37.3 | HO13: 37.3 | HP13: 37.3 | HQ13: 37.3 | HR13: 37.3 | HS13: 37.3 | HT13: 37.3 | HU13: =HT13 -> 37.3 | HV13: 37.3 | HW13: 37.3 | HX13: 37.3 | HY13: 37.3 | HZ13: 37.3 | IA13: 37.3 | IB13: 37.3 | IC13: 37.3 | ID13: 37.3 | IE13: 37.3 | IF13: 37.3 | IG13: 37.3 | IH13: 37.3 | II13: 37.3 | IJ13: 37.3 | IK13: =IJ13 -> 37.3 | IL13: 37.3 | IM13: 37.3 | IN13: 37.3 | IO13: 37.3 | IP13: 37.3 | IQ13: 37.3 | IR13: 37.3 | IS13: 37.3
A14: wt % | B14: FeO o | C14: =[1]calculations!C14 -> 8.02 | D14: =C14 -> 8.02 | E14: 8.02 | F14: 8.02 | G14: 8.02 | H14: 8.02 | I14: 8.02 | J14: 8.02 | K14: 8.02 | L14: 8.02 | M14: 8.02 | N14: 8.02 | O14: 8.02 | P14: 8.02 | Q14: 8.02 | R14: 8.02 | S14: 8.02 | T14: 8.02 | U14: 8.02 | V14: 8.02 | W14: 8.02 | X14: 8.02 | Y14: 8.02 | Z14: 8.02 | AA14: 8.02 | AB14: 8.02 | AC14: 8.02 | AD14: 8.02 | AE14: 8.02 | AF14: 8.02 | AG14: 8.02 | AH14: 8.02 | AI14: 8.02 | AJ14: 8.02 | AK14: 8.02 | AL14: 8.02 | AM14: 8.02 | AN14: 8.02 | AO14: 8.02 | AP14: 8.02 | AQ14: 8.02 | AR14: 8.02 | AS14: 8.02 | AT14: 8.02 | AU14: 8.02 | AV14: 8.02 | AW14: 8.02 | AX14: 8.02 | AY14: 8.02 | AZ14: 8.02 | BA14: 8.02 | BB14: 8.02 | BC14: 8.02 | BD14: 8.02 | BE14: 8.02 | BF14: 8.02 | BG14: 8.02 | BH14: 8.02 | BI14: 8.02 | BJ14: 8.02 | BK14: 8.02 | BL14: 8.02 | BM14: 8.02 | BN14: 8.02 | BO14: 8.02 | BP14: 8.02 | BQ14: 8.02 | BR14: 8.02 | BS14: 8.02 | BT14: 8.02 | BU14: 8.02 | BV14: 8.02 | BW14: 8.02 | BX14: 8.02 | BY14: 8.02 | BZ14: 8.02 | CA14: 8.02 | CB14: 8.02 | CC14: 8.02 | CD14: 8.02 | CE14: 8.02 | CF14: 8.02 | CG14: 8.02 | CH14: 8.02 | CI14: 8.02 | CJ14: 8.02 | CK14: 8.02 | CL14: 8.02 | CM14: 8.02 | CN14: 8.02 | CO14: 8.02 | CP14: 8.02 | CQ14: 8.02 | CR14: 8.02 | CS14: 8.02 | CT14: 8.02 | CU14: 8.02 | CV14: 8.02 | CW14: 8.02 | CX14: 8.02 | CY14: 8.02 | CZ14: 8.02 | DA14: 8.02 | DB14: 8.02 | DC14: 8.02 | DD14: 8.02 | DE14: 8.02 | DF14: 8.02 | DG14: 8.02 | DH14: 8.02 | DI14: 8.02 | DJ14: 8.02 | DK14: 8.02 | DL14: 8.02 | DM14: 8.02 | DN14: 8.02 | DO14: 8.02 | DP14: 8.02 | DQ14: 8.02 | DR14: 8.02 | DS14: 8.02 | DT14: 8.02 | DU14: 8.02 | DV14: 8.02 | DW14: 8.02 | DX14: 8.02 | DY14: 8.02 | DZ14: 8.02 | EA14: 8.02 | EB14: 8.02 | EC14: 8.02 | ED14: 8.02 | EE14: 8.02 | EF14: 8.02 | EG14: 8.02 | EH14: 8.02 | EI14: 8.02 | EJ14: 8.02 | EK14: 8.02 | EL14: 8.02 | EM14: 8.02 | EN14: 8.02 | EO14: 8.02 | EP14: 8.02 | EQ14: 8.02 | ER14: 8.02 | ES14: 8.02 | ET14: 8.02 | EU14: 8.02 | EV14: 8.02 | EW14: 8.02 | EX14: 8.02 | EY14: 8.02 | EZ14: 8.02 | FA14: 8.02 | FB14: 8.02 | FC14: 8.02 | FD14: 8.02 | FE14: 8.02 | FF14: 8.02 | FG14: 8.02 | FH14: 8.02 | FI14: 8.02 | FJ14: 8.02 | FK14: 8.02 | FL14: 8.02 | FM14: 8.02 | FN14: 8.02 | FO14: 8.02 | FP14: 8.02 | FQ14: 8.02 | FR14: 8.02 | FS14: 8.02 | FT14: 8.02 | FU14: 8.02 | FV14: 8.02 | FW14: 8.02 | FX14: 8.02 | FY14: 8.02 | FZ14: 8.02 | GA14: 8.02 | GB14: 8.02 | GC14: 8.02 | GD14: 8.02 | GE14: 8.02 | GF14: 8.02 | GG14: 8.02 | GH14: 8.02 | GI14: 8.02 | GJ14: 8.02 | GK14: 8.02 | GL14: 8.02 | GM14: 8.02 | GN14: 8.02 | GO14: 8.02 | GP14: 8.02 | GQ14: 8.02 | GR14: 8.02 | GS14: 8.02 | GT14: 8.02 | GU14: 8.02 | GV14: 8.02 | GW14: 8.02 | GX14: 8.02 | GY14: 8.02 | GZ14: 8.02 | HA14: 8.02 | HB14: 8.02 | HC14: 8.02 | HD14: 8.02 | HE14: 8.02 | HF14: 8.02 | HG14: 8.02 | HH14: 8.02 | HI14: 8.02 | HJ14: 8.02 | HK14: 8.02 | HL14: 8.02 | HM14: 8.02 | HN14: 8.02 | HO14: 8.02 | HP14: 8.02 | HQ14: 8.02 | HR14: 8.02 | HS14: 8.02 | HT14: 8.02 | HU14: 8.02 | HV14: 8.02 | HW14: 8.02 | HX14: 8.02 | HY14: 8.02 | HZ14: 8.02 | IA14: 8.02 | IB14: 8.02 | IC14: 8.02 | ID14: 8.02 | IE14: 8.02 | IF14: 8.02 | IG14: 8.02 | IH14: 8.02 | II14: 8.02 | IJ14: 8.02 | IK14: 8.02 | IL14: 8.02 | IM14: 8.02 | IN14: 8.02 | IO14: 8.02 | IP14: 8.02 | IQ14: 8.02 | IR14: 8.02 | IS14: 8.02
B15: Mg# r | C15: =C13/40.3/(C13/40.3+C14/71.85) -> 0.8923798561 | D15: 0.8923798561 | E15: 0.8923798561 | F15: 0.8923798561 | G15: 0.8923798561 | H15: 0.8923798561 | I15: 0.8923798561 | J15: 0.8923798561 | K15: 0.8923798561 | L15: 0.8923798561 | M15: 0.8923798561 | N15: 0.8923798561 | O15: 0.8923798561 | P15: 0.8923798561 | Q15: 0.8923798561 | R15: 0.8923798561 | S15: 0.8923798561 | T15: 0.8923798561 | U15: 0.8923798561 | V15: 0.8923798561 | W15: 0.8923798561 | X15: 0.8923798561 | Y15: 0.8923798561 | Z15: 0.8923798561 | AA15: 0.8923798561 | AB15: 0.8923798561 | AC15: 0.8923798561 | AD15: 0.8923798561 | AE15: 0.8923798561 | AF15: 0.8923798561 | AG15: 0.8923798561 | AH15: 0.8923798561 | AI15: 0.8923798561 | AJ15: 0.8923798561 | AK15: 0.8923798561 | AL15: 0.8923798561 | AM15: 0.8923798561 | AN15: 0.8923798561 | AO15: 0.8923798561 | AP15: 0.8923798561 | AQ15: 0.8923798561 | AR15: 0.8923798561 | AS15: 0.8923798561 | AT15: 0.8923798561 | AU15: 0.8923798561 | AV15: 0.8923798561 | AW15: 0.8923798561 | AX15: 0.8923798561 | AY15: 0.8923798561 | AZ15: 0.8923798561 | BA15: 0.8923798561 | BB15: 0.8923798561 | BC15: 0.8923798561 | BD15: 0.8923798561 | BE15: 0.8923798561 | BF15: 0.8923798561 | BG15: 0.8923798561 | BH15: 0.8923798561 | BI15: 0.8923798561 | BJ15: 0.8923798561 | BK15: 0.8923798561 | BL15: 0.8923798561 | BM15: 0.8923798561 | BN15: 0.8923798561 | BO15: =BO13/40.3/(BO13/40.3+BO14/71.85) -> 0.8923798561 | BP15: 0.8923798561 | BQ15: 0.8923798561 | BR15: 0.8923798561 | BS15: 0.8923798561 | BT15: 0.8923798561 | BU15: 0.8923798561 | BV15: 0.8923798561 | BW15: 0.8923798561 | BX15: 0.8923798561 | BY15: 0.8923798561 | BZ15: 0.8923798561 | CA15: 0.8923798561 | CB15: 0.8923798561 | CC15: 0.8923798561 | CD15: 0.8923798561 | CE15: 0.8923798561 | CF15: 0.8923798561 | CG15: 0.8923798561 | CH15: 0.8923798561 | CI15: 0.8923798561 | CJ15: 0.8923798561 | CK15: 0.8923798561 | CL15: 0.8923798561 | CM15: 0.8923798561 | CN15: 0.8923798561 | CO15: 0.8923798561 | CP15: 0.8923798561 | CQ15: 0.8923798561 | CR15: 0.8923798561 | CS15: 0.8923798561 | CT15: 0.8923798561 | CU15: 0.8923798561 | CV15: 0.8923798561 | CW15: 0.8923798561 | CX15: 0.8923798561 | CY15: 0.8923798561 | CZ15: 0.8923798561 | DA15: 0.8923798561 | DB15: 0.8923798561 | DC15: 0.8923798561 | DD15: 0.8923798561 | DE15: 0.8923798561 | DF15: 0.8923798561 | DG15: 0.8923798561 | DH15: 0.8923798561 | DI15: 0.8923798561 | DJ15: 0.8923798561 | DK15: 0.8923798561 | DL15: 0.8923798561 | DM15: 0.8923798561 | DN15: 0.8923798561 | DO15: 0.8923798561 | DP15: 0.8923798561 | DQ15: 0.8923798561 | DR15: 0.8923798561 | DS15: 0.8923798561 | DT15: 0.8923798561 | DU15: 0.8923798561 | DV15: 0.8923798561 | DW15: 0.8923798561 | DX15: 0.8923798561 | DY15: 0.8923798561 | DZ15: 0.8923798561 | EA15: =EA13/40.3/(EA13/40.3+EA14/71.85) -> 0.8923798561 | EB15: 0.8923798561 | EC15: 0.8923798561 | ED15: 0.8923798561 | EE15: 0.8923798561 | EF15: 0.8923798561 | EG15: 0.8923798561 | EH15: 0.8923798561 | EI15: 0.8923798561 | EJ15: 0.8923798561 | EK15: 0.8923798561 | EL15: 0.8923798561 | EM15: 0.8923798561 | EN15: 0.8923798561 | EO15: 0.8923798561 | EP15: 0.8923798561 | EQ15: 0.8923798561 | ER15: 0.8923798561 | ES15: 0.8923798561 | ET15: 0.8923798561 | EU15: 0.8923798561 | EV15: 0.8923798561 | EW15: 0.8923798561 | EX15: 0.8923798561 | EY15: 0.8923798561 | EZ15: 0.8923798561 | FA15: 0.8923798561 | FB15: 0.8923798561 | FC15: 0.8923798561 | FD15: 0.8923798561 | FE15: 0.8923798561 | FF15: 0.8923798561 | FG15: 0.8923798561 | FH15: 0.8923798561 | FI15: 0.8923798561 | FJ15: 0.8923798561 | FK15: 0.8923798561 | FL15: 0.8923798561 | FM15: 0.8923798561 | FN15: 0.8923798561 | FO15: 0.8923798561 | FP15: 0.8923798561 | FQ15: 0.8923798561 | FR15: 0.8923798561 | FS15: 0.8923798561 | FT15: 0.8923798561 | FU15: 0.8923798561 | FV15: 0.8923798561 | FW15: 0.8923798561 | FX15: 0.8923798561 | FY15: 0.8923798561 | FZ15: 0.8923798561 | GA15: 0.8923798561 | GB15: 0.8923798561 | GC15: 0.8923798561 | GD15: 0.8923798561 | GE15: 0.8923798561 | GF15: 0.8923798561 | GG15: 0.8923798561 | GH15: 0.8923798561 | GI15: 0.8923798561 | GJ15: 0.8923798561 | GK15: 0.8923798561 | GL15: 0.8923798561 | GM15: =GM13/40.3/(GM13/40.3+GM14/71.85) -> 0.8923798561 | GN15: 0.8923798561 | GO15: 0.8923798561 | GP15: 0.8923798561 | GQ15: 0.8923798561 | GR15: 0.8923798561 | GS15: 0.8923798561 | GT15: 0.8923798561 | GU15: 0.8923798561 | GV15: 0.8923798561 | GW15: 0.8923798561 | GX15: 0.8923798561 | GY15: 0.8923798561 | GZ15: 0.8923798561 | HA15: 0.8923798561 | HB15: 0.8923798561 | HC15: 0.8923798561 | HD15: 0.8923798561 | HE15: 0.8923798561 | HF15: 0.8923798561 | HG15: 0.8923798561 | HH15: 0.8923798561 | HI15: 0.8923798561 | HJ15: 0.8923798561 | HK15: 0.8923798561 | HL15: 0.8923798561 | HM15: 0.8923798561 | HN15: 0.8923798561 | HO15: 0.8923798561 | HP15: 0.8923798561 | HQ15: 0.8923798561 | HR15: 0.8923798561 | HS15: 0.8923798561 | HT15: 0.8923798561 | HU15: 0.8923798561 | HV15: 0.8923798561 | HW15: 0.8923798561 | HX15: 0.8923798561 | HY15: 0.8923798561 | HZ15: 0.8923798561 | IA15: 0.8923798561 | IB15: 0.8923798561 | IC15: 0.8923798561 | ID15: 0.8923798561 | IE15: 0.8923798561 | IF15: 0.8923798561 | IG15: 0.8923798561 | IH15: 0.8923798561 | II15: 0.8923798561 | IJ15: 0.8923798561 | IK15: 0.8923798561 | IL15: 0.8923798561 | IM15: 0.8923798561 | IN15: 0.8923798561 | IO15: 0.8923798561 | IP15: 0.8923798561 | IQ15: 0.8923798561 | IR15: 0.8923798561 | IS15: 0.8923798561
A16: guess | B16: KD Fe/Mg | C16: 0.3408985682 | D16: 0.3408985682 | E16: 0.3408985682 | F16: 0.3408985682 | G16: 0.3408985682 | H16: 0.3408985682 | I16: 0.3408985682 | J16: 0.3408985682 | K16: 0.3408985682 | L16: 0.3408985682 | M16: 0.3408985682 | N16: 0.3459658352 | O16: 0.345100798 | P16: 0.3505973146 | Q16: 0.3480462823 | R16: 0.3965539881 | S16: 0.349371482 | T16: 0.3494760478 | U16: 0.352344579 | V16: 0.3532358855 | W16: 0.3569306535 | X16: 0.3504721124 | Y16: 0.3505448464 | Z16: 0.3523232139 | AA16: 0.3546510881 | AB16: 0.3577350646 | AC16: 0.3598914912 | AD16: 0.347373302 | AE16: 0.3437696135 | AF16: 0.3429465741 | AG16: 0.3449717105 | AH16: 0.3510592928 | AI16: 0.3455697947 | AJ16: 0.346493611 | AK16: 0.3459886564 | AL16: 0.3598914912 | AM16: 0.3598914912 | AN16: 0.3598914912 | AO16: 0.3598914912 | AP16: 0.3598914912 | AQ16: 0.3598914912 | AR16: 0.3598914912 | AS16: 0.3598914912 | AT16: 0.3598914912 | AU16: 0.3598914912 | AV16: 0.3598914912 | AW16: 0.3598914912 | AX16: 0.3598914912 | AY16: 0.3598914912 | AZ16: 0.3598914912 | BA16: 0.3598914912 | BB16: 0.3598914912 | BC16: 0.3598914912 | BD16: 0.3598914912 | BE16: 0.3598914912 | BF16: 0.3598914912 | BG16: 0.3598914912 | BH16: 0.3598914912 | BI16: 0.3598914912 | BJ16: 0.3598914912 | BK16: 0.3598914912 | BL16: 0.3598914912 | BM16: 0.3598914912 | BN16: 0.3598914912 | BO16: 0.3598914912 | BP16: 0.3598914912 | BQ16: 0.3598914912 | BR16: 0.3598914912 | BS16: 0.3598914912 | BT16: 0.3598914912 | BU16: 0.3598914912 | BV16: 0.3598914912 | BW16: 0.3598914912 | BX16: 0.3598914912 | BY16: 0.3598914912 | BZ16: 0.3598914912 | CA16: 0.3598914912 | CB16: 0.3598914912 | CC16: 0.3598914912 | CD16: 0.3598914912 | CE16: 0.3598914912 | CF16: 0.3598914912 | CG16: 0.3598914912 | CH16: 0.3598914912 | CI16: 0.3598914912 | CJ16: 0.3598914912 | CK16: 0.3598914912 | CL16: 0.3598914912 | CM16: 0.3598914912 | CN16: 0.3598914912 | CO16: 0.3598914912 | CP16: 0.3598914912 | CQ16: 0.3598914912 | CR16: 0.3598914912 | CS16: 0.3598914912 | CT16: 0.3598914912 | CU16: 0.3598914912 | CV16: 0.3598914912 | CW16: 0.3598914912 | CX16: 0.3598914912 | CY16: 0.3598914912 | CZ16: 0.3598914912 | DA16: 0.3598914912 | DB16: 0.3598914912 | DC16: 0.3598914912 | DD16: 0.3598914912 | DE16: 0.3598914912 | DF16: 0.3598914912 | DG16: 0.3598914912 | DH16: 0.3598914912 | DI16: 0.3598914912 | DJ16: 0.3598914912 | DK16: 0.3598914912 | DL16: 0.3598914912 | DM16: 0.3598914912 | DN16: 0.3598914912 | DO16: 0.3598914912 | DP16: 0.3598914912 | DQ16: 0.3598914912 | DR16: 0.3598914912 | DS16: 0.3598914912 | DT16: 0.3598914912 | DU16: 0.3598914912 | DV16: 0.3598914912 | DW16: 0.3598914912 | DX16: 0.3598914912 | DY16: 0.3598914912 | DZ16: 0.3598914912 | EA16: 0.3598914912 | EB16: 0.3598914912 | EC16: 0.3598914912 | ED16: 0.3598914912 | EE16: 0.3598914912 | EF16: 0.3598914912 | EG16: 0.3598914912 | EH16: 0.3598914912 | EI16: 0.3598914912 | EJ16: 0.3598914912 | EK16: 0.3598914912 | EL16: 0.3598914912 | EM16: 0.3598914912 | EN16: 0.3598914912 | EO16: 0.3598914912 | EP16: 0.3598914912 | EQ16: 0.3598914912 | ER16: 0.3598914912 | ES16: 0.3598914912 | ET16: 0.3598914912 | EU16: 0.3598914912 | EV16: 0.3598914912 | EW16: 0.3598914912 | EX16: 0.3598914912 | EY16: 0.3598914912 | EZ16: 0.3598914912 | FA16: 0.3598914912 | FB16: 0.3598914912 | FC16: 0.3598914912 | FD16: 0.3598914912 | FE16: 0.3598914912 | FF16: 0.3598914912 | FG16: 0.3598914912 | FH16: 0.3598914912 | FI16: 0.3598914912 | FJ16: 0.3598914912 | FK16: 0.3598914912 | FL16: 0.3598914912 | FM16: 0.3598914912 | FN16: 0.3598914912 | FO16: 0.3598914912 | FP16: 0.3598914912 | FQ16: 0.3598914912 | FR16: 0.3598914912 | FS16: 0.3598914912 | FT16: 0.3598914912 | FU16: 0.3598914912 | FV16: 0.3598914912 | FW16: 0.3598914912 | FX16: 0.3598914912 | FY16: 0.3598914912 | FZ16: 0.3598914912 | GA16: 0.3598914912 | GB16: 0.3598914912 | GC16: 0.3598914912 | GD16: 0.3598914912 | GE16: 0.3598914912 | GF16: 0.3598914912 | GG16: 0.3598914912 | GH16: 0.3598914912 | GI16: 0.3598914912 | GJ16: 0.3598914912 | GK16: 0.3598914912 | GL16: 0.3598914912 | GM16: 0.3598914912 | GN16: 0.3598914912 | GO16: 0.3598914912 | GP16: 0.3598914912 | GQ16: 0.3598914912 | GR16: 0.3598914912 | GS16: 0.3598914912 | GT16: 0.3598914912 | GU16: 0.3598914912 | GV16: 0.3598914912 | GW16: 0.3598914912 | GX16: 0.3598914912 | GY16: 0.3598914912 | GZ16: 0.3598914912 | HA16: 0.3598914912 | HB16: 0.3598914912 | HC16: 0.3598914912 | HD16: 0.3598914912 | HE16: 0.3598914912 | HF16: 0.3598914912 | HG16: 0.3598914912 | HH16: 0.3598914912 | HI16: 0.3598914912 | HJ16: 0.3598914912 | HK16: 0.3598914912 | HL16: 0.3598914912 | HM16: 0.3598914912 | HN16: 0.3598914912 | HO16: 0.3598914912 | HP16: 0.3598914912 | HQ16: 0.3598914912 | HR16: 0.3598914912 | HS16: 0.3598914912 | HT16: 0.3598914912 | HU16: 0.3598914912 | HV16: 0.3598914912 | HW16: 0.3598914912 | HX16: 0.3598914912 | HY16: 0.3598914912 | HZ16: 0.3598914912 | IA16: 0.3598914912 | IB16: 0.3598914912 | IC16: 0.3598914912 | ID16: 0.3598914912 | IE16: 0.3598914912 | IF16: 0.3598914912 | IG16: 0.3598914912 | IH16: 0.3598914912 | II16: 0.3598914912 | IJ16: 0.3598914912 | IK16: 0.3598914912 | IL16: 0.3598914912 | IM16: 0.3598914912 | IN16: 0.3598914912 | IO16: 0.3598914912 | IP16: 0.3598914912 | IQ16: 0.3598914912 | IR16: 0.3598914912 | IS16: 0.3598914912
B17: KD Fe/Mg (Herzberg&OHara2002) | C17: =0.381-0.774/C33+0.998/C33^2 -> 0.3407940589 | D17: =0.381-0.774/D33+0.998/D33^2 -> 0.3407940589 | E17: 0.3407940589 | F17: 0.3407940589 | G17: 0.3407940589 | H17: 0.3407940589 | I17: 0.3407940589 | J17: 0.3407940589 | K17: 0.3407940589 | L17: 0.3407940589 | M17: 0.3407940589 | O17: 0.3449755863 | P17: 0.3504356084 | Q17: 0.3479116701 | R17: 0.3965840914 | S17: 0.34924281 | T17: 0.3493340898 | U17: 0.3521867165 | V17: 0.3530632274 | W17: 0.3569231958 | X17: 0.3503334054 | Y17: 0.3504015607 | Z17: 0.3521699232 | AA17: 0.3544892937 | AB17: 0.3577250843 | AC17: 0.3598754864 | AD17: 0.3472165985 | AE17: 0.3436366106 | AF17: 0.3428200126 | AG17: 0.3448352214 | AH17: 0.3509223175 | AI17: 0.3454375566 | AJ17: 0.3463590206 | AK17: 0.3458551507 | BP17: =0.381-0.774/BP33+0.998/BP33^2 ->  | EB17: =0.381-0.774/EB33+0.998/EB33^2 ->  | GN17: =0.381-0.774/GN33+0.998/GN33^2 -> 
A19: goal seek | B19: diff KD | C19: =C17-C16 -> -0.0001045092433 | D19: =D17-D16 -> -0.0001045092433 | E19: -0.0001045092433 | F19: -0.0001045092433 | G19: -0.0001045092433 | H19: -0.0001045092433 | I19: -0.0001045092433 | J19: -0.0001045092433 | K19: -0.0001045092433 | L19: -0.0001045092433 | M19: -0.0001045092433 | O19: -0.0001252117518 | P19: -0.0001617062344 | Q19: -0.000134612282 | R19: 3.010329612e-05 | S19: -0.0001286720035 | T19: -0.0001419579755 | U19: -0.0001578625437 | V19: -0.0001726580937 | W19: -7.457700415e-06 | X19: -0.0001387069512 | Y19: -0.0001432856734 | Z19: -0.0001532907478 | AA19: -0.000161794375 | AB19: -9.980298221e-06 | AC19: -1.600480474e-05 | AD19: -0.0001567034815 | AE19: -0.0001330029064 | AF19: -0.0001265614428 | AG19: -0.0001364890943 | AH19: -0.0001369752896 | AI19: -0.0001322381464 | AJ19: -0.0001345903422 | AK19: -0.0001335057306 | BP19: =BP17-BP16 ->  | EB19: =EB17-EB16 ->  | GN19: =GN17-GN16 -> 
B21: Observed residual peridotite composition | C21: 0.14 | D21: 0.19 | E21: 0.24 | F21: 0.37 | G21: 0.53 | H21: 0 | I21: 0.39 | J21: 0 | K21: 0.09 | L21: 0.13 | M21: 0 | N21: 0.12 | O21: 0.1 | P21: 0.372 | Q21: 0.11 | R21: 0 | S21: 0 | T21: 0.19 | U21: 0.41 | V21: 0.5 | W21: 0.65 | X21: 0.16 | Y21: 0.22 | Z21: 0.35 | AA21: 0.47 | AB21: 0.66 | AC21: 0.862 | AD21: Baker Stolper 1994 | AE21: Baker Stolper 1995 | AF21: Baker Stolper 1996 | AG21: Baker Stolper 1997 | AH21: Baker Stolper 1998 | AI21: Baker Stolper 1999 | AJ21: Baker Stolper 2000 | AK21: Baker Stolper 2001
A22: sample name | C22: 30.12 | D22: 30.07 | E22: 30.14 | F22: 30.1 | G22: 30.11 | H22: 40.02 | I22: 40.05 | J22: 40.08 | K22: 40.06 | L22: 40.07 | M22: 45.07 | N22: 45.03 | O22: 50.01 | P22: 45.02 | Q22: 60.01 | R22: 60.02 | S22: 60.04 | T22: 60.07 | U22: 60.05 | V22: 60.03 | W22: 60.08 | X22: 70.07 | Y22: 70.02 | Z22: 70.05 | AA22: 70.09 | AB22: 70.08 | AC22: 70.06 | AD22: 0.274 | AE22: 0.239 | AF22: 0.224 | AG22: 0.176 | AH22: 0.134 | AI22: 0.092 | AJ22: 0.074 | AK22: 0.084
A23: sample name | C23: 1515 | D23: 1530 | E23: 1540 | F23: 1580 | G23: 1630 | H23: 1540 | I23: 1660 | J23: 1570 | K23: 1590 | L23: 1610 | M23: 1580 | N23: 1620 | O23: 1680 | P23: 1650 | Q23: 1710 | R23: 1670 | S23: 1700 | T23: 1740 | U23: 1755 | V23: 1770 | W23: 1800 | X23: 1790 | Y23: 1810 | Z23: 1820 | AA23: 1835 | AB23: 1850 | AC23: 1950 | AD23: 1390 | AE23: 1360 | AF23: 1350 | AG23: 1330 | AH23: 1300 | AI23: 1280 | AJ23: 1270 | AK23: 1270
A24: wt % | B24: MgO r | C24: 41.08745126 | D24: 41.08745126 | E24: 41.08745126 | F24: 41.08745126 | G24: 41.08745126 | H24: 41.08745126 | I24: 41.08745126 | J24: 41.08745126 | K24: 41.08745126 | L24: 41.08745126 | M24: 41.08745126 | O24: 39.48546006 | P24: 45.56074063 | Q24: 39.53758654 | R24: 37.79929802 | S24: 38.0150895 | T24: 40.87558785 | U24: 44.77331968 | V24: 48.58028952 | W24: 53.45291122 | X24: 40.1866861 | Y24: 41.15958594 | Z24: 43.77312111 | AA24: 47.09521642 | AB24: 52.18600239 | AC24: 53.84670372 | AD24: 46.89265594 | AE24: 45.65403651 | AF24: 45.26640054 | AG24: 43.83188089 | AH24: 39.99279645 | AI24: 41.11999944 | AJ24: 40.67233022 | AK24: 40.94274019
A25: wt % | B25: FeO r | C25: 7.675561917 | D25: 7.675561917 | E25: 7.675561917 | F25: 7.675561917 | G25: 7.675561917 | H25: 7.675561917 | I25: 7.675561917 | J25: 7.675561917 | K25: 7.675561917 | L25: 7.675561917 | M25: 7.675561917 | O25: 7.611687462 | P25: 6.732497114 | Q25: 7.448714976 | R25: 8.223500882 | S25: 7.749634776 | T25: 7.137507541 | U25: 6.471987553 | V25: 6.306395191 | W25: 5.576640898 | X25: 7.141302967 | Y25: 6.988601434 | Z25: 6.514586837 | AA25: 5.98776121 | AB25: 5.273576678 | AC25: 4.627529865 | AD25: 7.148325367 | AE25: 7.470169982 | AF25: 7.527293566 | AG25: 7.364796609 | AH25: 7.11712244 | AI25: 7.42515271 | AJ25: 7.401787127 | AK25: 7.411285031
B26: SiO2 r | C26: 45.21903293 | D26: 45.21903293 | E26: 45.21903293 | F26: 45.21903293 | G26: 45.21903293 | H26: 45.21903293 | I26: 45.21903293 | J26: 45.21903293 | K26: 45.21903293 | L26: 45.21903293 | M26: 45.21903293 | O26: 45.44356774 | P26: 45.0108759 | Q26: 45.38189983 | R26: 45.38860273 | S26: 45.67227265 | T26: 45.1327169 | U26: 45.03335425 | V26: 43.59617743 | W26: 40.50136478 | X26: 45.16846412 | Y26: 44.9517168 | Z26: 44.15097485 | AA26: 43.42700991 | AB26: 41.28636965 | AC26: 41.05294468 | AD26: 43.60847056 | AE26: 44.14280609 | AF26: 44.2863636 | AG26: 44.78607399 | AH26: 47.99647269 | AI26: 45.12452838 | AJ26: 45.07454543 | AK26: 45.2072345
B27: atomic Mg# r | C27: =C24/40.3/(C24/40.3+C25/71.85) -> 0.9051574185 | D27: =D24/40.3/(D24/40.3+D25/71.85) -> 0.9051574185 | E27: 0.9051574185 | F27: 0.9051574185 | G27: 0.9051574185 | H27: 0.9051574185 | I27: 0.9051574185 | J27: 0.9051574185 | K27: 0.9051574185 | L27: 0.9051574185 | M27: 0.9051574185 | O27: 0.9024260995 | P27: 0.9234610896 | Q27: 0.9044294332 | R27: 0.8912451883 | S27: 0.8973910537 | T27: 0.9107964438 | U27: 0.9250036548 | V27: 0.9321302922 | W27: 0.9447182365 | X27: 0.9093619952 | Y27: 0.9130458825 | Z27: 0.9229560307 | AA27: 0.9334344143 | AB27: 0.9463603372 | AC27: 0.9540142531 | AD27: 0.9212325094 | AE27: 0.9159387207 | AF27: 0.914687277 | AG27: 0.9138738245 | AH27: 0.9092428532 | AI27: 0.9080329662 | AJ27: 0.9073799545 | AK27: 0.9078281066 | BP27: =BP24/40.3/(BP24/40.3+BP25/71.85) ->  | EB27: =EB24/40.3/(EB24/40.3+EB25/71.85) ->  | GN27: =GN24/40.3/(GN24/40.3+GN25/71.85) -> 
B28: atomic (Mg+Fe)/Si | C28: =(C24/40.3+C25/71.85)/(C26/60.08) -> 1.496541258 | D28: =(D24/40.3+D25/71.85)/(D26/60.08) -> 1.496541258 | E28: 1.496541258 | F28: 1.496541258 | G28: 1.496541258 | H28: 1.496541258 | I28: 1.496541258 | J28: 1.496541258 | K28: 1.496541258 | L28: 1.496541258 | M28: 1.496541258 | O28: 1.435416761 | P28: 1.634103604 | Q28: 1.436076823 | R28: 1.393043252 | S28: 1.382759137 | T28: 1.482436451 | U28: 1.60238337 | V28: 1.782214379 | W28: 2.082688333 | X28: 1.458595768 | Y28: 1.49505438 | Z28: 1.601441514 | AA28: 1.732040084 | AB28: 1.991203655 | AC28: 2.049674147 | AD28: 1.74016167 | AE28: 1.683362715 | AF28: 1.66593549 | AG28: 1.596561872 | AH28: 1.366209915 | AI28: 1.496110552 | AJ28: 1.482529679 | AK28: 1.487271372 | BP28: =(BP24/40.3+BP25/71.85)/(BP26/60.08) ->  | EB28: =(EB24/40.3+EB25/71.85)/(EB26/60.08) ->  | GN28: =(GN24/40.3+GN25/71.85)/(GN26/60.08) -> 
B29: critcal (Mg+Fe)/Si | C29: =IF($O$5="Y",-82.814*C27^2+160.6*C27-76.05,0) -> 0 | D29: =IF($O$5="Y",-82.814*D27^2+160.6*D27-76.05,0) -> 0 | E29: 0 | F29: 0 | G29: 0 | H29: 0 | I29: 0 | J29: 0 | K29: 0 | L29: 0 | M29: 0 | N29: 0 | O29: 0 | P29: 0 | Q29: 0 | R29: 0 | S29: 0 | T29: 0 | U29: 0 | V29: 0 | W29: 0 | X29: 0 | Y29: 0 | Z29: 0 | AA29: 0 | AB29: 0 | AC29: 0 | AD29: 0 | AE29: 0 | AF29: 0 | AG29: 0 | AH29: 0 | AI29: 0 | AJ29: 0 | AK29: 0 | AL29: 0 | AM29: 0 | AN29: 0 | AO29: 0 | AP29: 0 | AQ29: 0 | AR29: 0 | AS29: 0 | AT29: 0 | AU29: 0 | AV29: 0 | AW29: 0 | AX29: 0 | AY29: 0 | AZ29: 0 | BA29: 0 | BB29: 0 | BC29: 0 | BD29: 0 | BE29: 0 | BF29: 0 | BG29: 0 | BH29: 0 | BI29: 0 | BJ29: 0 | BK29: 0 | BL29: 0 | BM29: 0 | BN29: 0 | BO29: 0 | BP29: =IF($O$5="Y",-82.814*BP27^2+160.6*BP27-76.05,0) -> 0 | BQ29: 0 | BR29: 0 | BS29: 0 | BT29: 0 | BU29: 0 | BV29: 0 | BW29: 0 | BX29: 0 | BY29: 0 | BZ29: 0 | CA29: 0 | CB29: 0 | CC29: 0 | CD29: 0 | CE29: 0 | CF29: 0 | CG29: 0 | CH29: 0 | CI29: 0 | CJ29: 0 | CK29: 0 | CL29: 0 | CM29: 0 | CN29: 0 | CO29: 0 | CP29: 0 | CQ29: 0 | CR29: 0 | CS29: 0 | CT29: 0 | CU29: 0 | CV29: 0 | CW29: 0 | CX29: 0 | CY29: 0 | CZ29: 0 | DA29: 0 | DB29: 0 | DC29: 0 | DD29: 0 | DE29: 0 | DF29: 0 | DG29: 0 | DH29: 0 | DI29: 0 | DJ29: 0 | DK29: 0 | DL29: 0 | DM29: 0 | DN29: 0 | DO29: 0 | DP29: 0 | DQ29: 0 | DR29: 0 | DS29: 0 | DT29: 0 | DU29: 0 | DV29: 0 | DW29: 0 | DX29: 0 | DY29: 0 | DZ29: 0 | EA29: 0 | EB29: =IF($O$5="Y",-82.814*EB27^2+160.6*EB27-76.05,0) -> 0 | EC29: 0 | ED29: 0 | EE29: 0 | EF29: 0 | EG29: 0 | EH29: 0 | EI29: 0 | EJ29: 0 | EK29: 0 | EL29: 0 | EM29: 0 | EN29: 0 | EO29: 0 | EP29: 0 | EQ29: 0 | ER29: 0 | ES29: 0 | ET29: 0 | EU29: 0 | EV29: 0 | EW29: 0 | EX29: 0 | EY29: 0 | EZ29: 0 | FA29: 0 | FB29: 0 | FC29: 0 | FD29: 0 | FE29: 0 | FF29: 0 | FG29: 0 | FH29: 0 | FI29: 0 | FJ29: 0 | FK29: 0 | FL29: 0 | FM29: 0 | FN29: 0 | FO29: 0 | FP29: 0 | FQ29: 0 | FR29: 0 | FS29: 0 | FT29: 0 | FU29: 0 | FV29: 0 | FW29: 0 | FX29: 0 | FY29: 0 | FZ29: 0 | GA29: 0 | GB29: 0 | GC29: 0 | GD29: 0 | GE29: 0 | GF29: 0 | GG29: 0 | GH29: 0 | GI29: 0 | GJ29: 0 | GK29: 0 | GL29: 0 | GM29: 0 | GN29: =IF($O$5="Y",-82.814*GN27^2+160.6*GN27-76.05,0) -> 0 | GO29: 0 | GP29: 0 | GQ29: 0 | GR29: 0 | GS29: 0 | GT29: 0 | GU29: 0 | GV29: 0 | GW29: 0 | GX29: 0 | GY29: 0 | GZ29: 0 | HA29: 0 | HB29: 0 | HC29: 0 | HD29: 0 | HE29: 0 | HF29: 0 | HG29: 0 | HH29: 0 | HI29: 0 | HJ29: 0 | HK29: 0 | HL29: 0 | HM29: 0 | HN29: 0 | HO29: 0 | HP29: 0 | HQ29: 0 | HR29: 0 | HS29: 0 | HT29: 0 | HU29: 0 | HV29: 0 | HW29: 0 | HX29: 0 | HY29: 0 | HZ29: 0 | IA29: 0 | IB29: 0 | IC29: 0 | ID29: 0 | IE29: 0 | IF29: 0 | IG29: 0 | IH29: 0 | II29: 0 | IJ29: 0 | IK29: 0 | IL29: 0 | IM29: 0 | IN29: 0 | IO29: 0 | IP29: 0 | IQ29: 0 | IR29: 0 | IS29: 0
B31: Calculated melt composition and melting degree F
B32: (FeOr/MgOr)/KD | C32: =C25/C24/C$16 -> 0.5479939961 | D32: =D25/D24/D$16 -> 0.5479939961 | E32: 0.5479939961 | F32: 0.5479939961 | G32: 0.5479939961 | H32: 0.5479939961 | I32: 0.5479939961 | J32: 0.5479939961 | K32: 0.5479939961 | L32: 0.5479939961 | M32: 0.5479939961 | O32: 0.5585959487 | P32: 0.4214798485 | Q32: 0.541295232 | R32: 0.5486188014 | S32: 0.5834958428 | T32: 0.4996491501 | U32: 0.4102520721 | V32: 0.3674990885 | W32: 0.2922923635 | X32: 0.5070395045 | Y32: 0.4843682741 | Z32: 0.4224138067 | AA32: 0.3584977043 | AB32: 0.2824813137 | AC32: 0.2387913158 | AD32: 0.4388368042 | AE32: 0.4759746428 | AF32: 0.484882403 | AG32: 0.4870652754 | AH32: 0.5069232271 | AI32: 0.5225363592 | AJ32: 0.5252212691 | AK32: 0.5231843573 | BP32: =BP25/BP24/BP$16 ->  | EB32: =EB25/EB24/EB$16 ->  | GN32: =GN25/GN24/GN$16 -> 
A33: wt % | B33: MgO m | C33: =(C25*(C24-C13)-C24*(C25-C14))/((C14-C25)+C32*(C24-C13)) -> 17.86115523 | D33: =(D25*(D24-D13)-D24*(D25-D14))/((D14-D25)+D32*(D24-D13)) -> 17.86115523 | E33: 17.86115523 | F33: 17.86115523 | G33: 17.86115523 | H33: 17.86115523 | I33: 17.86115523 | J33: 17.86115523 | K33: 17.86115523 | L33: 17.86115523 | M33: 17.86115523 | O33: 20.10767521 | P33: 23.96084726 | Q33: 22.02233773 | R33: -50.92359685 | S33: 23.006472 | T33: 23.07697541 | U33: 25.50454624 | V33: 26.34967093 | W33: 30.80138263 | X33: 23.87617608 | Y33: 23.93257745 | Z33: 25.48885442 | AA33: 27.84373604 | AB33: 31.91098571 | AC33: 35.30160968 | AD33: 21.53915045 | AE33: 19.33392271 | AF33: 18.8885262 | AG33: 20.02388959 | AH33: 24.37193286 | AI33: 20.38807662 | AJ33: 20.96959423 | AK33: 20.64785282 | BP33: =(BP25*(BP24-BP13)-BP24*(BP25-BP14))/((BP14-BP25)+BP32*(BP24-BP13)) ->  | EB33: =(EB25*(EB24-EB13)-EB24*(EB25-EB14))/((EB14-EB25)+EB32*(EB24-EB13)) ->  | GN33: =(GN25*(GN24-GN13)-GN24*(GN25-GN14))/((GN14-GN25)+GN32*(GN24-GN13)) -> 
A34: wt % | B34: FeO m | C34: =C25/C24*C33/C$16 -> 9.787805833 | D34: 9.787805833 | E34: 9.787805833 | F34: 9.787805833 | G34: 9.787805833 | H34: 9.787805833 | I34: 9.787805833 | J34: 9.787805833 | K34: 9.787805833 | L34: 9.787805833 | M34: 9.787805833 | O34: 11.23206591 | P34: 10.09901427 | Q34: 11.92058641 | R34: -27.93764266 | S34: 13.42418077 | T34: 11.53039115 | U34: 10.46329294 | V34: 9.683480049 | W34: 9.003008926 | X34: 12.10616449 | Y34: 11.59218123 | Z34: 10.76684402 | AA34: 9.981915449 | AB34: 9.014257165 | AC34: 8.429717827 | AD34: 9.452171948 | AE34: 9.202456958 | AF34: 9.158713972 | AG34: 9.752941295 | AH34: 12.35469886 | AI34: 10.65351133 | AJ34: 11.0136769 | AK34: 10.8026336 | BO34: =BO25/BO24*BO33/BO$16 ->  | EA34: =EA25/EA24*EA33/EA$16 ->  | GM34: =GM25/GM24*GM33/GM$16 -> 
A35: atomic | B35: Mg# | C35: =C33/40.3/(C33/40.3+C34/71.85) -> 0.7648974718 | D35: =D33/40.3/(D33/40.3+D34/71.85) -> 0.7648974718 | E35: 0.7648974718 | F35: 0.7648974718 | G35: 0.7648974718 | H35: 0.7648974718 | I35: 0.7648974718 | J35: 0.7648974718 | K35: 0.7648974718 | L35: 0.7648974718 | M35: 0.7648974718 | O35: 0.7614340955 | P35: 0.808797029 | Q35: 0.7671020694 | R35: 0.7646924911 | S35: 0.753421995 | T35: 0.7810983059 | U35: 0.812937682 | V35: 0.8291001982 | W35: 0.8591478027 | X35: 0.7785774325 | Y35: 0.7863627822 | Z35: 0.8084544973 | AA35: 0.8325853634 | AB35: 0.8632290007 | AC35: 0.8818841116 | AD35: 0.802478373 | AE35: 0.7892848135 | AF35: 0.7861845042 | AG35: 0.7854284764 | AH35: 0.7786169691 | AI35: 0.7733438834 | AJ35: 0.7724442868 | AK35: 0.7731265756 | BP35: =BP33/40.3/(BP33/40.3+BP34/71.85) ->  | EB35: =EB33/40.3/(EB33/40.3+EB34/71.85) ->  | GN35: =GN33/40.3/(GN33/40.3+GN34/71.85) -> 
B36: F melt degree | C36: 0 | D36: 0 | E36: 0 | F36: 0 | G36: 0 | H36: 0 | I36: 0 | J36: 0 | K36: 0 | L36: 0 | M36: 0.1 | N36: 0.1 | O36: 0.1 | P36: 0.1 | Q36: 0.1 | R36: 0.1 | S36: 0.1 | T36: 0.1 | U36: 0.1 | V36: 0.1 | W36: 0.2 | X36: 0.2 | Y36: 0.2 | Z36: 0.2 | AA36: 0.2 | AB36: 0.2 | AC36: 0.2 | AD36: 0.2 | AE36: 0.2 | AF36: 0.2 | AG36: 0.3 | AH36: 0.3 | AI36: 0.3 | AJ36: 0.3 | AK36: 0.3 | AL36: 0.3 | AM36: 0.3 | AN36: 0.3 | AO36: 0.3 | AP36: 0.3 | AQ36: 0.4 | AR36: 0.4 | AS36: 0.4 | AT36: 0.4 | AU36: 0.4 | AV36: 0.4 | AW36: 0.4 | AX36: 0.4 | AY36: 0.4 | AZ36: 0.4 | BA36: 0.5 | BB36: 0.5 | BC36: 0.5 | BD36: 0.5 | BE36: 0.5 | BF36: 0.5 | BG36: 0.5 | BH36: 0.5 | BI36: 0.5 | BJ36: 0.5 | BK36: 0.6 | BL36: 0.6 | BM36: 0.6 | BN36: 0.6 | BO36: 0.6 | BP36: 0.6 | BQ36: 0.6 | BR36: 0.6 | BS36: 0.6 | BT36: 0.6 | BU36: 0.7 | BV36: 0.7 | BW36: 0.7 | BX36: 0.7 | BY36: 0.7 | BZ36: 0.7 | CA36: 0.7 | CB36: 0.7 | CC36: 0.7 | CD36: 0.7 | CE36: 0.8 | CF36: 0.8 | CG36: 0.8 | CH36: 0.8 | CI36: 0.8 | CJ36: 0.8 | CK36: 0.8 | CL36: 0.8 | CM36: 0.8 | CN36: 0.8 | CO36: 0.9 | CP36: 0.9 | CQ36: 0.9 | CR36: 0.9 | CS36: 0.9 | CT36: 0.9 | CU36: 0.9 | CV36: 0.9 | CW36: 0.9 | CX36: 0.9 | CY36: 1 | CZ36: 1 | DA36: 1 | DB36: 1 | DC36: 1 | DD36: 1 | DE36: 1 | DF36: 1 | DG36: 1 | DH36: 1 | DI36: =(DI13-DI24)/(DI33-DI24) ->  | FU36: =(FU13-FU24)/(FU33-FU24) ->  | IG36: =(IG13-IG24)/(IG33-IG24) -> 
B38: Calculated T with assumed P, H2O
B39: P Gpa | C39: 1 | D39: =D46 -> 1 | E39: 2 | F39: 3 | G39: 4 | H39: 5 | I39: 6 | J39: 7 | K39: 8 | L39: 9 | M39: 0 | N39: 1 | O39: 2 | P39: 3 | Q39: 4 | R39: 5 | S39: 6 | T39: 7 | U39: 8 | V39: 9 | W39: 0 | X39: 1 | Y39: 2 | Z39: 3 | AA39: 4 | AB39: 5 | AC39: 6 | AD39: 7 | AE39: 8 | AF39: 9 | AG39: 0 | AH39: 1 | AI39: 2 | AJ39: 3 | AK39: 4 | AL39: 5 | AM39: 6 | AN39: 7 | AO39: 8 | AP39: 9 | AQ39: 0 | AR39: 1 | AS39: 2 | AT39: 3 | AU39: 4 | AV39: 5 | AW39: 6 | AX39: 7 | AY39: 8 | AZ39: 9 | BA39: 0 | BB39: 1 | BC39: 2 | BD39: 3 | BE39: 4 | BF39: 5 | BG39: 6 | BH39: 7 | BI39: 8 | BJ39: 9 | BK39: 0 | BL39: 1 | BM39: 2 | BN39: 3 | BO39: 4 | BP39: =BP46 -> 5 | BQ39: 6 | BR39: 7 | BS39: 8 | BT39: 9 | BU39: 0 | BV39: 1 | BW39: 2 | BX39: 3 | BY39: 4 | BZ39: 5 | CA39: 6 | CB39: 7 | CC39: 8 | CD39: 9 | CE39: 0 | CF39: 1 | CG39: 2 | CH39: 3 | CI39: 4 | CJ39: 5 | CK39: 6 | CL39: 7 | CM39: 8 | CN39: 9 | CO39: 0 | CP39: 1 | CQ39: 2 | CR39: 3 | CS39: 4 | CT39: 5 | CU39: 6 | CV39: 7 | CW39: 8 | CX39: 9 | CY39: 0 | CZ39: 1 | DA39: 2 | DB39: 3 | DC39: 4 | DD39: 5 | DE39: 6 | DF39: 7 | DG39: 8 | DH39: 9 | DI39: 0 | DJ39: 1 | DK39: 2 | DL39: 3 | DM39: 4 | DN39: 5 | DO39: 6 | DP39: 7 | DQ39: 8 | DR39: 9 | DS39: 9.080267958 | DT39: 9.080267958 | DU39: 9.080267958 | DV39: 9.080267958 | DW39: 9.080267958 | DX39: 9.080267958 | DY39: 9.080267958 | DZ39: 9.080267958 | EA39: 9.080267958 | EB39: =EB46 -> 9.080267958 | EC39: 9.080267958 | ED39: 9.080267958 | EE39: 9.080267958 | EF39: 9.080267958 | EG39: 9.080267958 | EH39: 9.080267958 | EI39: 9.080267958 | EJ39: 9.080267958 | EK39: 9.080267958 | EL39: 9.080267958 | EM39: 9.080267958 | EN39: 9.080267958 | EO39: 9.080267958 | EP39: 9.080267958 | EQ39: 9.080267958 | ER39: 9.080267958 | ES39: 9.080267958 | ET39: 9.080267958 | EU39: 9.080267958 | EV39: 9.080267958 | EW39: 9.080267958 | EX39: 9.080267958 | EY39: 9.080267958 | EZ39: 9.080267958 | FA39: 9.080267958 | FB39: 9.080267958 | FC39: 9.080267958 | FD39: 9.080267958 | FE39: 9.080267958 | FF39: 9.080267958 | FG39: 9.080267958 | FH39: 9.080267958 | FI39: 9.080267958 | FJ39: 9.080267958 | FK39: 9.080267958 | FL39: 9.080267958 | FM39: 9.080267958 | FN39: 9.080267958 | FO39: 9.080267958 | FP39: 9.080267958 | FQ39: 9.080267958 | FR39: 9.080267958 | FS39: 9.080267958 | FT39: 9.080267958 | FU39: 9.080267958 | FV39: 9.080267958 | FW39: 9.080267958 | FX39: 9.080267958 | FY39: 9.080267958 | FZ39: 9.080267958 | GA39: 9.080267958 | GB39: 9.080267958 | GC39: 9.080267958 | GD39: 9.080267958 | GE39: 9.080267958 | GF39: 9.080267958 | GG39: 9.080267958 | GH39: 9.080267958 | GI39: 9.080267958 | GJ39: 9.080267958 | GK39: 9.080267958 | GL39: 9.080267958 | GM39: 9.080267958 | GN39: =GN46 -> 9.080267958 | GO39: 9.080267958 | GP39: 9.080267958 | GQ39: 9.080267958 | GR39: 9.080267958 | GS39: 9.080267958 | GT39: 9.080267958 | GU39: 9.080267958 | GV39: 9.080267958 | GW39: 9.080267958 | GX39: 9.080267958 | GY39: 9.080267958 | GZ39: 9.080267958 | HA39: 9.080267958 | HB39: 9.080267958 | HC39: 9.080267958 | HD39: 9.080267958 | HE39: 9.080267958 | HF39: 9.080267958 | HG39: 9.080267958 | HH39: 9.080267958 | HI39: 9.080267958 | HJ39: 9.080267958 | HK39: 9.080267958 | HL39: 9.080267958 | HM39: 9.080267958 | HN39: 9.080267958 | HO39: 9.080267958 | HP39: 9.080267958 | HQ39: 9.080267958 | HR39: 9.080267958 | HS39: 9.080267958 | HT39: 9.080267958 | HU39: 9.080267958 | HV39: 9.080267958 | HW39: 9.080267958 | HX39: 9.080267958 | HY39: 9.080267958 | HZ39: 9.080267958 | IA39: 9.080267958 | IB39: 9.080267958 | IC39: 9.080267958 | ID39: 9.080267958 | IE39: 9.080267958 | IF39: 9.080267958 | IG39: 9.080267958 | IH39: 9.080267958 | II39: 9.080267958 | IJ39: 9.080267958 | IK39: 9.080267958 | IL39: 9.080267958 | IM39: 9.080267958 | IN39: 9.080267958 | IO39: 9.080267958 | IP39: 9.080267958 | IQ39: 9.080267958 | IR39: 9.080267958 | IS39: 9.080267958
B40: T sol | C40: =$I$5*C39^2+$I$6*C39+$I$7 -> 1247.795 | D40: =$I$5*D39^2+$I$6*D39+$I$7 -> 1247.795 | E40: 1365.382 | F40: 1472.761 | G40: 1569.932 | H40: 1656.895 | I40: 1733.65 | J40: 1800.197 | K40: 1856.536 | L40: 1902.667 | M40: 1120 | N40: 1247.795 | O40: 1365.382 | P40: 1472.761 | Q40: 1569.932 | R40: 1656.895 | S40: 1733.65 | T40: 1800.197 | U40: 1856.536 | V40: 1902.667 | W40: 1120 | X40: 1247.795 | Y40: 1365.382 | Z40: 1472.761 | AA40: 1569.932 | AB40: 1656.895 | AC40: 1733.65 | AD40: 1800.197 | AE40: 1856.536 | AF40: 1902.667 | AG40: 1120 | AH40: 1247.795 | AI40: 1365.382 | AJ40: 1472.761 | AK40: 1569.932 | AL40: 1656.895 | AM40: 1733.65 | AN40: 1800.197 | AO40: 1856.536 | AP40: 1902.667 | AQ40: 1120 | AR40: 1247.795 | AS40: 1365.382 | AT40: 1472.761 | AU40: 1569.932 | AV40: 1656.895 | AW40: 1733.65 | AX40: 1800.197 | AY40: 1856.536 | AZ40: 1902.667 | BA40: 1120 | BB40: 1247.795 | BC40: 1365.382 | BD40: 1472.761 | BE40: 1569.932 | BF40: 1656.895 | BG40: 1733.65 | BH40: 1800.197 | BI40: 1856.536 | BJ40: 1902.667 | BK40: 1120 | BL40: 1247.795 | BM40: 1365.382 | BN40: 1472.761 | BO40: 1569.932 | BP40: =$I$5*BP39^2+$I$6*BP39+$I$7 -> 1656.895 | BQ40: 1733.65 | BR40: 1800.197 | BS40: 1856.536 | BT40: 1902.667 | BU40: 1120 | BV40: 1247.795 | BW40: 1365.382 | BX40: 1472.761 | BY40: 1569.932 | BZ40: 1656.895 | CA40: 1733.65 | CB40: 1800.197 | CC40: 1856.536 | CD40: 1902.667 | CE40: 1120 | CF40: 1247.795 | CG40: 1365.382 | CH40: 1472.761 | CI40: 1569.932 | CJ40: 1656.895 | CK40: 1733.65 | CL40: 1800.197 | CM40: 1856.536 | CN40: 1902.667 | CO40: 1120 | CP40: 1247.795 | CQ40: 1365.382 | CR40: 1472.761 | CS40: 1569.932 | CT40: 1656.895 | CU40: 1733.65 | CV40: 1800.197 | CW40: 1856.536 | CX40: 1902.667 | CY40: 1120 | CZ40: 1247.795 | DA40: 1365.382 | DB40: 1472.761 | DC40: 1569.932 | DD40: 1656.895 | DE40: 1733.65 | DF40: 1800.197 | DG40: 1856.536 | DH40: 1902.667 | DI40: 1120 | DJ40: 1247.795 | DK40: 1365.382 | DL40: 1472.761 | DM40: 1569.932 | DN40: 1656.895 | DO40: 1733.65 | DP40: 1800.197 | DQ40: 1856.536 | DR40: 1902.667 | DS40: 1905.927269 | DT40: 1905.927269 | DU40: 1905.927269 | DV40: 1905.927269 | DW40: 1905.927269 | DX40: 1905.927269 | DY40: 1905.927269 | DZ40: 1905.927269 | EA40: 1905.927269 | EB40: =$I$5*EB39^2+$I$6*EB39+$I$7 -> 1905.927269 | EC40: 1905.927269 | ED40: 1905.927269 | EE40: 1905.927269 | EF40: 1905.927269 | EG40: 1905.927269 | EH40: 1905.927269 | EI40: 1905.927269 | EJ40: 1905.927269 | EK40: 1905.927269 | EL40: 1905.927269 | EM40: 1905.927269 | EN40: 1905.927269 | EO40: 1905.927269 | EP40: 1905.927269 | EQ40: 1905.927269 | ER40: 1905.927269 | ES40: 1905.927269 | ET40: 1905.927269 | EU40: 1905.927269 | EV40: 1905.927269 | EW40: 1905.927269 | EX40: 1905.927269 | EY40: 1905.927269 | EZ40: 1905.927269 | FA40: 1905.927269 | FB40: 1905.927269 | FC40: 1905.927269 | FD40: 1905.927269 | FE40: 1905.927269 | FF40: 1905.927269 | FG40: 1905.927269 | FH40: 1905.927269 | FI40: 1905.927269 | FJ40: 1905.927269 | FK40: 1905.927269 | FL40: 1905.927269 | FM40: 1905.927269 | FN40: 1905.927269 | FO40: 1905.927269 | FP40: 1905.927269 | FQ40: 1905.927269 | FR40: 1905.927269 | FS40: 1905.927269 | FT40: 1905.927269 | FU40: 1905.927269 | FV40: 1905.927269 | FW40: 1905.927269 | FX40: 1905.927269 | FY40: 1905.927269 | FZ40: 1905.927269 | GA40: 1905.927269 | GB40: 1905.927269 | GC40: 1905.927269 | GD40: 1905.927269 | GE40: 1905.927269 | GF40: 1905.927269 | GG40: 1905.927269 | GH40: 1905.927269 | GI40: 1905.927269 | GJ40: 1905.927269 | GK40: 1905.927269 | GL40: 1905.927269 | GM40: 1905.927269 | GN40: =$I$5*GN39^2+$I$6*GN39+$I$7 -> 1905.927269 | GO40: 1905.927269 | GP40: 1905.927269 | GQ40: 1905.927269 | GR40: 1905.927269 | GS40: 1905.927269 | GT40: 1905.927269 | GU40: 1905.927269 | GV40: 1905.927269 | GW40: 1905.927269 | GX40: 1905.927269 | GY40: 1905.927269 | GZ40: 1905.927269 | HA40: 1905.927269 | HB40: 1905.927269 | HC40: 1905.927269 | HD40: 1905.927269 | HE40: 1905.927269 | HF40: 1905.927269 | HG40: 1905.927269 | HH40: 1905.927269 | HI40: 1905.927269 | HJ40: 1905.927269 | HK40: 1905.927269 | HL40: 1905.927269 | HM40: 1905.927269 | HN40: 1905.927269 | HO40: 1905.927269 | HP40: 1905.927269 | HQ40: 1905.927269 | HR40: 1905.927269 | HS40: 1905.927269 | HT40: 1905.927269 | HU40: 1905.927269 | HV40: 1905.927269 | HW40: 1905.927269 | HX40: 1905.927269 | HY40: 1905.927269 | HZ40: 1905.927269 | IA40: 1905.927269 | IB40: 1905.927269 | IC40: 1905.927269 | ID40: 1905.927269 | IE40: 1905.927269 | IF40: 1905.927269 | IG40: 1905.927269 | IH40: 1905.927269 | II40: 1905.927269 | IJ40: 1905.927269 | IK40: 1905.927269 | IL40: 1905.927269 | IM40: 1905.927269 | IN40: 1905.927269 | IO40: 1905.927269 | IP40: 1905.927269 | IQ40: 1905.927269 | IR40: 1905.927269 | IS40: 1905.927269
B41: T liq | C41: =$C$5+$C$6*$C$13+$C$7*C$39+$C$8*C$39^2+$C$9*C$42 -> 1695.87 | D41: =$C$5+$C$6*$C$13+$C$7*D$39+$C$8*D$39^2+$C$9*D$42 -> 1695.87 | E41: 1758.353 | F41: 1814.338 | G41: 1863.825 | H41: 1906.814 | I41: 1943.305 | J41: 1973.298 | K41: 1996.793 | L41: 2013.79 | M41: 1626.889 | N41: 1695.87 | O41: 1758.353 | P41: 1814.338 | Q41: 1863.825 | R41: 1906.814 | S41: 1943.305 | T41: 1973.298 | U41: 1996.793 | V41: 2013.79 | W41: 1626.889 | X41: 1695.87 | Y41: 1758.353 | Z41: 1814.338 | AA41: 1863.825 | AB41: 1906.814 | AC41: 1943.305 | AD41: 1973.298 | AE41: 1996.793 | AF41: 2013.79 | AG41: 1626.889 | AH41: 1695.87 | AI41: 1758.353 | AJ41: 1814.338 | AK41: 1863.825 | AL41: 1906.814 | AM41: 1943.305 | AN41: 1973.298 | AO41: 1996.793 | AP41: 2013.79 | AQ41: 1626.889 | AR41: 1695.87 | AS41: 1758.353 | AT41: 1814.338 | AU41: 1863.825 | AV41: 1906.814 | AW41: 1943.305 | AX41: 1973.298 | AY41: 1996.793 | AZ41: 2013.79 | BA41: 1626.889 | BB41: 1695.87 | BC41: 1758.353 | BD41: 1814.338 | BE41: 1863.825 | BF41: 1906.814 | BG41: 1943.305 | BH41: 1973.298 | BI41: 1996.793 | BJ41: 2013.79 | BK41: 1626.889 | BL41: 1695.87 | BM41: 1758.353 | BN41: 1814.338 | BO41: 1863.825 | BP41: =$C$5+$C$6*$C$13+$C$7*BP$39+$C$8*BP$39^2+$C$9*BP$42 -> 1906.814 | BQ41: 1943.305 | BR41: 1973.298 | BS41: 1996.793 | BT41: 2013.79 | BU41: 1626.889 | BV41: 1695.87 | BW41: 1758.353 | BX41: 1814.338 | BY41: 1863.825 | BZ41: 1906.814 | CA41: 1943.305 | CB41: 1973.298 | CC41: 1996.793 | CD41: 2013.79 | CE41: 1626.889 | CF41: 1695.87 | CG41: 1758.353 | CH41: 1814.338 | CI41: 1863.825 | CJ41: 1906.814 | CK41: 1943.305 | CL41: 1973.298 | CM41: 1996.793 | CN41: 2013.79 | CO41: 1626.889 | CP41: 1695.87 | CQ41: 1758.353 | CR41: 1814.338 | CS41: 1863.825 | CT41: 1906.814 | CU41: 1943.305 | CV41: 1973.298 | CW41: 1996.793 | CX41: 2013.79 | CY41: 1626.889 | CZ41: 1695.87 | DA41: 1758.353 | DB41: 1814.338 | DC41: 1863.825 | DD41: 1906.814 | DE41: 1943.305 | DF41: 1973.298 | DG41: 1996.793 | DH41: 2013.79 | DI41: 1626.889 | DJ41: 1695.87 | DK41: 1758.353 | DL41: 1814.338 | DM41: 1863.825 | DN41: 1906.814 | DO41: 1943.305 | DP41: 1973.298 | DQ41: 1996.793 | DR41: 2013.79 | DS41: 2014.872591 | DT41: 2014.872591 | DU41: 2014.872591 | DV41: 2014.872591 | DW41: 2014.872591 | DX41: 2014.872591 | DY41: 2014.872591 | DZ41: 2014.872591 | EA41: 2014.872591 | EB41: =$C$5+$C$6*$C$13+$C$7*EB$39+$C$8*EB$39^2+$C$9*EB$42 -> 2014.872591 | EC41: 2014.872591 | ED41: 2014.872591 | EE41: 2014.872591 | EF41: 2014.872591 | EG41: 2014.872591 | EH41: 2014.872591 | EI41: 2014.872591 | EJ41: 2014.872591 | EK41: 2014.872591 | EL41: 2014.872591 | EM41: 2014.872591 | EN41: 2014.872591 | EO41: 2014.872591 | EP41: 2014.872591 | EQ41: 2014.872591 | ER41: 2014.872591 | ES41: 2014.872591 | ET41: 2014.872591 | EU41: 2014.872591 | EV41: 2014.872591 | EW41: 2014.872591 | EX41: 2014.872591 | EY41: 2014.872591 | EZ41: 2014.872591 | FA41: 2014.872591 | FB41: 2014.872591 | FC41: 2014.872591 | FD41: 2014.872591 | FE41: 2014.872591 | FF41: 2014.872591 | FG41: 2014.872591 | FH41: 2014.872591 | FI41: 2014.872591 | FJ41: 2014.872591 | FK41: 2014.872591 | FL41: 2014.872591 | FM41: 2014.872591 | FN41: 2014.872591 | FO41: 2014.872591 | FP41: 2014.872591 | FQ41: 2014.872591 | FR41: 2014.872591 | FS41: 2014.872591 | FT41: 2014.872591 | FU41: 2014.872591 | FV41: 2014.872591 | FW41: 2014.872591 | FX41: 2014.872591 | FY41: 2014.872591 | FZ41: 2014.872591 | GA41: 2014.872591 | GB41: 2014.872591 | GC41: 2014.872591 | GD41: 2014.872591 | GE41: 2014.872591 | GF41: 2014.872591 | GG41: 2014.872591 | GH41: 2014.872591 | GI41: 2014.872591 | GJ41: 2014.872591 | GK41: 2014.872591 | GL41: 2014.872591 | GM41: 2014.872591 | GN41: =$C$5+$C$6*$C$13+$C$7*GN$39+$C$8*GN$39^2+$C$9*GN$42 -> 2014.872591 | GO41: 2014.872591 | GP41: 2014.872591 | GQ41: 2014.872591 | GR41: 2014.872591 | GS41: 2014.872591 | GT41: 2014.872591 | GU41: 2014.872591 | GV41: 2014.872591 | GW41: 2014.872591 | GX41: 2014.872591 | GY41: 2014.872591 | GZ41: 2014.872591 | HA41: 2014.872591 | HB41: 2014.872591 | HC41: 2014.872591 | HD41: 2014.872591 | HE41: 2014.872591 | HF41: 2014.872591 | HG41: 2014.872591 | HH41: 2014.872591 | HI41: 2014.872591 | HJ41: 2014.872591 | HK41: 2014.872591 | HL41: 2014.872591 | HM41: 2014.872591 | HN41: 2014.872591 | HO41: 2014.872591 | HP41: 2014.872591 | HQ41: 2014.872591 | HR41: 2014.872591 | HS41: 2014.872591 | HT41: 2014.872591 | HU41: 2014.872591 | HV41: 2014.872591 | HW41: 2014.872591 | HX41: 2014.872591 | HY41: 2014.872591 | HZ41: 2014.872591 | IA41: 2014.872591 | IB41: 2014.872591 | IC41: 2014.872591 | ID41: 2014.872591 | IE41: 2014.872591 | IF41: 2014.872591 | IG41: 2014.872591 | IH41: 2014.872591 | II41: 2014.872591 | IJ41: 2014.872591 | IK41: 2014.872591 | IL41: 2014.872591 | IM41: 2014.872591 | IN41: 2014.872591 | IO41: 2014.872591 | IP41: 2014.872591 | IQ41: 2014.872591 | IR41: 2014.872591 | IS41: 2014.872591
B42: H2O wt % | C42: 0 | D42: =C42 -> 0 | E42: =D42 -> 0 | F42: 0 | G42: 0 | H42: 0 | I42: 0 | J42: 0 | K42: 0 | L42: 0 | M42: 0 | N42: 0 | O42: 0 | P42: 0 | Q42: 0 | R42: 0 | S42: 0 | T42: 0 | U42: 0 | V42: 0 | W42: 0 | X42: 0 | Y42: 0 | Z42: 0 | AA42: 0 | AB42: 0 | AC42: 0 | AD42: 0 | AE42: 0 | AF42: 0 | AG42: 0 | AH42: 0 | AI42: 0 | AJ42: 0 | AK42: 0 | AL42: 0 | AM42: 0 | AN42: 0 | AO42: 0 | AP42: 0 | AQ42: 0 | AR42: 0 | AS42: 0 | AT42: 0 | AU42: 0 | AV42: 0 | AW42: 0 | AX42: 0 | AY42: 0 | AZ42: 0 | BA42: 0 | BB42: 0 | BC42: 0 | BD42: 0 | BE42: 0 | BF42: 0 | BG42: 0 | BH42: 0 | BI42: 0 | BJ42: 0 | BK42: 0 | BL42: 0 | BM42: 0 | BN42: 0 | BO42: 0 | BP42: 0 | BQ42: =BP42 -> 0 | BR42: 0 | BS42: 0 | BT42: 0 | BU42: 0 | BV42: 0 | BW42: 0 | BX42: 0 | BY42: 0 | BZ42: 0 | CA42: 0 | CB42: 0 | CC42: 0 | CD42: 0 | CE42: 0 | CF42: 0 | CG42: 0 | CH42: 0 | CI42: 0 | CJ42: 0 | CK42: 0 | CL42: 0 | CM42: 0 | CN42: 0 | CO42: 0 | CP42: 0 | CQ42: 0 | CR42: 0 | CS42: 0 | CT42: 0 | CU42: 0 | CV42: 0 | CW42: 0 | CX42: 0 | CY42: 0 | CZ42: 0 | DA42: 0 | DB42: 0 | DC42: 0 | DD42: 0 | DE42: 0 | DF42: 0 | DG42: 0 | DH42: 0 | DI42: 0 | DJ42: 0 | DK42: 0 | DL42: 0 | DM42: 0 | DN42: 0 | DO42: 0 | DP42: 0 | DQ42: 0 | DR42: 0 | DS42: 0 | DT42: 0 | DU42: 0 | DV42: 0 | DW42: 0 | DX42: 0 | DY42: 0 | DZ42: 0 | EA42: 0 | EB42: 0 | EC42: =EB42 -> 0 | ED42: 0 | EE42: 0 | EF42: 0 | EG42: 0 | EH42: 0 | EI42: 0 | EJ42: 0 | EK42: 0 | EL42: 0 | EM42: 0 | EN42: 0 | EO42: 0 | EP42: 0 | EQ42: 0 | ER42: 0 | ES42: 0 | ET42: 0 | EU42: 0 | EV42: 0 | EW42: 0 | EX42: 0 | EY42: 0 | EZ42: 0 | FA42: 0 | FB42: 0 | FC42: 0 | FD42: 0 | FE42: 0 | FF42: 0 | FG42: 0 | FH42: 0 | FI42: 0 | FJ42: 0 | FK42: 0 | FL42: 0 | FM42: 0 | FN42: 0 | FO42: 0 | FP42: 0 | FQ42: 0 | FR42: 0 | FS42: 0 | FT42: 0 | FU42: 0 | FV42: 0 | FW42: 0 | FX42: 0 | FY42: 0 | FZ42: 0 | GA42: 0 | GB42: 0 | GC42: 0 | GD42: 0 | GE42: 0 | GF42: 0 | GG42: 0 | GH42: 0 | GI42: 0 | GJ42: 0 | GK42: 0 | GL42: 0 | GM42: 0 | GN42: 0 | GO42: =GN42 -> 0 | GP42: 0 | GQ42: 0 | GR42: 0 | GS42: 0 | GT42: 0 | GU42: 0 | GV42: 0 | GW42: 0 | GX42: 0 | GY42: 0 | GZ42: 0 | HA42: 0 | HB42: 0 | HC42: 0 | HD42: 0 | HE42: 0 | HF42: 0 | HG42: 0 | HH42: 0 | HI42: 0 | HJ42: 0 | HK42: 0 | HL42: 0 | HM42: 0 | HN42: 0 | HO42: 0 | HP42: 0 | HQ42: 0 | HR42: 0 | HS42: 0 | HT42: 0 | HU42: 0 | HV42: 0 | HW42: 0 | HX42: 0 | HY42: 0 | HZ42: 0 | IA42: 0 | IB42: 0 | IC42: 0 | ID42: 0 | IE42: 0 | IF42: 0 | IG42: 0 | IH42: 0 | II42: 0 | IJ42: 0 | IK42: 0 | IL42: 0 | IM42: 0 | IN42: 0 | IO42: 0 | IP42: 0 | IQ42: 0 | IR42: 0 | IS42: 0
B43: T | C43: =$C$5+$C$6*C$33+$C$7*C$39+$C$8*C$39^2+$C$9*C$42 -> 1405.648048 | D43: =$C$5+$C$6*D$33+$C$7*D$39+$C$8*D$39^2+$C$9*D$42 -> 1405.648048 | E43: 1468.131048 | F43: 1524.116048 | G43: 1573.603048 | H43: 1616.592048 | I43: 1653.083048 | J43: 1683.076048 | K43: 1706.571048 | L43: 1723.568048 | M43: 1336.667048 | O43: 1501.671591 | P43: 1615.18445 | Q43: 1635.729502 | R43: 589.6356991 | S43: 1729.902627 | T43: 1760.948243 | U43: 1820.686875 | V43: 1850.301587 | W43: 1529.864643 | X43: 1495.452309 | Y43: 1558.777381 | Z43: 1637.997597 | AA43: 1722.642979 | AB43: 1826.356017 | AC43: 1913.469033 | AD43: 1737.988516 | AE43: 1728.559466 | AF43: 1738.906696 | AG43: 1368.956672 | AH43: 1502.853958 | AI43: 1505.857984 | AJ43: 1570.525042 | AK43: 1615.208443 | BP43: =$C$5+$C$6*BP$33+$C$7*BP$39+$C$8*BP$39^2+$C$9*BP$42 ->  | EB43: =$C$5+$C$6*EB$33+$C$7*EB$39+$C$8*EB$39^2+$C$9*EB$42 ->  | GN43: =$C$5+$C$6*GN$33+$C$7*GN$39+$C$8*GN$39^2+$C$9*GN$42 -> 
B45: Full P-T inversion with assumed H2O
A46: guess | B46: P Gpa | C46: 0 | D46: 1 | E46: 2 | F46: 3 | G46: 4 | H46: 5 | I46: 6 | J46: 7 | K46: 8 | L46: 9 | M46: 0 | N46: 1 | O46: 2 | P46: 3 | Q46: 4 | R46: 5 | S46: 6 | T46: 7 | U46: 8 | V46: 9 | W46: 0 | X46: 1 | Y46: 2 | Z46: 3 | AA46: 4 | AB46: 5 | AC46: 6 | AD46: 7 | AE46: 8 | AF46: 9 | AG46: 0 | AH46: 1 | AI46: 2 | AJ46: 3 | AK46: 4 | AL46: 5 | AM46: 6 | AN46: 7 | AO46: 8 | AP46: 9 | AQ46: 0 | AR46: 1 | AS46: 2 | AT46: 3 | AU46: 4 | AV46: 5 | AW46: 6 | AX46: 7 | AY46: 8 | AZ46: 9 | BA46: 0 | BB46: 1 | BC46: 2 | BD46: 3 | BE46: 4 | BF46: 5 | BG46: 6 | BH46: 7 | BI46: 8 | BJ46: 9 | BK46: 0 | BL46: 1 | BM46: 2 | BN46: 3 | BO46: 4 | BP46: 5 | BQ46: 6 | BR46: 7 | BS46: 8 | BT46: 9 | BU46: 0 | BV46: 1 | BW46: 2 | BX46: 3 | BY46: 4 | BZ46: 5 | CA46: 6 | CB46: 7 | CC46: 8 | CD46: 9 | CE46: 0 | CF46: 1 | CG46: 2 | CH46: 3 | CI46: 4 | CJ46: 5 | CK46: 6 | CL46: 7 | CM46: 8 | CN46: 9 | CO46: 0 | CP46: 1 | CQ46: 2 | CR46: 3 | CS46: 4 | CT46: 5 | CU46: 6 | CV46: 7 | CW46: 8 | CX46: 9 | CY46: 0 | CZ46: 1 | DA46: 2 | DB46: 3 | DC46: 4 | DD46: 5 | DE46: 6 | DF46: 7 | DG46: 8 | DH46: 9 | DI46: 0 | DJ46: 1 | DK46: 2 | DL46: 3 | DM46: 4 | DN46: 5 | DO46: 6 | DP46: 7 | DQ46: 8 | DR46: 9 | DS46: 9.080267958 | DT46: 9.080267958 | DU46: 9.080267958 | DV46: 9.080267958 | DW46: 9.080267958 | DX46: 9.080267958 | DY46: 9.080267958 | DZ46: 9.080267958 | EA46: 9.080267958 | EB46: 9.080267958 | EC46: 9.080267958 | ED46: 9.080267958 | EE46: 9.080267958 | EF46: 9.080267958 | EG46: 9.080267958 | EH46: 9.080267958 | EI46: 9.080267958 | EJ46: 9.080267958 | EK46: 9.080267958 | EL46: 9.080267958 | EM46: 9.080267958 | EN46: 9.080267958 | EO46: 9.080267958 | EP46: 9.080267958 | EQ46: 9.080267958 | ER46: 9.080267958 | ES46: 9.080267958 | ET46: 9.080267958 | EU46: 9.080267958 | EV46: 9.080267958 | EW46: 9.080267958 | EX46: 9.080267958 | EY46: 9.080267958 | EZ46: 9.080267958 | FA46: 9.080267958 | FB46: 9.080267958 | FC46: 9.080267958 | FD46: 9.080267958 | FE46: 9.080267958 | FF46: 9.080267958 | FG46: 9.080267958 | FH46: 9.080267958 | FI46: 9.080267958 | FJ46: 9.080267958 | FK46: 9.080267958 | FL46: 9.080267958 | FM46: 9.080267958 | FN46: 9.080267958 | FO46: 9.080267958 | FP46: 9.080267958 | FQ46: 9.080267958 | FR46: 9.080267958 | FS46: 9.080267958 | FT46: 9.080267958 | FU46: 9.080267958 | FV46: 9.080267958 | FW46: 9.080267958 | FX46: 9.080267958 | FY46: 9.080267958 | FZ46: 9.080267958 | GA46: 9.080267958 | GB46: 9.080267958 | GC46: 9.080267958 | GD46: 9.080267958 | GE46: 9.080267958 | GF46: 9.080267958 | GG46: 9.080267958 | GH46: 9.080267958 | GI46: 9.080267958 | GJ46: 9.080267958 | GK46: 9.080267958 | GL46: 9.080267958 | GM46: 9.080267958 | GN46: 9.080267958 | GO46: 9.080267958 | GP46: 9.080267958 | GQ46: 9.080267958 | GR46: 9.080267958 | GS46: 9.080267958 | GT46: 9.080267958 | GU46: 9.080267958 | GV46: 9.080267958 | GW46: 9.080267958 | GX46: 9.080267958 | GY46: 9.080267958 | GZ46: 9.080267958 | HA46: 9.080267958 | HB46: 9.080267958 | HC46: 9.080267958 | HD46: 9.080267958 | HE46: 9.080267958 | HF46: 9.080267958 | HG46: 9.080267958 | HH46: 9.080267958 | HI46: 9.080267958 | HJ46: 9.080267958 | HK46: 9.080267958 | HL46: 9.080267958 | HM46: 9.080267958 | HN46: 9.080267958 | HO46: 9.080267958 | HP46: 9.080267958 | HQ46: 9.080267958 | HR46: 9.080267958 | HS46: 9.080267958 | HT46: 9.080267958 | HU46: 9.080267958 | HV46: 9.080267958 | HW46: 9.080267958 | HX46: 9.080267958 | HY46: 9.080267958 | HZ46: 9.080267958 | IA46: 9.080267958 | IB46: 9.080267958 | IC46: 9.080267958 | ID46: 9.080267958 | IE46: 9.080267958 | IF46: 9.080267958 | IG46: 9.080267958 | IH46: 9.080267958 | II46: 9.080267958 | IJ46: 9.080267958 | IK46: 9.080267958 | IL46: 9.080267958 | IM46: 9.080267958 | IN46: 9.080267958 | IO46: 9.080267958 | IP46: 9.080267958 | IQ46: 9.080267958 | IR46: 9.080267958 | IS46: 9.080267958
B47: T(P)Lee | C47: =$C$5+$C$6*C$33+$C$7*C$46+$C$8*C$46^2+$C$9*C$42 -> 1336.667048 | D47: =$C$5+$C$6*D$33+$C$7*D$46+$C$8*D$46^2+$C$9*D$42 -> 1405.648048 | E47: =$C$5+$C$6*E$33+$C$7*E$46+$C$8*E$46^2+$C$9*E$42 -> 1468.131048 | F47: 1524.116048 | G47: 1573.603048 | H47: 1616.592048 | I47: 1653.083048 | J47: 1683.076048 | K47: 1706.571048 | L47: 1723.568048 | M47: 1336.667048 | O47: 1501.671591 | P47: 1615.18445 | Q47: 1635.729502 | R47: 589.6356991 | S47: 1729.902627 | T47: 1760.948243 | U47: 1820.686875 | V47: 1850.301587 | W47: 1529.864643 | X47: 1495.452309 | Y47: 1558.777381 | Z47: 1637.997597 | AA47: 1722.642979 | AB47: 1826.356017 | AC47: 1913.469033 | AD47: 1737.988516 | AE47: 1728.559466 | AF47: 1738.906696 | AG47: 1368.956672 | AH47: 1502.853958 | AI47: 1505.857984 | AJ47: 1570.525042 | AK47: 1615.208443 | BP47: =$C$5+$C$6*BP$33+$C$7*BP$46+$C$8*BP$46^2+$C$9*BP$42 ->  | EB47: =$C$5+$C$6*EB$33+$C$7*EB$46+$C$8*EB$46^2+$C$9*EB$42 ->  | GN47: =$C$5+$C$6*GN$33+$C$7*GN$46+$C$8*GN$46^2+$C$9*GN$42 -> 
B48: T(F,P) | C48: =(($L$4+$M$4*(C46-3))*C36^4+($L$5+$M$5*(C46-3))*C36^3+($L$6+$M$6*(C46-3))*C36^2+($L$7+$M$7*(C46-3))*C36)*(($C$5+$C$6*$C$13+$C$7*C$46+$C$8*C$46^2+$C$9*C$42)-($I$5*C46^2+$I$6*C46+$I$7))+($I$5*C46^2+$I$6*C46+$I$7) -> 1120 | D48: =(($L$4+$M$4*(D46-3))*D36^4+($L$5+$M$5*(D46-3))*D36^3+($L$6+$M$6*(D46-3))*D36^2+($L$7+$M$7*(D46-3))*D36)*(($C$5+$C$6*$C$13+$C$7*D$46+$C$8*D$46^2+$C$9*D$42)-($I$5*D46^2+$I$6*D46+$I$7))+($I$5*D46^2+$I$6*D46+$I$7) -> 1247.795 | E48: 1365.382 | F48: 1472.761 | G48: 1569.932 | H48: 1656.895 | I48: 1733.65 | J48: 1800.197 | K48: 1856.536 | L48: 1902.667 | M48: 1219.469173 | N48: 1325.988904 | O48: 1425.422811 | P48: 1517.529106 | Q48: 1602.066003 | R48: 1678.791716 | S48: 1747.464456 | T48: 1807.842438 | U48: 1859.683876 | V48: 1902.746981 | W48: 1290.393272 | X48: 1383.259722 | Y48: 1470.893535 | Z48: 1552.918191 | AA48: 1628.957176 | AB48: 1698.633972 | AC48: 1761.572063 | AD48: 1817.394931 | AE48: 1865.726059 | AF48: 1906.188932 | AG48: 1339.449166 | AH48: 1424.697362 | AI48: 1505.545766 | AJ48: 1581.570012 | AK48: 1652.345732 | AL48: 1717.448562 | AM48: 1776.454134 | AN48: 1828.938084 | AO48: 1874.476045 | AP48: 1912.643651 | AQ48: 1373.313723 | AR48: 1455.391732 | AS48: 1533.131103 | AT48: 1606.126324 | AU48: 1673.971885 | AV48: 1736.262277 | AW48: 1792.591987 | AX48: 1842.555507 | AY48: 1885.747325 | AZ48: 1921.761932 | BA48: 1398.663812 | BB48: 1480.43274 | BC48: 1557.401139 | BD48: 1629.228884 | BE48: 1695.57585 | BF48: 1756.101909 | BG48: 1810.466937 | BH48: 1858.330807 | BI48: 1899.353394 | BJ48: 1933.194572 | BK48: 1422.176302 | BL48: 1504.910293 | BM48: 1582.107471 | BN48: 1653.519449 | BO48: 1718.897839 | BP48: =(($L$4+$M$4*(BP46-3))*BP36^4+($L$5+$M$5*(BP46-3))*BP36^3+($L$6+$M$6*(BP46-3))*BP36^2+($L$7+$M$7*(BP46-3))*BP36)*(($C$5+$C$6*$C$13+$C$7*BP$46+$C$8*BP$46^2+$C$9*BP$42)-($I$5*BP46^2+$I$6*BP46+$I$7))+($I$5*BP46^2+$I$6*BP46+$I$7) -> 1777.994251 | BQ48: 1830.560298 | BR48: 1876.347592 | BS48: 1915.107744 | BT48: 1946.592366 | BU48: 1450.528061 | BV48: 1533.914299 | BW48: 1611.001696 | BX48: 1681.639776 | BY48: 1745.678067 | BZ48: 1802.966095 | CA48: 1853.353387 | CB48: 1896.689469 | CC48: 1932.823869 | CD48: 1961.606111 | CE48: 1490.395958 | CF48: 1572.534668 | CG48: 1647.835408 | CH48: 1716.23162 | CI48: 1777.656748 | CJ48: 1832.044233 | CK48: 1879.327519 | CL48: 1919.440047 | CM48: 1952.315261 | CN48: 1977.886603 | CO48: 1548.456861 | CP48: 1625.861306 | CQ48: 1696.360204 | CR48: 1759.936739 | CS48: 1816.574096 | CT48: 1866.255458 | CU48: 1908.964009 | CV48: 1944.682933 | CW48: 1973.395415 | CX48: 1995.084638 | CY48: 1631.38764 | CZ48: 1698.984121 | DA48: 1760.327679 | DB48: 1815.396889 | DC48: 1864.170324 | DD48: 1906.626561 | DE48: 1942.744173 | DF48: 1972.501735 | DG48: 1995.877823 | DH48: 2012.851011 | EB48: =(($L$4+$M$4*(EB46-3))*EB36^4+($L$5+$M$5*(EB46-3))*EB36^3+($L$6+$M$6*(EB46-3))*EB36^2+($L$7+$M$7*(EB46-3))*EB36)*(($C$5+$C$6*$C$13+$C$7*EB$46+$C$8*EB$46^2+$C$9*EB$42)-($I$5*EB46^2+$I$6*EB46+$I$7))+($I$5*EB46^2+$I$6*EB46+$I$7) ->  | GN48: =(($L$4+$M$4*(GN46-3))*GN36^4+($L$5+$M$5*(GN46-3))*GN36^3+($L$6+$M$6*(GN46-3))*GN36^2+($L$7+$M$7*(GN46-3))*GN36)*(($C$5+$C$6*$C$13+$C$7*GN$46+$C$8*GN$46^2+$C$9*GN$42)-($I$5*GN46^2+$I$6*GN46+$I$7))+($I$5*GN46^2+$I$6*GN46+$I$7) -> 
A49: goal seek | B49: T(P)Lee - T(F,P) | C49: =C47-C48 -> 216.6670477 | D49: =D47-D48 -> 157.8530477 | E49: 102.7490477 | F49: 51.35504765 | G49: 3.671047655 | H49: -40.30295235 | I49: -80.56695235 | J49: -117.1209523 | K49: -149.9649523 | L49: -179.0989523 | M49: 117.1978748 | O49: 76.24877987 | P49: 97.65534317 | Q49: 33.66349882 | R49: -1089.156017 | S49: -17.56182928 | T49: -46.89419549 | U49: -38.99700017 | V49: -52.44539383 | W49: 239.4713708 | X49: 112.1925865 | Y49: 87.88384667 | Z49: 85.07940508 | AA49: 93.68580286 | AB49: 127.7220445 | AC49: 151.8969699 | AD49: -79.40641438 | AE49: -137.1665933 | AF49: -167.2822362 | AG49: 29.507506 | AH49: 78.15659526 | AI49: 0.3122175076 | AJ49: -11.04496989 | AK49: -37.13728968 | BP49: =BP47-BP48 ->  | EB49: =EB47-EB48 ->  | GN49: =GN47-GN48 -> 
B51: T (Celsius) | C51: =IF(C$27<$O$4,NA(),IF(C$28>C$29,C47,NA())) -> 1336.667048 | D51: =IF(D$27<$O$4,NA(),IF(D$28>D$29,D47,NA())) -> 1405.648048 | E51: =IF(E$27<$O$4,NA(),IF(E$28>E$29,E47,NA())) -> 1468.131048 | F51: 1524.116048 | G51: 1573.603048 | H51: 1616.592048 | I51: 1653.083048 | J51: 1683.076048 | K51: 1706.571048 | L51: 1723.568048 | M51: 1336.667048 | O51: 1501.671591 | P51: 1615.18445 | Q51: 1635.729502 | T51: 1760.948243 | U51: 1820.686875 | V51: 1850.301587 | W51: 1529.864643 | X51: 1495.452309 | Y51: 1558.777381 | Z51: 1637.997597 | AA51: 1722.642979 | AB51: 1826.356017 | AC51: 1913.469033 | AD51: 1737.988516 | AE51: 1728.559466 | AF51: 1738.906696 | AG51: 1368.956672 | AH51: 1502.853958 | AI51: 1505.857984 | AJ51: 1570.525042 | AK51: 1615.208443 | BP51: =IF(BP$27<$O$4,NA(),IF(BP$28>BP$29,BP47,NA())) ->  | EB51: =IF(EB$27<$O$4,NA(),IF(EB$28>EB$29,EB47,NA())) ->  | GN51: =IF(GN$27<$O$4,NA(),IF(GN$28>GN$29,GN47,NA())) -> 
B52: P (Gpa) | C52: =IF(C$27<$O$4,NA(),IF(C$28>C$29,C46,NA())) -> 0 | D52: =IF(D$27<$O$4,NA(),IF(D$28>D$29,D46,NA())) -> 1 | E52: 2 | F52: 3 | G52: 4 | H52: 5 | I52: 6 | J52: 7 | K52: 8 | L52: 9 | M52: 0 | O52: 2 | P52: 3 | Q52: 4 | T52: 7 | U52: 8 | V52: 9 | W52: 0 | X52: 1 | Y52: 2 | Z52: 3 | AA52: 4 | AB52: 5 | AC52: 6 | AD52: 7 | AE52: 8 | AF52: 9 | AG52: 0 | AH52: 1 | AI52: 2 | AJ52: 3 | AK52: 4 | BP52: =IF(BP$27<$O$4,NA(),IF(BP$28>BP$29,BP46,NA())) ->  | EB52: =IF(EB$27<$O$4,NA(),IF(EB$28>EB$29,EB46,NA())) ->  | GN52: =IF(GN$27<$O$4,NA(),IF(GN$28>GN$29,GN46,NA())) -> 
A54: thermobarometry | B54: T
A55: thermobarometry | B55: P
C73: 1.125896551e+11 | D73: 1 | E73: -335544.32 | G73: -335544.32 | I73: -335544.32 | K73: -335544.32 | M73: -335544.32 | O73: -335544.32 | Q73: -335544.32 | S73: -335544.32 | U73: -335544.32 | W73: -335544.32 | Y73: -335544.32 | AA73: -335544.32 | AC73: -335544.32 | AD73: -335544.32 | AE73: -335544.32 | AF73: -335544.32 | AG73: -335544.32 | AH73: -335544.32 | AI73: -335544.32 | AJ73: -335544.32 | AK73: -335544.32 | AL73: -335544.32 | AM73: -335544.32 | AN73: -335544.32 | AO73: -335544.32 | AP73: -335544.32 | AQ73: -335544.32 | AR73: -335544.32 | AS73: -335544.32 | AT73: -335544.32 | AU73: -335544.32 | AV73: -335544.32 | AW73: -335544.32 | AX73: -335544.32 | AY73: -335544.32 | AZ73: -335544.32 | BA73: -335544.32 | BB73: -335544.32 | BC73: -335544.32 | BD73: -335544.32 | BE73: -335544.32 | BF73: -335544.32 | BG73: -335544.32 | BH73: -335544.32 | BI73: -335544.32 | BJ73: -335544.32 | BK73: -335544.32 | BL73: -335544.32 | BM73: -335544.32 | BN73: -335544.32 | BO73: -335544.32 | BP73: -335544.32 | BQ73: -335544.32 | BR73: -335544.32 | BS73: -335544.32 | BT73: -335544.32 | BU73: -335544.32 | BV73: -335544.32 | BW73: -335544.32 | BX73: -335544.32 | BY73: -335544.32 | BZ73: -335544.32 | CA73: -335544.32 | CB73: -335544.32 | CC73: -335544.32 | CD73: -335544.32 | CE73: -335544.32 | CF73: -335544.32 | CG73: -335544.32 | CH73: -335544.32 | CI73: -335544.32 | CJ73: -335544.32 | CK73: -335544.32 | CL73: -335544.32 | CM73: -335544.32 | CN73: -335544.32 | CO73: -335544.32 | CP73: -335544.32 | CQ73: -335544.32 | CR73: -335544.32 | CS73: -335544.32 | CT73: -335544.32 | CU73: -335544.32 | CV73: -335544.32 | CW73: -335544.32 | CX73: -335544.32 | CY73: -335544.32 | CZ73: -335544.32 | DA73: -335544.32 | DB73: -335544.32 | DC73: -335544.32 | DD73: -335544.32 | DE73: -335544.32 | DF73: -335544.32 | DG73: -335544.32 | DH73: -335544.32 | DI73: -335544.32 | DJ73: -335544.32 | DK73: -335544.32 | DL73: -335544.32 | DM73: -335544.32 | DN73: -335544.32 | DO73: -335544.32 | DP73: -335544.32 | DQ73: -335544.32 | DR73: -335544.32 | DS73: -335544.32 | DT73: -335544.32 | DU73: -335544.32 | DV73: -335544.32 | DW73: -335544.32 | DX73: -335544.32 | DY73: -335544.32 | DZ73: -335544.32 | EA73: -335544.32 | EB73: -335544.32 | EC73: -335544.32 | ED73: -335544.32 | EE73: -335544.32 | EF73: -335544.32 | EG73: -335544.32 | EH73: -335544.32 | EI73: -335544.32 | EJ73: -335544.32 | EK73: -335544.32 | EL73: -335544.32 | EM73: -335544.32 | EN73: -335544.32 | EO73: -335544.32 | EP73: -335544.32 | EQ73: -335544.32 | ER73: -335544.32 | ES73: -335544.32 | ET73: -335544.32 | EU73: -335544.32 | EV73: -335544.32 | EW73: -335544.32 | EX73: -335544.32 | EY73: -335544.32 | EZ73: -335544.32 | FA73: -335544.32 | FB73: -335544.32 | FC73: -335544.32 | FD73: -335544.32 | FE73: -335544.32 | FF73: -335544.32 | FG73: -335544.32 | FH73: -335544.32 | FI73: -335544.32 | FJ73: -335544.32 | FK73: -335544.32 | FL73: -335544.32 | FM73: -335544.32 | FN73: -335544.32 | FO73: -335544.32 | FP73: -335544.32 | FQ73: -335544.32 | FR73: -335544.32 | FS73: -335544.32 | FT73: -335544.32 | FU73: -335544.32 | FV73: -335544.32 | FW73: -335544.32 | FX73: -335544.32 | FY73: -335544.32 | FZ73: -335544.32 | GA73: -335544.32 | GB73: -335544.32 | GC73: -335544.32 | GD73: -335544.32 | GE73: -335544.32 | GF73: -335544.32 | GG73: -335544.32 | GH73: -335544.32 | GI73: -335544.32 | GJ73: -335544.32 | GK73: -335544.32 | GL73: -335544.32 | GM73: -335544.32 | GN73: -335544.32 | GO73: -335544.32 | GP73: -335544.32 | GQ73: -335544.32 | GR73: -335544.32 | GS73: -335544.32 | GT73: -335544.32 | GU73: -335544.32 | GV73: -335544.32 | GW73: -335544.32 | GX73: -335544.32 | GY73: -335544.32 | GZ73: -335544.32 | HA73: -335544.32 | HB73: -335544.32 | HC73: -335544.32 | HD73: -335544.32 | HE73: -335544.32 | HF73: -335544.32 | HG73: -335544.32 | HH73: -335544.32 | HI73: -335544.32 | HJ73: -335544.32 | HK73: -335544.32 | HL73: -335544.32 | HM73: -335544.32 | HN73: -335544.32 | HO73: -335544.32 | HP73: -335544.32 | HQ73: -335544.32 | HR73: -335544.32 | HS73: -335544.32 | HT73: -335544.32 | HU73: -335544.32 | HV73: -335544.32 | HW73: -335544.32 | HX73: -335544.32 | HY73: -335544.32 | HZ73: -335544.32 | IA73: -335544.32 | IB73: -335544.32 | IC73: -335544.32 | ID73: -335544.32 | IE73: -335544.32 | IF73: -335544.32 | IG73: -335544.32 | IH73: -335544.32 | II73: -335544.32 | IJ73: -335544.32 | IK73: -335544.32 | IL73: -335544.32 | IM73: -335544.32 | IN73: -335544.32 | IO73: -335544.32 | IP73: -335544.32 | IQ73: -335544.32 | IR73: -335544.32 | IS73: -335544.32 | IU73: -335544.32
